FILE,Service Area Categorisation,Service Division Categorisation,Responsible Unit,Unit Code,Expenses Type,Expenses Sub Type,Expense  Code,Detailed Expenses Type,Transaction No,Amount,Invoice Date,Capital/Revenue,Supplier Name
2012 - APR,Central Services,Corporate Management,Chief Exec's Office                     ,A01001,Supplies & Services           ,Grants and Subscriptions      ,DJ04,Subscriptions,1,"145,801.00",4/4/2012,R,LONDON COUNCILS               
2012 - APR,Central Services,Corporate Management,Chief Exec's Office                     ,A01001,Supplies & Services           ,Grants and Subscriptions      ,DJ04,Subscriptions,2,"29,944.00",4/4/2012,R,LONDON COUNCILS               
2012 - APR,Central Services,Corporate Management,Chief Exec's Office                     ,A01001,Supplies & Services           ,Grants and Subscriptions      ,DJ04,Subscriptions,3,-894.85,4/1/2012,R,LOCAL GOVERNMENT ASSOCIATION  
2012 - APR,Central Services,Corporate Management,Chief Exec's Office                     ,A01001,Supplies & Services           ,Grants and Subscriptions      ,DJ04,Subscriptions,4,"-7,965.00",4/1/2012,R,LOCAL GOVERNMENT ASSOCIATION  
2012 - APR,Central Services,Corporate Management,Chief Exec's Office                     ,A01001,Supplies & Services           ,Grants and Subscriptions      ,DJ04,Subscriptions,5,"43,758.80",4/1/2012,R,LOCAL GOVERNMENT ASSOCIATION  
2012 - APR,Central Services,Fully rechargeable Overheads,Local Involvement Network               ,A01039,Third Party Payments          ,Private Contractors           ,EH10,Contract Payments,6,"8,342.99",4/5/2012,R,MERTON VOLUNTARY SERV COUNCIL 
2012 - APR,Cultural Env Reg&Plan Services,Comm. Safety (Crime Reduction),Crime and Strategy Team                 ,A01100,Third Party Payments          ,Private Contractors           ,EH02,Miscellaneous Hired Services,7,"3,000.00",3/27/2012,R,STOP HATE UK                  
2012 - APR,Cultural Env Reg&Plan Services,Comm. Safety (Crime Reduction),CCTV                                    ,A01200,Supplies & Services           ,Services                      ,DF03,Consultants,8,"1,021.82",3/27/2012,R,GOODWILL ASSOCIATES LIMITED   
2012 - APR,Cultural Env Reg&Plan Services,Comm. Safety (Crime Reduction),CCTV                                    ,A01200,Supplies & Services           ,Services                      ,DF03,Consultants,9,"2,609.10",3/27/2012,R,GOODWILL ASSOCIATES LIMITED   
2012 - APR,Cultural Env Reg&Plan Services,Comm. Safety (Crime Reduction),CCTV                                    ,A01200,Supplies & Services           ,Services                      ,DF57,Consulting Engineers Fees,10,"8,706.91",3/14/2012,R,EUROVIA INFRASTRUCTURE LTD    
2012 - APR,Adult Social Care,Other Adult Services,Retention in Drug Treatmt Srvs          ,A01303,Third Party Payments          ,Private Contractors           ,EH02,Miscellaneous Hired Services,11,"15,000.00",3/23/2012,R,WANDSWORTH PCT                
2012 - APR,Adult Social Care,Other Adult Services,Retention in Drug Treatmt Srvs          ,A01303,Third Party Payments          ,Private Contractors           ,EH02,Miscellaneous Hired Services,12,"7,462.50",9/14/2011,R,ADDACTION KINGSTON            
2012 - APR,Adult Social Care,Other Adult Services,Retention in Drug Treatmt Srvs          ,A01303,Third Party Payments          ,Private Contractors           ,EH02,Miscellaneous Hired Services,13,"7,462.50",10/3/2011,R,ADDACTION KINGSTON            
2012 - APR,Adult Social Care,Other Adult Services,Retention in Drug Treatmt Srvs          ,A01303,Third Party Payments          ,Private Contractors           ,EH02,Miscellaneous Hired Services,14,"7,462.50",1/25/2012,R,ADDACTION KINGSTON            
2012 - APR,Adult Social Care,Other Adult Services,Retention in Drug Treatmt Srvs          ,A01303,Third Party Payments          ,Private Contractors           ,EH02,Miscellaneous Hired Services,15,"3,666.42",4/10/2012,R,COMM.DRUG SERV.FOR SOUTHLONDON
2012 - APR,Adult Social Care,Other Adult Services,Retention in Drug Treatmt Srvs          ,A01303,Third Party Payments          ,Private Contractors           ,EH02,Miscellaneous Hired Services,16,"2,934.69",4/10/2012,R,COMM.DRUG SERV.FOR SOUTHLONDON
2012 - APR,Adult Social Care,Other Adult Services,Retention in Drug Treatmt Srvs          ,A01303,Third Party Payments          ,Private Contractors           ,EH02,Miscellaneous Hired Services,17,"1,661.50",4/10/2012,R,COMM.DRUG SERV.FOR SOUTHLONDON
2012 - APR,Adult Social Care,Other Adult Services,Retention in Drug Treatmt Srvs          ,A01303,Third Party Payments          ,Private Contractors           ,EH02,Miscellaneous Hired Services,18,"8,953.63",4/10/2012,R,COMM.DRUG SERV.FOR SOUTHLONDON
2012 - APR,Adult Social Care,Other Adult Services,Retention in Drug Treatmt Srvs          ,A01303,Third Party Payments          ,Private Contractors           ,EH02,Miscellaneous Hired Services,19,"1,550.27",4/10/2012,R,COMM.DRUG SERV.FOR SOUTHLONDON
2012 - APR,Adult Social Care,Other Adult Services,Retention in Drug Treatmt Srvs          ,A01303,Third Party Payments          ,Private Contractors           ,EH02,Miscellaneous Hired Services,20,"1,732.87",4/10/2012,R,COMM.DRUG SERV.FOR SOUTHLONDON
2012 - APR,Adult Social Care,Other Adult Services,Retention in Drug Treatmt Srvs          ,A01303,Third Party Payments          ,Private Contractors           ,EH02,Miscellaneous Hired Services,21,"2,870.88",4/10/2012,R,COMM.DRUG SERV.FOR SOUTHLONDON
2012 - APR,Central Services,Fully rechargeable Overheads,NON-STATUTORY MARKETING & COMM ,A02019,Supplies & Services           ,Services                      ,DF02,Misc Advertising/Publicity,22,537.5,3/22/2012,R,JCDECAUX UNITED KINGDOM       
2012 - APR,Central Services,Fully rechargeable Overheads,NON-STATUTORY MARKETING & COMM ,A02019,Supplies & Services           ,Services                      ,DF35,Graphic Design,23,"2,295.00",3/29/2012,R,THE BIG IDEA (MARK BUCKINGHAM)
2012 - APR,Central Services,Fully rechargeable Overheads,NON-STATUTORY MARKETING & COMM ,A02019,Supplies & Services           ,Services                      ,DF35,Graphic Design,24,620,3/7/2012,R,DOMINO 4 LIMITED              
2012 - APR,Central Services,Fully rechargeable Overheads,NON-STATUTORY MARKETING & COMM ,A02019,Supplies & Services           ,Services                      ,DF35,Graphic Design,25,"1,305.00",4/4/2012,R,THE BIG IDEA (MARK BUCKINGHAM)
2012 - APR,Central Services,Fully rechargeable Overheads,NON-STATUTORY MARKETING & COMM ,A02019,Supplies & Services           ,Services                      ,DF35,Graphic Design,26,"2,350.00",4/10/2012,R,STUDIO ELEVEN LTD             
2012 - APR,Central Services,Fully rechargeable Overheads,Democratic Services                     ,A02023,Employees                     ,Direct Employee Expenses      ,AA17,Agency Staff & Casual Paymts,27,851.25,10/28/2011,R,REDACTED
2012 - APR,Central Services,Fully rechargeable Overheads,Press and Public Relations.             ,A02026,Employees                     ,Direct Employee Expenses      ,AA17,Agency Staff & Casual Paymts,28,"5,309.00",3/31/2012,R,PUBLIC SELECT                 
2012 - APR,Central Services,Fully rechargeable Overheads,Press and Public Relations.             ,A02026,Employees                     ,Direct Employee Expenses      ,AA17,Agency Staff & Casual Paymts,29,"2,600.00",3/31/2012,R,PUBLIC SELECT                 
2012 - APR,Central Services,Fully rechargeable Overheads,Press and Public Relations.             ,A02026,Employees                     ,Direct Employee Expenses      ,AA17,Agency Staff & Casual Paymts,30,678,4/5/2012,R,HAYS RECRUITING EXPERTS       
2012 - APR,Central Services,Fully rechargeable Overheads,Press and Public Relations.             ,A02026,Employees                     ,Direct Employee Expenses      ,AA17,Agency Staff & Casual Paymts,31,903.2,4/11/2012,R,HAYS RECRUITING EXPERTS       
2012 - APR,Central Services,Fully rechargeable Overheads,Press and Public Relations.             ,A02026,Employees                     ,Direct Employee Expenses      ,AA17,Agency Staff & Casual Paymts,32,904,4/16/2012,R,HAYS RECRUITING EXPERTS       
2012 - APR,Central Services,Fully rechargeable Overheads,Press and Public Relations.             ,A02026,Employees                     ,Direct Employee Expenses      ,AA17,Agency Staff & Casual Paymts,33,"4,871.80",4/15/2012,R,PUBLIC SELECT                 
2012 - APR,Central Services,Fully rechargeable Overheads,Press and Public Relations.             ,A02026,Employees                     ,Indirect Employee Expenses    ,AB57,External Training Costs,34,"2,190.00",3/21/2012,R,MEDIA TRAINING LTD            
2012 - APR,Central Services,Fully rechargeable Overheads,Press and Public Relations.             ,A02026,Supplies & Services           ,Expenses                      ,DH21,Christmas Lights,35,"8,676.00",1/25/2012,R,BLACHERE ILLUMINATION         
2012 - APR,Central Services,Fully rechargeable Overheads,Press and Public Relations.             ,A02026,Supplies & Services           ,Expenses                      ,DH21,Christmas Lights,36,"16,744.00",10/20/2011,R,BLACHERE ILLUMINATION         
2012 - APR,Central Services,Fully rechargeable Overheads,Press and Public Relations.             ,A02026,Supplies & Services           ,Expenses                      ,DH21,Christmas Lights,37,626.75,1/24/2012,R,BLACHERE ILLUMINATION         
2012 - APR,Central Services,Fully rechargeable Overheads,Press and Public Relations.             ,A02026,Supplies & Services           ,Grants and Subscriptions      ,DJ04,Subscriptions,38,600,3/30/2012,R,FLAME LIMITED                 
2012 - APR,Central Services,Fully rechargeable Overheads,Press and Public Relations.             ,A02026,Supplies & Services           ,Grants and Subscriptions      ,DJ04,Subscriptions,39,"1,975.00",4/19/2012,R,NEWSPAPER LICENSING AGENCY LTD
2012 - APR,CS -Oth Operating Inc & Expend,Trading A/c Surpluses/Deficits,Prtng Jobs - Ext Agncy                  ,A03041,Supplies & Services           ,Prntng Stnry Gen Off Exp      ,DE01,External Printing,40,995,3/30/2012,R,BELMONT PRESS LIMITED         
2012 - APR,CS -Oth Operating Inc & Expend,Trading A/c Surpluses/Deficits,PrintUnit-HighVolPhtcopying             ,A03042,Third Party Payments          ,Private Contractors           ,EH02,Miscellaneous Hired Services,41,"-8,642.40",3/31/2012,R,XEROX(UK)LTD                  
2012 - APR,CS -Oth Operating Inc & Expend,Trading A/c Surpluses/Deficits,PrintUnit-HighVolPhtcopying             ,A03042,Third Party Payments          ,Private Contractors           ,EH02,Miscellaneous Hired Services,42,"7,912.38",3/31/2012,R,XEROX(UK)LTD                  
2012 - APR,CS -Oth Operating Inc & Expend,Trading A/c Surpluses/Deficits,Translation Services                    ,A04060,Supplies & Services           ,Services                      ,DF45,Payment of Sessional workers,43,"1,110.00",3/23/2012,R,COSMIC EUROPE LIMTED          
2012 - APR,Central Services,Fully rechargeable Overheads,Merton Link                             ,A04070,Supplies & Services           ,Comms and Computing           ,DG15,Network Maintenance,44,873,4/2/2012,R,NORTHGATE  INFORMATION SOLUT. 
2012 - APR,Central Services,Democ' Representation & Mgt,PERFORMANCE REWARD GRANT            ,A04081,Supplies & Services           ,Grants and Subscriptions      ,DJ01,Grants,45,"9,000.00",4/2/2012,R,MERTON STREET PASTORS         
2012 - APR,Central Services,Democ' Representation & Mgt,PERFORMANCE REWARD GRANT            ,A04081,Supplies & Services           ,Grants and Subscriptions      ,DJ01,Grants,46,"107,000.00",4/2/2012,R,MERTON VOLUNTARY SERV COUNCIL 
2012 - APR,Central Services,Gen Grants Bequest & Donations,VOLUNTARY SECTOR COORDINATION   ,A04082,Supplies & Services           ,Grants and Subscriptions      ,DJ01,Grants,47,"12,457.25",4/5/2012,R,VOLUNTEER CENTRE MERTON       
2012 - APR,Central Services,Gen Grants Bequest & Donations,VOLUNTARY SECTOR COORDINATION   ,A04082,Supplies & Services           ,Grants and Subscriptions      ,DJ01,Grants,48,"3,355.75",4/5/2012,R,MERTON COMMUNITY TRANSPORT    
2012 - APR,Central Services,Gen Grants Bequest & Donations,VOLUNTARY SECTOR COORDINATION   ,A04082,Supplies & Services           ,Grants and Subscriptions      ,DJ01,Grants,49,"15,068.75",4/5/2012,R,VICTIM SUPPORT                
2012 - APR,Central Services,Gen Grants Bequest & Donations,VOLUNTARY SECTOR COORDINATION   ,A04082,Supplies & Services           ,Grants and Subscriptions      ,DJ01,Grants,50,"96,033.75",4/5/2012,R,MERTON CITIZEN ADVICE BUREAU  
2012 - APR,Central Services,Gen Grants Bequest & Donations,VOLUNTARY SECTOR COORDINATION   ,A04082,Supplies & Services           ,Grants and Subscriptions      ,DJ01,Grants,51,"21,091.50",4/5/2012,R,MERTON VOLUNTARY SERV COUNCIL 
2012 - APR,Central Services,Gen Grants Bequest & Donations,VOLUNTARY SECTOR COORDINATION   ,A04082,Supplies & Services           ,Grants and Subscriptions      ,DJ01,Grants,52,"9,750.00",4/5/2012,R,SW LONDON LAW CENTRES         
2012 - APR,Central Services,Emergency Planning (CS),Emergency Planning                      ,B06138,Premises Related Expenditure  ,RepairsAlterations&MtceOfBldgs,BA62,Emergency Call-Out,53,"2,000.00",4/17/2012,R,BRITISH RED CROSS SOCIETY     
2012 - APR,Central Services,Emergency Planning (CS),Emergency Planning                      ,B06138,Supplies & Services           ,Comms and Computing           ,DG07,Computer Software,54,"2,200.00",3/29/2012,R,MYRIAD OPTIMA LTD             
2012 - APR,Central Services,Registr'n Birth/Death/Marriage,Reg of B. Deaths & Ms                   ,B06143,Premises Related Expenditure  ,RepairsAlterations&MtceOfBldgs,BA06,Repairs & Maintenance General,55,"2,070.00",3/8/2012,R,KH FLOORING LTD               
2012 - APR,Central Services,Registr'n Birth/Death/Marriage,Reg of B. Deaths & Ms                   ,B06143,Supplies & Services           ,Services                      ,DF03,Consultants,56,"16,875.00",2/29/2012,R,REDQUADRANT LTD               
2012 - APR,Central Services,Fully rechargeable Overheads,Learning and Development                ,B06146,Employees                     ,Indirect Employee Expenses    ,AB56,Internal Training Costs,57,560,2/9/2012,R,SAC INTERNATIONAL             
2012 - APR,Central Services,Fully rechargeable Overheads,Learning and Development                ,B06146,Employees                     ,Indirect Employee Expenses    ,AB56,Internal Training Costs,58,520,1/24/2012,R,TOTAL COURSES                 
2012 - APR,Central Services,Fully rechargeable Overheads,Learning and Development                ,B06146,Employees                     ,Indirect Employee Expenses    ,AB56,Internal Training Costs,59,"1,550.00",2/13/2012,R,ILX GROUP PLC                 
2012 - APR,Central Services,Fully rechargeable Overheads,Learning and Development                ,B06146,Employees                     ,Indirect Employee Expenses    ,AB56,Internal Training Costs,60,900,1/24/2012,R,TOTAL COURSES                 
2012 - APR,Central Services,Fully rechargeable Overheads,Learning and Development                ,B06146,Employees                     ,Indirect Employee Expenses    ,AB57,External Training Costs,61,"2,320.00",3/29/2012,R,TOTAL COURSES                 
2012 - APR,CS -Oth Operating Inc & Expend,Trading A/c Surpluses/Deficits,CHAS Scheme                             ,B06150,Supplies & Services           ,Services                      ,DF88,Assessor Fees,62,845,4/1/2012,R,REDACTED
2012 - APR,CS -Oth Operating Inc & Expend,Trading A/c Surpluses/Deficits,CHAS Scheme                             ,B06150,Supplies & Services           ,Services                      ,DF88,Assessor Fees,63,"1,261.72",3/31/2012,R,REDACTED
2012 - APR,CS -Oth Operating Inc & Expend,Trading A/c Surpluses/Deficits,CHAS Scheme                             ,B06150,Supplies & Services           ,Services                      ,DF88,Assessor Fees,64,"2,165.00",4/1/2012,R,REDACTED
2012 - APR,CS -Oth Operating Inc & Expend,Trading A/c Surpluses/Deficits,CHAS Scheme                             ,B06150,Supplies & Services           ,Services                      ,DF88,Assessor Fees,65,"1,260.00",4/3/2012,R,REDACTED
2012 - APR,CS -Oth Operating Inc & Expend,Trading A/c Surpluses/Deficits,CHAS Scheme                             ,B06150,Supplies & Services           ,Services                      ,DF88,Assessor Fees,66,"1,050.00",4/2/2012,R,REDACTED
2012 - APR,CS -Oth Operating Inc & Expend,Trading A/c Surpluses/Deficits,CHAS Scheme                             ,B06150,Supplies & Services           ,Services                      ,DF88,Assessor Fees,67,"2,790.00",3/31/2012,R,SOUTH EAST HEALTH & SAFETY LTD
2012 - APR,CS -Oth Operating Inc & Expend,Trading A/c Surpluses/Deficits,CHAS Scheme                             ,B06150,Supplies & Services           ,Services                      ,DF88,Assessor Fees,68,630,3/31/2012,R,REDACTED
2012 - APR,CS -Oth Operating Inc & Expend,Trading A/c Surpluses/Deficits,CHAS Scheme                             ,B06150,Supplies & Services           ,Services                      ,DF88,Assessor Fees,69,715,3/31/2012,R,REDACTED
2012 - APR,CS -Oth Operating Inc & Expend,Trading A/c Surpluses/Deficits,CHAS Scheme                             ,B06150,Supplies & Services           ,Services                      ,DF88,Assessor Fees,70,"1,590.00",3/31/2012,R,REDACTED
2012 - APR,CS -Oth Operating Inc & Expend,Trading A/c Surpluses/Deficits,CHAS Scheme                             ,B06150,Supplies & Services           ,Services                      ,DF88,Assessor Fees,71,"2,050.00",3/21/2012,R,HOLLYGLADE LTD T/A BEACONRISK 
2012 - APR,CS -Oth Operating Inc & Expend,Trading A/c Surpluses/Deficits,CHAS Scheme                             ,B06150,Supplies & Services           ,Services                      ,DF88,Assessor Fees,72,"2,745.00",3/30/2012,R,REDACTED
2012 - APR,CS -Oth Operating Inc & Expend,Trading A/c Surpluses/Deficits,CHAS Scheme                             ,B06150,Supplies & Services           ,Services                      ,DF88,Assessor Fees,73,"2,435.00",3/31/2012,R,REDACTED
2012 - APR,CS -Oth Operating Inc & Expend,Trading A/c Surpluses/Deficits,CHAS Scheme                             ,B06150,Supplies & Services           ,Services                      ,DF88,Assessor Fees,74,"1,125.00",4/3/2012,R,REDACTED
2012 - APR,CS -Oth Operating Inc & Expend,Trading A/c Surpluses/Deficits,CHAS Scheme                             ,B06150,Supplies & Services           ,Services                      ,DF88,Assessor Fees,75,650,3/31/2012,R,REDACTED
2012 - APR,CS -Oth Operating Inc & Expend,Trading A/c Surpluses/Deficits,CHAS Scheme                             ,B06150,Supplies & Services           ,Services                      ,DF88,Assessor Fees,76,"1,300.00",3/31/2012,R,REDACTED
2012 - APR,CS -Oth Operating Inc & Expend,Trading A/c Surpluses/Deficits,CHAS Scheme                             ,B06150,Supplies & Services           ,Services                      ,DF88,Assessor Fees,77,"1,310.00",4/2/2012,R,REDACTED
2012 - APR,CS -Oth Operating Inc & Expend,Trading A/c Surpluses/Deficits,CHAS Scheme                             ,B06150,Supplies & Services           ,Services                      ,DF88,Assessor Fees,78,"1,155.00",3/30/2012,R,REDACTED
2012 - APR,CS -Oth Operating Inc & Expend,Trading A/c Surpluses/Deficits,CHAS Scheme                             ,B06150,Supplies & Services           ,Services                      ,DF88,Assessor Fees,79,809.72,3/31/2012,R,REDACTED
2012 - APR,CS -Oth Operating Inc & Expend,Trading A/c Surpluses/Deficits,CHAS Scheme                             ,B06150,Supplies & Services           ,Services                      ,DF88,Assessor Fees,80,"1,255.00",3/30/2012,R,WOODS CONSULTANCY SERVICES LTD
2012 - APR,CS -Oth Operating Inc & Expend,Trading A/c Surpluses/Deficits,CHAS Scheme                             ,B06150,Supplies & Services           ,Services                      ,DF88,Assessor Fees,81,626.13,3/31/2012,R,REDACTED
2012 - APR,CS -Oth Operating Inc & Expend,Trading A/c Surpluses/Deficits,CHAS Scheme                             ,B06150,Supplies & Services           ,Services                      ,DF88,Assessor Fees,82,545,3/31/2012,R,REDACTED
2012 - APR,CS -Oth Operating Inc & Expend,Trading A/c Surpluses/Deficits,CHAS Scheme                             ,B06150,Supplies & Services           ,Services                      ,DF88,Assessor Fees,83,710,3/31/2012,R,REDACTED
2012 - APR,CS -Oth Operating Inc & Expend,Trading A/c Surpluses/Deficits,CHAS Scheme                             ,B06150,Supplies & Services           ,Services                      ,DF88,Assessor Fees,84,"3,045.00",3/31/2012,R,REDACTED
2012 - APR,CS -Oth Operating Inc & Expend,Trading A/c Surpluses/Deficits,CHAS Scheme                             ,B06150,Supplies & Services           ,Services                      ,DF88,Assessor Fees,85,"2,725.00",3/28/2012,R,MGW SAFETY SERVICES           
2012 - APR,CS -Oth Operating Inc & Expend,Trading A/c Surpluses/Deficits,CHAS Scheme                             ,B06150,Supplies & Services           ,Services                      ,DF88,Assessor Fees,86,675,3/30/2012,R,REDACTED
2012 - APR,CS -Oth Operating Inc & Expend,Trading A/c Surpluses/Deficits,CHAS Scheme                             ,B06150,Supplies & Services           ,Services                      ,DF88,Assessor Fees,87,"1,965.00",4/1/2012,R,REDACTED
2012 - APR,CS -Oth Operating Inc & Expend,Trading A/c Surpluses/Deficits,CHAS Scheme                             ,B06150,Supplies & Services           ,Services                      ,DF88,Assessor Fees,88,"2,340.00",3/30/2012,R,STALLARD KANE ASSOCIATES LTD  
2012 - APR,CS -Oth Operating Inc & Expend,Trading A/c Surpluses/Deficits,CHAS Scheme                             ,B06150,Supplies & Services           ,Services                      ,DF88,Assessor Fees,89,"1,130.00",4/10/2012,R,REDACTED
2012 - APR,CS -Oth Operating Inc & Expend,Trading A/c Surpluses/Deficits,CHAS Scheme                             ,B06150,Supplies & Services           ,Services                      ,DF88,Assessor Fees,90,"1,415.00",4/12/2012,R,REDACTED
2012 - APR,CS -Oth Operating Inc & Expend,Trading A/c Surpluses/Deficits,CHAS Scheme                             ,B06150,Supplies & Services           ,Services                      ,DF88,Assessor Fees,91,"1,035.00",4/9/2012,R,REDACTED
2012 - APR,CS -Oth Operating Inc & Expend,Trading A/c Surpluses/Deficits,CHAS Scheme                             ,B06150,Supplies & Services           ,Services                      ,DF88,Assessor Fees,92,511.42,4/4/2012,R,REDACTED
2012 - APR,CS -Oth Operating Inc & Expend,Trading A/c Surpluses/Deficits,CHAS Scheme                             ,B06150,Supplies & Services           ,Services                      ,DF88,Assessor Fees,93,"1,600.00",4/10/2012,R,REDACTED
2012 - APR,CS -Oth Operating Inc & Expend,Trading A/c Surpluses/Deficits,CHAS Scheme                             ,B06150,Supplies & Services           ,Services                      ,DF88,Assessor Fees,94,510,4/10/2012,R,REDACTED
2012 - APR,CS -Oth Operating Inc & Expend,Trading A/c Surpluses/Deficits,CHAS Scheme                             ,B06150,Supplies & Services           ,Services                      ,DF88,Assessor Fees,95,940,4/6/2012,R,REDACTED
2012 - APR,CS -Oth Operating Inc & Expend,Trading A/c Surpluses/Deficits,CHAS Scheme                             ,B06150,Supplies & Services           ,Services                      ,DF88,Assessor Fees,96,"4,635.00",4/1/2012,R,ARC ASSOCIATES (UK)           
2012 - APR,CS -Oth Operating Inc & Expend,Trading A/c Surpluses/Deficits,CHAS Scheme                             ,B06150,Supplies & Services           ,Services                      ,DF88,Assessor Fees,97,"1,635.00",4/9/2012,R,REDACTED
2012 - APR,CS -Oth Operating Inc & Expend,Trading A/c Surpluses/Deficits,CHAS Scheme                             ,B06150,Supplies & Services           ,Services                      ,DF88,Assessor Fees,98,500,4/14/2012,R,REDACTED
2012 - APR,CS -Oth Operating Inc & Expend,Trading A/c Surpluses/Deficits,CHAS Scheme                             ,B06150,Supplies & Services           ,Services                      ,DF88,Assessor Fees,99,697.19,4/10/2012,R,REDACTED
2012 - APR,CS -Oth Operating Inc & Expend,Trading A/c Surpluses/Deficits,CHAS Scheme                             ,B06150,Supplies & Services           ,Services                      ,DF88,Assessor Fees,100,750,3/30/2012,R,REDACTED
2012 - APR,CS -Oth Operating Inc & Expend,Trading A/c Surpluses/Deficits,CHAS Scheme                             ,B06150,Supplies & Services           ,Services                      ,DF88,Assessor Fees,101,585,4/18/2012,R,REDACTED
2012 - APR,CS -Oth Operating Inc & Expend,Trading A/c Surpluses/Deficits,CHAS Scheme                             ,B06150,Supplies & Services           ,Services                      ,DF88,Assessor Fees,102,"1,145.00",4/15/2012,R,REDACTED
2012 - APR,CS -Oth Operating Inc & Expend,Trading A/c Surpluses/Deficits,CHAS Scheme                             ,B06150,Supplies & Services           ,Services                      ,DF88,Assessor Fees,103,"1,025.00",4/16/2012,R,REDACTED
2012 - APR,CS -Oth Operating Inc & Expend,Trading A/c Surpluses/Deficits,CHAS Scheme                             ,B06150,Supplies & Services           ,Services                      ,DF88,Assessor Fees,104,"1,601.52",4/18/2012,R,TERN ASSOCIATES LTD           
2012 - APR,CS -Oth Operating Inc & Expend,Trading A/c Surpluses/Deficits,CHAS Scheme                             ,B06150,Supplies & Services           ,Services                      ,DF88,Assessor Fees,105,"1,665.00",4/13/2012,R,REDACTED
2012 - APR,CS -Oth Operating Inc & Expend,Trading A/c Surpluses/Deficits,CHAS Scheme                             ,B06150,Supplies & Services           ,Services                      ,DF88,Assessor Fees,106,670,4/20/2012,R,REDACTED
2012 - APR,CS -Oth Operating Inc & Expend,Trading A/c Surpluses/Deficits,CHAS Scheme                             ,B06150,Supplies & Services           ,Services                      ,DF88,Assessor Fees,107,"1,315.00",4/18/2012,R,REDACTED
2012 - APR,CS -Oth Operating Inc & Expend,Trading A/c Surpluses/Deficits,CHAS Scheme                             ,B06150,Supplies & Services           ,Services                      ,DF88,Assessor Fees,108,"1,220.00",4/17/2012,R,REDACTED
2012 - APR,CS -Oth Operating Inc & Expend,Trading A/c Surpluses/Deficits,CHAS Scheme                             ,B06150,Supplies & Services           ,Services                      ,DF88,Assessor Fees,109,735,4/19/2012,R,REDACTED
2012 - APR,CS -Oth Operating Inc & Expend,Trading A/c Surpluses/Deficits,CHAS Scheme                             ,B06150,Supplies & Services           ,Services                      ,DF88,Assessor Fees,110,"1,010.00",4/23/2012,R,REDACTED
2012 - APR,CS -Oth Operating Inc & Expend,Trading A/c Surpluses/Deficits,CHAS Scheme                             ,B06150,Supplies & Services           ,Services                      ,DF88,Assessor Fees,111,"1,090.00",4/22/2012,R,REDACTED
2012 - APR,CS -Oth Operating Inc & Expend,Trading A/c Surpluses/Deficits,CHAS Scheme                             ,B06150,Supplies & Services           ,Services                      ,DF88,Assessor Fees,112,580,4/23/2012,R,REDACTED
2012 - APR,CS -Oth Operating Inc & Expend,Trading A/c Surpluses/Deficits,CHAS Scheme                             ,B06150,Supplies & Services           ,Services                      ,DF88,Assessor Fees,113,"1,155.00",4/5/2012,R,REDACTED
2012 - APR,CS -Oth Operating Inc & Expend,Trading A/c Surpluses/Deficits,CHAS Scheme                             ,B06150,Supplies & Services           ,Services                      ,DF88,Assessor Fees,114,545,4/23/2012,R,REDACTED
2012 - APR,Central Services,Fully rechargeable Overheads,Strategic Personnel Management          ,B06151,Supplies & Services           ,Expenses                      ,DH50,Special Projects,115,"93,876.29",2/16/2012,R,LONDON BOROUGH OF SUTTON      
2012 - APR,,,CCTV (match funding)                    ,CE002EA,Vehicles Plant Equipment and Machinery,,D3,Equipment,116,"8,706.91",3/14/2012,C,EUROVIA INFASTRUCTURE LTD     
2012 - APR,,,Disabled Facilities Grant DCLG          ,CE004RA,Other Capital Expenditure,,E1,Grants,117,"1,225.93",4/5/2012,C,CBS ADAPTATION                
2012 - APR,,,Disabled Facilities Grant DCLG          ,CE004RA,Other Capital Expenditure,,E1,Grants,118,638.28,4/13/2012,C,CBS ADAPTATION                
2012 - APR,,,Disabled Facilities Grant DCLG          ,CE004RA,Other Capital Expenditure,,E1,Grants,119,"1,170.00",4/13/2012,C,TBS ADAPTATIONS LTD           
2012 - APR,,,Disabled Facilities Grant DCLG          ,CE004RA,Other Capital Expenditure,,E1,Grants,120,"2,760.40",4/24/2012,C,REDACTED
2012 - APR,,,Disabled Facilities Grant DCLG          ,CE004RA,Other Capital Expenditure,,E1,Grants,121,"7,568.00",4/26/2012,C,REDACTED
2012 - APR,,,Disabled Facilities Grant DCLG          ,CE004RA,Other Capital Expenditure,,E1,Grants,122,"2,349.25",4/30/2012,C,REDACTED
2012 - APR,,,Disabled Facilities Grant DCLG          ,CE004RA,Other Capital Expenditure,,E1,Grants,123,"9,629.40",4/30/2012,C,DAKIN CONSTRUCTION LTD        
2012 - APR,,,Disabled Facilities Grant DCLG          ,CE004RA,Other Capital Expenditure,,E1,Grants,124,"6,985.30",4/30/2012,C,CHEAM DISABILITY SOLUTIONS    
2012 - APR,,,Disabled Facilities Grant DCLG          ,CE004RA,Other Capital Expenditure,,E1,Grants,125,"1,389.16",4/30/2012,C,CBS ADAPTATION                
2012 - APR,,,Disabled Facilities Grant DCLG          ,CE004RA,Other Capital Expenditure,,E1,Grants,126,"3,443.20",4/30/2012,C,CBS ADAPTATION                
2012 - APR,,,Small Repairs Grant                     ,CE005RA,Other Capital Expenditure,,E1,Grants,127,"4,000.00",4/10/2012,C,G S ROOFING                   
2012 - APR,,,Small Repairs Grant                     ,CE005RA,Other Capital Expenditure,,E1,Grants,128,"4,000.00",4/24/2012,C,S&S CONSTRUCTION              
2012 - APR,,,Small Repairs Grant                     ,CE005RA,Other Capital Expenditure,,E1,Grants,129,"4,000.00",4/24/2012,C,LONDON & LOCAL MANUFACT CO LTD
2012 - APR,,,WallRep ChrchLn& JohnInnes Pks          ,CE017SA,New Construction Conversion and Renovation,,B1,Design and Supervision - Consultants Fee,130,"2,250.00",3/15/2012,C,REDACTED
2012 - APR,,,Trees for Cities                        ,CE020SA,Acquisition of Land and Existing Buildings,,A4,Other Acquisition Costs,131,"2,928.00",3/22/2012,C,TRANSF'M L/SCAPE DESIGN & CONS
2012 - APR,,,Trees for Cities                        ,CE020SA,Acquisition of Land and Existing Buildings,,A4,Other Acquisition Costs,132,"5,000.00",3/22/2012,C,TRANSF'M L/SCAPE DESIGN & CONS
2012 - APR,,,Bridge Inspection                       ,CE021SA,New Construction Conversion and Renovation,,B1,Design and Supervision - Consultants Fee,133,500,3/27/2012,C,HYDER CONSULTING (UK) LTD     
2012 - APR,,,Bridge Inspection                       ,CE021SA,New Construction Conversion and Renovation,,B1,Design and Supervision - Consultants Fee,134,"1,050.00",3/26/2012,C,HYDER CONSULTING (UK) LTD     
2012 - APR,,,Bridge Inspection                       ,CE021SA,New Construction Conversion and Renovation,,B4,Site Works - Contractor,135,"2,593.48",4/9/2012,C,FM CONWAY LTD                 
2012 - APR,,,Highways bridges & structures           ,CE025FA,New Construction Conversion and Renovation,,B1,Design and Supervision - Consultants Fee,136,"9,747.84",4/12/2012,C,AECOM LIMITED                 
2012 - APR,,,Highways bridges & structures           ,CE025FA,New Construction Conversion and Renovation,,B1,Design and Supervision - Consultants Fee,137,"2,388.53",4/12/2012,C,AECOM LIMITED                 
2012 - APR,,,Highways bridges & structures           ,CE025FA,New Construction Conversion and Renovation,,B4,Site Works - Contractor,138,"83,434.71",3/30/2012,C,FM CONWAY LTD                 
2012 - APR,,,Borough Roads Maintenance               ,CE026FA,New Construction Conversion and Renovation,,C3,Public Notices,139,"1,039.50",4/14/2012,C,NEWSQUEST (LONDON)LTD         
2012 - APR,,,Borough Roads Maintenance               ,CE026FA,New Construction Conversion and Renovation,,C3,Public Notices,140,588,4/7/2012,C,NEWSQUEST (LONDON)LTD         
2012 - APR,,,Wimbledon Bridge                        ,CE032FA,New Construction Conversion and Renovation,,B1,Design and Supervision - Consultants Fee,141,"11,500.00",3/27/2012,C,HYDER CONSULTING (UK) LTD     
2012 - APR,,,Wimbledon Bridge                        ,CE032FA,New Construction Conversion and Renovation,,B1,Design and Supervision - Consultants Fee,142,"1,791.00",3/27/2012,C,HYDER CONSULTING (UK) LTD     
2012 - APR,,,Wimbledon Bridge                        ,CE032FA,New Construction Conversion and Renovation,,B1,Design and Supervision - Consultants Fee,143,"5,380.00",3/27/2012,C,HYDER CONSULTING (UK) LTD     
2012 - APR,,,Wimbledon Bridge                        ,CE032FA,New Construction Conversion and Renovation,,B1,Design and Supervision - Consultants Fee,144,"15,142.00",3/27/2012,C,HYDER CONSULTING (UK) LTD     
2012 - APR,,,Wimbledon Bridge                        ,CE032FA,New Construction Conversion and Renovation,,B4,Site Works - Contractor,145,"103,179.50",3/30/2012,C,FM CONWAY LTD                 
2012 - APR,,,B497/8 Lombard Rd Improvements          ,CE034FA,New Construction Conversion and Renovation,,B1,Design and Supervision - Consultants Fee,146,"1,170.00",10/17/2011,C,GOODWILL ASSOCIATES LIMITED   
2012 - APR,,,Leisure Centre Plant & Machine          ,CE038MA,New Construction Conversion and Renovation,,B5,Site Works - Suppliers,147,"9,639.10",3/30/2012,C,NEW WIMBLEDON THEATRE         
2012 - APR,,,Low Carbon Zone                         ,CE052FA,New Construction Conversion and Renovation,,B4,Site Works - Contractor,148,"1,241.00",3/30/2012,C,C FLETCHER SONS & CO LTD      
2012 - APR,,,Low Carbon Zone                         ,CE052FA,New Construction Conversion and Renovation,,B4,Site Works - Contractor,149,"2,378.99",3/29/2012,C,CDWM LIMITED                  
2012 - APR,,,Low Carbon Zone                         ,CE052FA,New Construction Conversion and Renovation,,B4,Site Works - Contractor,150,"13,164.00",3/28/2012,C,C FLETCHER SONS & CO LTD      
2012 - APR,,,Low Carbon Zone                         ,CE052FA,New Construction Conversion and Renovation,,B4,Site Works - Contractor,151,"1,397.00",3/28/2012,C,LION INSULATION               
2012 - APR,,,Improve markings & road signs           ,CE066EA,New Construction Conversion and Renovation,,B6,Site Works - Other Costs,152,643,4/16/2012,C,UK POWER NETWORKS (OPERATIONS)
2012 - APR,,,Renewal of WTC Paving                   ,CE066FC,New Construction Conversion and Renovation,,B4,Site Works - Contractor,153,"1,700.96",3/29/2012,C,FM CONWAY LTD                 
2012 - APR,,,Renewal of WTC Paving                   ,CE066FC,New Construction Conversion and Renovation,,B4,Site Works - Contractor,154,"38,079.20",3/29/2012,C,FM CONWAY LTD                 
2012 - APR,,,Renewal of WTC Paving                   ,CE066FC,New Construction Conversion and Renovation,,B4,Site Works - Contractor,155,"3,287.25",3/29/2012,C,FM CONWAY LTD                 
2012 - APR,,,Renewal of WTC Paving                   ,CE066FC,New Construction Conversion and Renovation,,B4,Site Works - Contractor,156,"4,350.60",3/29/2012,C,FM CONWAY LTD                 
2012 - APR,,,Street scene enhancements               ,CE066FE,New Construction Conversion and Renovation,,B1,Design and Supervision - Consultants Fee,157,870,3/28/2012,C,REDACTED
2012 - APR,,,Street scene enhancements               ,CE066FE,New Construction Conversion and Renovation,,B4,Site Works - Contractor,158,700,3/29/2012,C,TAYLOR BUILDING COMPANY LTD   
2012 - APR,,,Street scene enhancements               ,CE066FE,New Construction Conversion and Renovation,,B4,Site Works - Contractor,159,"18,380.00",3/29/2012,C,EUROPEAN ASBESTOS SERVICES    
2012 - APR,,,B591a Street Scene Improvement          ,CE066FH,New Construction Conversion and Renovation,,B2,Design and Supervision - Site Surveys,160,950,4/12/2012,C,THE SAFETY FORUM LTD          
2012 - APR,,,Area Traffic calming measures           ,CE070FA,New Construction Conversion and Renovation,,B6,Site Works - Other Costs,161,643,4/13/2012,C,UK POWER NETWORKS (OPERATIONS)
2012 - APR,,,B600 Wim Town Centre trans imp          ,CE085FM,New Construction Conversion and Renovation,,B4,Site Works - Contractor,162,995.24,3/29/2012,C,FM CONWAY LTD                 
2012 - APR,,,Alley Gating Scheme - Fly Tip           ,CE087FA,Other Capital Expenditure,,E1,Grants,163,"1,730.97",3/29/2012,C,A&S ALLEY GATE ASSOCIATION    
2012 - APR,,,Alley Gating Scheme - Fly Tip           ,CE087FA,Other Capital Expenditure,,E1,Grants,164,661.5,3/29/2012,C,DAYBROOK ROAD ALLEY GATE CLUB 
2012 - APR,,,Alley Gating Scheme - Fly Tip           ,CE087FA,Other Capital Expenditure,,E1,Grants,165,891,4/5/2012,C,P J HARVEY & CO LTD           
2012 - APR,,,Alley Gating Scheme - Fly Tip           ,CE087FA,Other Capital Expenditure,,E1,Grants,166,812.27,4/5/2012,C,COLWOOD CHRISTCHURCH ALLEY GAT
2012 - APR,,,Re-use/recycling Site Maintena          ,CE090SA,Acquisition of Land and Existing Buildings,,A4,Other Acquisition Costs,167,"1,164.00",3/29/2012,C,SPIDER UK LTD                 
2012 - APR,,,Re-use/recycling Site Maintena          ,CE090SA,Acquisition of Land and Existing Buildings,,A4,Other Acquisition Costs,168,"5,100.00",3/29/2012,C,SPIDER UK LTD                 
2012 - APR,,,Waste Phase B - Replace RCVs            ,CE092EA,New Construction Conversion and Renovation,,B5,Site Works - Suppliers,169,"5,400.00",3/27/2012,C,BROXAP LIMITED                
2012 - APR,,,Waste Phase B - Replace RCVs            ,CE092EA,New Construction Conversion and Renovation,,B5,Site Works - Suppliers,170,"11,850.00",4/19/2012,C,BROXAP LIMITED                
2012 - APR,,,Kingston/Hartfield Rd StratCor          ,CE104FC,New Construction Conversion and Renovation,,B6,Site Works - Other Costs,171,797,4/13/2012,C,UK POWER NETWORKS (OPERATIONS)
2012 - APR,,,Wimbledon Town Centre                   ,CE104FJ,New Construction Conversion and Renovation,,B4,Site Works - Contractor,172,"4,962.82",3/28/2012,C,FM CONWAY LTD                 
2012 - APR,,,Wimbledon Town Centre                   ,CE104FJ,New Construction Conversion and Renovation,,B4,Site Works - Contractor,173,"1,739.24",3/29/2012,C,FM CONWAY LTD                 
2012 - APR,,,School & Road Safety Campaigns          ,CE104RC,Other Capital Expenditure,,E4,TFL Other,174,"4,805.00",3/29/2012,C,LIVING STREETS SERVICES LTD   
2012 - APR,,,School & Road Safety Campaigns          ,CE104RC,Other Capital Expenditure,,E4,TFL Other,175,503.5,3/30/2012,C,TSO (THE STATIONERY OFFICE)   
2012 - APR,,,Car Clubs                               ,CE104RF,New Construction Conversion and Renovation,,C3,Public Notices,176,514.6,4/5/2012,C,TMP WORLDWIDE LTD             
2012 - APR,,,Wim TC Accessibility & Streets          ,CE106FA,New Construction Conversion and Renovation,,B4,Site Works - Contractor,177,"75,630.81",3/29/2012,C,FM CONWAY LTD                 
2012 - APR,,,Highway Asset Management                ,CE107EA,Vehicles Plant Equipment and Machinery,,D5,Software,178,"2,200.00",2/29/2012,C,REDACTED
2012 - APR,,,Leisure Services Parks&OpenSp           ,CE110SA,New Construction Conversion and Renovation,,B4,Site Works - Contractor,179,"3,530.00",3/29/2012,C,TAYLOR BUILDING COMPANY LTD   
2012 - APR,,,John Innes Rec/Rutlish wall             ,CE110SB,Other Capital Expenditure,,E4,TFL Other,180,"37,606.21",1/31/2012,C,TRITON BUILDING CONSERVATION  
2012 - APR,,,Local Transport Schemes                 ,CE112FA,Other Capital Expenditure,,E4,TFL Other,181,"15,815.34",3/9/2012,C,REDACTED
2012 - APR,,,Marathon Trust BMX Track                ,CE114SA,New Construction Conversion and Renovation,,B1,Design and Supervision - Consultants Fee,182,"3,999.00",2/29/2012,C,MATERIALS SCIENCE CONS. LTD   
2012 - APR,,,Marathon Trust BMX Track                ,CE114SA,New Construction Conversion and Renovation,,B4,Site Works - Contractor,183,"75,430.00",3/28/2012,C,CLARK AND KENT CONTRACTORS    
2012 - APR,,,Wimbledon Station Network Rail          ,CE115FA,New Construction Conversion and Renovation,,B4,Site Works - Contractor,184,769.21,3/29/2012,C,FM CONWAY LTD                 
2012 - APR,,,Wimbledon Station Network Rail          ,CE115FA,New Construction Conversion and Renovation,,B4,Site Works - Contractor,185,"8,885.41",3/29/2012,C,FM CONWAY LTD                 
2012 - APR,,,B599-Recycle bins Raynes Park           ,CE121EA,Vehicles Plant Equipment and Machinery,,D3,Equipment,186,"2,098.40",3/29/2012,C,EGBERT H TAYLOR & CO LTD      
2012 - APR,,,Empty Homes Grant                       ,CE122RA,Other Capital Expenditure,,E1,Grants,187,"22,000.00",4/12/2012,C,REDACTED
2012 - APR,,,Empty Homes Grant                       ,CE122RA,Other Capital Expenditure,,E1,Grants,188,"26,095.65",4/12/2012,C,KNK BUILDING SERVICES LTD     
2012 - APR,,,Empty Homes Grant                       ,CE122RA,Other Capital Expenditure,,E1,Grants,189,"18,000.00",4/20/2012,C,REDACTED
2012 - APR,,,Civic Centre refurbishment              ,CF001AB,New Construction Conversion and Renovation,,B4,Site Works - Contractor,190,790,3/29/2012,C,HART DECORATORS LIMITED       
2012 - APR,,,Civic Centre refurbishment              ,CF001AB,New Construction Conversion and Renovation,,B4,Site Works - Contractor,191,"1,299.10",3/28/2012,C,HART DECORATORS LIMITED       
2012 - APR,,,Civic Centre refurbishment              ,CF001AB,Vehicles Plant Equipment and Machinery,,D3,Equipment,192,900,3/31/2012,C,NETWORK SOLUTIONS INC         
2012 - APR,,,CHP Equipment                           ,CF001AE,New Construction Conversion and Renovation,,B4,Site Works - Contractor,193,"2,819.75",3/26/2012,C,COFELY LIMITED                
2012 - APR,,,Civic C-Fire Alarm Panel                ,CF001AF,New Construction Conversion and Renovation,,B4,Site Works - Contractor,194,"20,000.00",3/26/2012,C,FIRST CHOICE FACILITIES PLC   
2012 - APR,,,Colliers W CC -Insulat Pipewrk          ,CF002BB,New Construction Conversion and Renovation,,B4,Site Works - Contractor,195,542,3/28/2012,C,JHW INSULATION                
2012 - APR,,,Energy Utility Invest to Save           ,CF002SA,New Construction Conversion and Renovation,,B4,Site Works - Contractor,196,"1,568.02",3/26/2012,C,COFELY LIMITED                
2012 - APR,,,Invest to Save schemes-General          ,CF003SA,New Construction Conversion and Renovation,,B4,Site Works - Contractor,197,"1,066.24",3/26/2012,C,COFELY LIMITED                
2012 - APR,,,Invest to Save schemes-General          ,CF003SA,New Construction Conversion and Renovation,,B4,Site Works - Contractor,198,"13,386.45",3/26/2012,C,COFELY LIMITED                
2012 - APR,,,Fixed Electrical Ins. Testing           ,CF004SG,New Construction Conversion and Renovation,,B4,Site Works - Contractor,199,995.08,3/28/2012,C,MORTON FAIRVIEW ELEC SERVICES 
2012 - APR,,,Fixed Electrical Ins. Testing           ,CF004SG,New Construction Conversion and Renovation,,B4,Site Works - Contractor,200,"1,284.93",12/21/2011,C,COFELY LIMITED                
2012 - APR,,,Fixed Electrical Ins. Testing           ,CF004SG,New Construction Conversion and Renovation,,B4,Site Works - Contractor,201,871.65,11/23/2011,C,COFELY LIMITED                
2012 - APR,,,Fixed Electrical Ins. Testing           ,CF004SG,New Construction Conversion and Renovation,,B4,Site Works - Contractor,202,"1,630.80",12/19/2011,C,COFELY LIMITED                
2012 - APR,,,Gifford House Legal Move                ,CF060AB,New Construction Conversion and Renovation,,B4,Site Works - Contractor,203,"35,000.00",3/27/2012,C,DATA TECHNIQUES               
2012 - APR,,,B544 Wimbledon Station Access           ,CGH34KD,New Construction Conversion and Renovation,,2N,Capital main contractor payments,204,"50,000.00",3/29/2012,C,FM CONWAY LTD                 
2012 - APR,,,Fixed Electrical Remedial Work          ,CPRM1LB,New Construction Conversion and Renovation,,2N,Capital main contractor payments,205,"10,827.90",8/31/2011,C,COFELY LIMITED                
2012 - APR,,,St Mary's expansion                     ,CS008RA,New Construction Conversion and Renovation,,B2,Design and Supervision - Site Surveys,206,650,3/30/2012,C,ALDERMORE INVOICE FINANCE     
2012 - APR,,,All Saints/ South Wim YCC exp           ,CS008SB,New Construction Conversion and Renovation,,B1,Design and Supervision - Consultants Fee,207,"11,072.40",3/23/2012,C,ATKINS LIMITED                
2012 - APR,,,All Saints/ South Wim YCC exp           ,CS008SB,New Construction Conversion and Renovation,,B1,Design and Supervision - Consultants Fee,208,"53,429.34",3/23/2012,C,ATKINS LIMITED                
2012 - APR,,,Benedict expansion                      ,CS009AA,New Construction Conversion and Renovation,,B4,Site Works - Contractor,209,"121,054.37",4/2/2012,C,R DURTNELL & SONS LTD         
2012 - APR,,,Benedict expansion                      ,CS009AA,New Construction Conversion and Renovation,,B5,Site Works - Suppliers,210,"1,100.45",4/12/2012,C,BLUE CUBE CONNECTIONS LTD     
2012 - APR,,,Hollymount Permanent Expansion          ,CS011AA,New Construction Conversion and Renovation,,B4,Site Works - Contractor,211,"115,000.00",3/21/2012,C,R DURTNELL & SONS LTD         
2012 - APR,,,Hollymount Permanent Expansion          ,CS011AA,New Construction Conversion and Renovation,,B4,Site Works - Contractor,212,"55,000.00",3/21/2012,C,R DURTNELL & SONS LTD         
2012 - APR,,,Joseph Hood Permanent Expansn           ,CS012AA,New Construction Conversion and Renovation,,B4,Site Works - Contractor,213,"236,000.00",4/5/2012,C,GEE CONSTRUCTION LTD          
2012 - APR,,,Garden PCP                              ,CS013AA,New Construction Conversion and Renovation,,B4,Site Works - Contractor,214,"130,845.20",4/13/2012,C,R DURTNELL & SONS LTD         
2012 - APR,,,Garden PCP                              ,CS013AA,Vehicles Plant Equipment and Machinery,,D3,Equipment,215,776.04,3/29/2012,C,MM-ICT LIMITED                
2012 - APR,,,Links PCP                               ,CS014AA,New Construction Conversion and Renovation,,B4,Site Works - Contractor,216,"8,308.73",3/30/2012,C,THOMAS SINDEN CONSTRUCTION LTD
2012 - APR,,,Links PCP                               ,CS014AA,New Construction Conversion and Renovation,,B4,Site Works - Contractor,217,"5,512.58",3/30/2012,C,THOMAS SINDEN CONSTRUCTION LTD
2012 - APR,,,SS Peter & Paul PCP                     ,CS014RA,New Construction Conversion and Renovation,,B4,Site Works - Contractor,218,"16,686.18",4/10/2012,C,GEE CONSTRUCTION LTD          
2012 - APR,,,SS Peter & Paul PCP                     ,CS014RA,New Construction Conversion and Renovation,,B4,Site Works - Contractor,219,"74,881.17",4/10/2012,C,GEE CONSTRUCTION LTD          
2012 - APR,,,Gorringe Park expansion                 ,CS018AB,New Construction Conversion and Renovation,,B1,Design and Supervision - Consultants Fee,220,"1,250.00",3/28/2012,C,DF20 LTD                      
2012 - APR,,,Gorringe Park expansion                 ,CS018AB,New Construction Conversion and Renovation,,B2,Design and Supervision - Site Surveys,221,"1,875.00",3/28/2012,C,CONISBEE                      
2012 - APR,,,Gorringe Park expansion                 ,CS018AB,New Construction Conversion and Renovation,,B4,Site Works - Contractor,222,"69,000.00",4/2/2012,C,GEE CONSTRUCTION LTD          
2012 - APR,,,Pelham School Expansion                 ,CS023AC,New Construction Conversion and Renovation,,B1,Design and Supervision - Consultants Fee,223,"13,371.25",4/12/2012,C,CURL LA TOURELLE ARCHITECTS   
2012 - APR,,,Cricket Grn Exp-Chapel Orchard          ,CS026AC,New Construction Conversion and Renovation,,B2,Design and Supervision - Site Surveys,224,625,3/30/2012,C,REDACTED
2012 - APR,,,Cricket Green Site                      ,CS027AE,New Construction Conversion and Renovation,,B4,Site Works - Contractor,225,"23,028.43",4/13/2012,C,TAG CONSTRUCTION (UK) LTD     
2012 - APR,,,Dundonald expansion                     ,CS031AC,New Construction Conversion and Renovation,,B1,Design and Supervision - Consultants Fee,226,"1,000.00",3/30/2012,C,SYNERGY CPC LLP               
2012 - APR,,,Dundonald expansion                     ,CS031AC,New Construction Conversion and Renovation,,B1,Design and Supervision - Consultants Fee,227,"1,400.00",3/30/2012,C,SYNERGY CPC LLP               
2012 - APR,,,Dundonald expansion                     ,CS031AC,New Construction Conversion and Renovation,,B2,Design and Supervision - Site Surveys,228,832.6,3/29/2012,C,JMP CONSULTANTS LTD           
2012 - APR,,,Dundonald expansion                     ,CS031AC,New Construction Conversion and Renovation,,B2,Design and Supervision - Site Surveys,229,"1,905.00",4/5/2012,C,JMP CONSULTANTS LTD           
2012 - APR,,,St Anns - Primary                       ,CS032AB,New Construction Conversion and Renovation,,B4,Site Works - Contractor,230,680.34,4/1/2012,C,PORTAKABIN LIMITED            
2012 - APR,,,Wimbledon Chase DCSF grant              ,CS033AA,New Construction Conversion and Renovation,,B1,Design and Supervision - Consultants Fee,231,"14,262.00",3/27/2012,C,HAVERSTOCK ASSOCIATES LLP     
2012 - APR,,,Wimbledon Chase DCSF grant              ,CS033AA,New Construction Conversion and Renovation,,B6,Site Works - Other Costs,232,"11,106.48",4/3/2012,C,PREMIER INTERLINK (WACO UK LTD
2012 - APR,,,Poplar Permanent Expansion              ,CS034AB,New Construction Conversion and Renovation,,B1,Design and Supervision - Consultants Fee,233,"10,046.00",3/30/2012,C,HAVERSTOCK ASSOCIATES LLP     
2012 - APR,,,Liberty Primary School                  ,CS036AA,New Construction Conversion and Renovation,,B2,Design and Supervision - Site Surveys,234,660,4/13/2012,C,ALBURY S.I LTD                
2012 - APR,,,Liberty expansion                       ,CS036AB,New Construction Conversion and Renovation,,B1,Design and Supervision - Consultants Fee,235,"15,064.06",3/30/2012,C,ATKINS LIMITED                
2012 - APR,,,Liberty expansion                       ,CS036AB,New Construction Conversion and Renovation,,B1,Design and Supervision - Consultants Fee,236,900,3/26/2012,C,METHOD CONSULTING LLP         
2012 - APR,,,Liberty expansion                       ,CS036AB,New Construction Conversion and Renovation,,B4,Site Works - Contractor,237,"144,494.65",4/3/2012,C,R DURTNELL & SONS LTD         
2012 - APR,,,Wimbledon Park expansion                ,CS050AA,New Construction Conversion and Renovation,,B1,Design and Supervision - Consultants Fee,238,"41,359.56",4/3/2012,C,CURL LA TOURELLE ARCHITECTS   
2012 - APR,,,Wimbledon Park expansion                ,CS050AA,New Construction Conversion and Renovation,,B1,Design and Supervision - Consultants Fee,239,"2,400.00",3/30/2012,C,SYNERGY CPC LLP               
2012 - APR,,,Wimbledon Park expansion                ,CS050AA,New Construction Conversion and Renovation,,B2,Design and Supervision - Site Surveys,240,"1,740.00",3/29/2012,C,JMP CONSULTANTS LTD           
2012 - APR,,,Wimbledon Park expansion                ,CS050AA,New Construction Conversion and Renovation,,B2,Design and Supervision - Site Surveys,241,"1,000.00",3/30/2012,C,REDACTED
2012 - APR,,,Wimbledon Park expansion                ,CS050AA,New Construction Conversion and Renovation,,B2,Design and Supervision - Site Surveys,242,855,4/5/2012,C,JMP CONSULTANTS LTD           
2012 - APR,,,Breaks-disabled children grant          ,CS085RA,New Construction Conversion and Renovation,,B5,Site Works - Suppliers,243,"54,400.00",3/30/2012,C,MONSTER PLAY                  
2012 - APR,,,Breaks-disabled children grant          ,CS085RA,Vehicles Plant Equipment and Machinery,,D4,Specialist Furniture,244,"11,673.00",3/29/2012,C,PINEAPPLE                     
2012 - APR,,,Breaks-disabled children grant          ,CS085RA,Vehicles Plant Equipment and Machinery,,D4,Specialist Furniture,245,"2,160.00",3/23/2012,C,TOUGH FURNITURE LTD           
2012 - APR,,,IT Equipment                            ,CT006EA,Vehicles Plant Equipment and Machinery,,D3,Equipment,246,"4,880.00",3/13/2012,C,COMPUTERLAND                  
2012 - APR,,,IT Equipment                            ,CT006EA,Vehicles Plant Equipment and Machinery,,D3,Equipment,247,"15,223.92",3/23/2012,C,COMPUTERLAND                  
2012 - APR,,,IT Equipment                            ,CT006EA,Vehicles Plant Equipment and Machinery,,D3,Equipment,248,769.99,3/26/2012,C,INSIGHT DIRECT (UK) LTD       
2012 - APR,,,IT Equipment                            ,CT006EA,Vehicles Plant Equipment and Machinery,,D3,Equipment,249,528,3/15/2012,C,MISCO                         
2012 - APR,,,IT Equipment                            ,CT006EA,Vehicles Plant Equipment and Machinery,,D5,Software,250,"26,000.00",3/28/2012,C,COMPUTERLAND                  
2012 - APR,,,IT Equipment                            ,CT006EA,Other Capital Expenditure,,E3,Miscellaneous Capital Expenditure,251,"1,600.00",2/16/2012,C,BARRON MCCANN PAYMENTS LTD    
2012 - APR,,,IT Equipment                            ,CT006EA,Other Capital Expenditure,,E3,Miscellaneous Capital Expenditure,252,"44,000.00",3/26/2012,C,COMPUTERLAND                  
2012 - APR,,,FMIS Version Upgrade                    ,CT007EC,Other Capital Expenditure,,E3,Miscellaneous Capital Expenditure,253,"3,210.00",12/22/2011,C,INFOR GLOBAL SOLUTIONS-FRIMLEY
2012 - APR,,,FMIS Version Upgrade                    ,CT007EC,Other Capital Expenditure,,E3,Miscellaneous Capital Expenditure,254,"1,070.00",11/25/2011,C,INFOR GLOBAL SOLUTIONS-FRIMLEY
2012 - APR,,,Office 2007 Upgrade                     ,CT007ER,Vehicles Plant Equipment and Machinery,,D5,Software,255,"47,219.20",3/30/2012,C,SOFTCAT LTD                   
2012 - APR,,,Windows 7 Upgrade                       ,CT007ES,Vehicles Plant Equipment and Machinery,,D5,Software,256,"36,000.00",3/28/2012,C,CIVICA SERVICES LTD           
2012 - APR,,,Black Diamond Switch Replacemt          ,CT007ET,Vehicles Plant Equipment and Machinery,,D3,Equipment,257,712.25,4/5/2012,C,CISILION LTD                  
2012 - APR,,,PABX                                    ,CT009EA,Other Capital Expenditure,,E3,Miscellaneous Capital Expenditure,258,"6,503.00",3/29/2012,C,NEC (UK) LTD                  
2012 - APR,,,Stability Networks                      ,CT012ED,Vehicles Plant Equipment and Machinery,,D3,Equipment,259,"15,392.02",4/5/2012,C,VIRGIN MEDIA PAYMENTS LTD     
2012 - APR,,,Stability Networks                      ,CT012ED,Vehicles Plant Equipment and Machinery,,D3,Equipment,260,"11,664.67",4/5/2012,C,HANDD BUSINESS SOLUTIONS LTD  
2012 - APR,,,Stability Networks                      ,CT012ED,Vehicles Plant Equipment and Machinery,,D3,Equipment,261,"3,240.00",4/5/2012,C,HANDD BUSINESS SOLUTIONS LTD  
2012 - APR,,,Stability Networks                      ,CT012ED,Vehicles Plant Equipment and Machinery,,D3,Equipment,262,"17,424.00",4/23/2012,C,ORGANISED COMPUTER SYSTEMS LTD
2012 - APR,,,Stability Networks                      ,CT012ED,Vehicles Plant Equipment and Machinery,,D3,Equipment,263,"7,609.50",4/23/2012,C,ORGANISED COMPUTER SYSTEMS LTD
2012 - APR,,,Stability Networks                      ,CT012ED,Vehicles Plant Equipment and Machinery,,D3,Equipment,264,"3,962.25",4/23/2012,C,ORGANISED COMPUTER SYSTEMS LTD
2012 - APR,,,Stability Networks                      ,CT012ED,Vehicles Plant Equipment and Machinery,,D3,Equipment,265,"3,804.75",4/23/2012,C,ORGANISED COMPUTER SYSTEMS LTD
2012 - APR,,,Stability Networks                      ,CT012ED,Vehicles Plant Equipment and Machinery,,D5,Software,266,"186,699.76",3/27/2012,C,CIVICA SERVICES LTD           
2012 - APR,,,Stability Networks                      ,CT012ED,Vehicles Plant Equipment and Machinery,,D5,Software,267,"70,570.00",3/28/2012,C,COMPUTERLAND                  
2012 - APR,,,Stability Networks                      ,CT012ED,Vehicles Plant Equipment and Machinery,,D5,Software,268,"67,430.00",3/28/2012,C,COMPUTERLAND                  
2012 - APR,,,Stability Networks                      ,CT012ED,Vehicles Plant Equipment and Machinery,,D5,Software,269,"32,140.80",3/30/2012,C,SOFTCAT LTD                   
2012 - APR,,,Stability Networks                      ,CT012ED,Vehicles Plant Equipment and Machinery,,D5,Software,270,747.1,3/30/2012,C,SOFTCAT LTD                   
2012 - APR,,,Stability Networks                      ,CT012ED,Other Capital Expenditure,,E3,Miscellaneous Capital Expenditure,271,"25,000.00",3/28/2012,C,COMPUTERLAND                  
2012 - APR,,,Stability Networks                      ,CT012ED,Other Capital Expenditure,,E3,Miscellaneous Capital Expenditure,272,"7,200.00",3/30/2012,C,SOFTCAT LTD                   
2012 - APR,,,PCIDSS                                  ,CT012EE,Vehicles Plant Equipment and Machinery,,D3,Equipment,273,"4,200.00",3/12/2012,C,CIVICA UK LIMITED             
2012 - APR,Central Services,Local Tax Collection,Local Taxation Services                 ,E02100,Supplies & Services           ,Services                      ,DF18,Bailiffs' fees,274,"7,055.96",3/21/2012,R,MARSTON GROUP                 
2012 - APR,Central Services,Local Tax Collection,Local Taxation Bailiffs                 ,E02101,Supplies & Services           ,Services                      ,DF11,Counsel's fees,275,630,3/23/2012,R,REDACTED
2012 - APR,Central Services,Fully rechargeable Overheads,Payroll                                 ,E02140,Supplies & Services           ,Services                      ,DF03,Consultants,276,"1,057.18",3/8/2012,R,NORTHGATE ARINSO              
2012 - APR,Central Services,Fully rechargeable Overheads,Payroll                                 ,E02140,Supplies & Services           ,Services                      ,DF03,Consultants,277,"1,073.43",4/3/2012,R,NORTHGATE ARINSO              
2012 - APR,Central Services,Fully rechargeable Overheads,Payroll                                 ,E02140,Supplies & Services           ,Services                      ,DF03,Consultants,278,747.6,3/30/2012,R,NORTHGATE ARINSO              
2012 - APR,Central Services,Fully rechargeable Overheads,Trinity Project                         ,E02141,Supplies & Services           ,Expenses                      ,DH50,Special Projects,279,"150,901.40",3/27/2012,R,LONDON BOROUGH OF SUTTON      
2012 - APR,Central Services,Fully rechargeable Overheads,AD Customer Services                    ,E02180,Employees                     ,Indirect Employee Expenses    ,AB57,External Training Costs,280,"3,890.00",2/16/2012,R,CIPFA                         
2012 - APR,Central Services,Fully rechargeable Overheads,AD Customer Services                    ,E02180,Supplies & Services           ,Equip Furniture/Materials     ,DA09,Equip-Purchases,281,751.2,2/29/2012,R,CHAIRS GB                     
2012 - APR,Central Services,Fully rechargeable Overheads,AD Customer Services                    ,E02180,Supplies & Services           ,Grants and Subscriptions      ,DJ54,Contributions,282,575,2/2/2012,R,OFFICE OF THE IMMIGRATION     
2012 - APR,Central Services,Fully rechargeable Overheads,Civic Centre                            ,E02222,Premises Related Expenditure  ,Cleaning and Domestic Supplies,BH03,Cleaning Services,283,"8,103.32",4/1/2012,R,DYNAMIQ CLEANING LIMITED      
2012 - APR,Central Services,Fully rechargeable Overheads,Civic Centre                            ,E02222,Premises Related Expenditure  ,Cleaning and Domestic Supplies,BH03,Cleaning Services,284,822.97,4/1/2012,R,DYNAMIQ CLEANING LIMITED      
2012 - APR,Central Services,Fully rechargeable Overheads,Civic Centre                            ,E02222,Supplies & Services           ,Equip Furniture/Materials     ,DA01,Equipment - R & M,285,"1,464.75",3/13/2012,R,EUROVIA INFRASTRUCTURE LTD    
2012 - APR,Central Services,Fully rechargeable Overheads,Civic Centre                            ,E02222,Supplies & Services           ,Equip Furniture/Materials     ,DA04,Materials,286,"3,100.00",3/27/2012,R,CARDS & SPECIALIST SVS LTD.   
2012 - APR,Central Services,Fully rechargeable Overheads,Civic Centre                            ,E02222,Third Party Payments          ,Private Contractors           ,EH02,Miscellaneous Hired Services,287,"2,176.79",4/14/2012,R,PHS GROUP PLC                 
2012 - APR,Central Services,Fully rechargeable Overheads,Civic Centre                            ,E02222,Third Party Payments          ,Private Contractors           ,EH02,Miscellaneous Hired Services,288,"1,310.68",4/14/2012,R,PHS GROUP PLC                 
2012 - APR,Central Services,Fully rechargeable Overheads,Civic Centre                            ,E02222,Third Party Payments          ,Private Contractors           ,EH10,Contract Payments,289,"4,032.95",3/9/2012,R,ISS COLLECTIONS LTD           
2012 - APR,Central Services,Fully rechargeable Overheads,Morden Park House                       ,E02229,Third Party Payments          ,Private Contractors           ,EH02,Miscellaneous Hired Services,290,798.27,4/14/2012,R,PHS GROUP PLC                 
2012 - APR,Central Services,Fully rechargeable Overheads,Facilities                              ,E02231,Employees                     ,Indirect Employee Expenses    ,AB02,Recruitment Adverts,291,"4,425.00",3/22/2012,R,PENNA PLC                     
2012 - APR,Central Services,Fully rechargeable Overheads,Facilities                              ,E02231,Premises Related Expenditure  ,RepairsAlterations&MtceOfBldgs,BA06,Repairs & Maintenance General,292,"27,847.25",3/27/2012,R,MIKROFILL SYSTEMS LTD         
2012 - APR,Central Services,Fully rechargeable Overheads,Facilities                              ,E02231,Premises Related Expenditure  ,RepairsAlterations&MtceOfBldgs,BA06,Repairs & Maintenance General,293,892.52,3/30/2012,R,UNIQUE OFFICE SOLUTIONS LTD   
2012 - APR,Central Services,Fully rechargeable Overheads,Facilities                              ,E02231,Premises Related Expenditure  ,RepairsAlterations&MtceOfBldgs,BA06,Repairs & Maintenance General,294,892.52,3/30/2012,R,UNIQUE OFFICE SOLUTIONS LTD   
2012 - APR,Central Services,Fully rechargeable Overheads,Facilities                              ,E02231,Premises Related Expenditure  ,RepairsAlterations&MtceOfBldgs,BA06,Repairs & Maintenance General,295,"1,792.40",3/30/2012,R,NETWORK BLINDS LIMITED        
2012 - APR,Central Services,Fully rechargeable Overheads,Facilities                              ,E02231,Premises Related Expenditure  ,RepairsAlterations&MtceOfBldgs,BA06,Repairs & Maintenance General,296,"6,384.00",3/28/2012,R,STP SOLUTIONS                 
2012 - APR,Central Services,Fully rechargeable Overheads,Facilities                              ,E02231,Premises Related Expenditure  ,RepairsAlterations&MtceOfBldgs,BA06,Repairs & Maintenance General,297,"3,505.95",3/28/2012,R,STP SOLUTIONS                 
2012 - APR,Central Services,Fully rechargeable Overheads,Facilities                              ,E02231,Premises Related Expenditure  ,RepairsAlterations&MtceOfBldgs,BA06,Repairs & Maintenance General,298,"6,501.73",4/2/2012,R,REDACTED
2012 - APR,Central Services,Fully rechargeable Overheads,Facilities                              ,E02231,Premises Related Expenditure  ,RepairsAlterations&MtceOfBldgs,BA06,Repairs & Maintenance General,299,"7,318.74",4/2/2012,R,REDACTED
2012 - APR,Central Services,Fully rechargeable Overheads,Facilities                              ,E02231,Premises Related Expenditure  ,RepairsAlterations&MtceOfBldgs,BA06,Repairs & Maintenance General,300,"25,000.00",4/16/2012,R,SALTASH ENTERPRISES LTD       
2012 - APR,Central Services,Fully rechargeable Overheads,Facilities                              ,E02231,Supplies & Services           ,Services                      ,DF09,Miscellaneous Fees,301,"9,500.00",4/23/2012,R,LONDON BOROUGH HARINGEY       
2012 - APR,Central Services,Fully rechargeable Overheads,Facilities                              ,E02231,Third Party Payments          ,Private Contractors           ,EH02,Miscellaneous Hired Services,302,550,3/28/2012,R,HYDRO-X WATER TREATMENT LTD   
2012 - APR,Central Services,Fully rechargeable Overheads,Facilities                              ,E02231,Third Party Payments          ,Private Contractors           ,EH02,Miscellaneous Hired Services,303,550,3/28/2012,R,HYDRO-X WATER TREATMENT LTD   
2012 - APR,Central Services,Fully rechargeable Overheads,Facilities                              ,E02231,Third Party Payments          ,Private Contractors           ,EH02,Miscellaneous Hired Services,304,550,3/28/2012,R,HYDRO-X WATER TREATMENT LTD   
2012 - APR,Central Services,Fully rechargeable Overheads,Facilities                              ,E02231,Third Party Payments          ,Private Contractors           ,EH02,Miscellaneous Hired Services,305,750,3/28/2012,R,HYDRO-X WATER TREATMENT LTD   
2012 - APR,Central Services,Fully rechargeable Overheads,Facilities                              ,E02231,Third Party Payments          ,Private Contractors           ,EH02,Miscellaneous Hired Services,306,"1,132.90",3/28/2012,R,ULTRA SECURE DIRECT           
2012 - APR,Central Services,Fully rechargeable Overheads,Facilities                              ,E02231,Third Party Payments          ,Private Contractors           ,EH02,Miscellaneous Hired Services,307,"2,122.95",4/2/2012,R,CONNECT TECHNOLOGY GROUP      
2012 - APR,Central Services,Fully rechargeable Overheads,FM External Fees                        ,E02239,Premises Related Expenditure  ,RepairsAlterations&MtceOfBldgs,BA05,DDM - Electrical,308,"1,025.00",3/28/2012,R,MORTON FAIRVIEW ELEC SERVICES 
2012 - APR,Central Services,Fully rechargeable Overheads,FM External Fees                        ,E02239,Premises Related Expenditure  ,RepairsAlterations&MtceOfBldgs,BA29,Build Maint Mgt Fees,309,665,2/29/2012,R,ANDREW GODDARD ASSOCIATES LTD 
2012 - APR,Central Services,Fully rechargeable Overheads,Corporate Services Buildings            ,E02240,Premises Related Expenditure  ,RepairsAlterations&MtceOfBldgs,BA01,DDM - General Building,310,616.93,3/2/2012,R,PJ HARVEY & CO LTD            
2012 - APR,Central Services,Fully rechargeable Overheads,Corporate Services Buildings            ,E02240,Premises Related Expenditure  ,RepairsAlterations&MtceOfBldgs,BA01,DDM - General Building,311,"1,137.50",3/28/2012,R,HART DECORATORS LIMITED       
2012 - APR,Central Services,Fully rechargeable Overheads,Corporate Services Buildings            ,E02240,Premises Related Expenditure  ,RepairsAlterations&MtceOfBldgs,BA01,DDM - General Building,312,"1,780.00",3/28/2012,R,HART DECORATORS LIMITED       
2012 - APR,Central Services,Fully rechargeable Overheads,Corporate Services Buildings            ,E02240,Premises Related Expenditure  ,RepairsAlterations&MtceOfBldgs,BA01,DDM - General Building,313,"3,449.75",3/28/2012,R,HART DECORATORS LIMITED       
2012 - APR,Central Services,Fully rechargeable Overheads,Corporate Services Buildings            ,E02240,Premises Related Expenditure  ,RepairsAlterations&MtceOfBldgs,BA01,DDM - General Building,314,581.12,3/29/2012,R,SALTASH ENTERPRISES LTD       
2012 - APR,Central Services,Fully rechargeable Overheads,Corporate Services Buildings            ,E02240,Premises Related Expenditure  ,RepairsAlterations&MtceOfBldgs,BA05,DDM - Electrical,315,"4,390.28",3/23/2012,R,EDMUNDSON ELECTRICAL LTD      
2012 - APR,Central Services,Fully rechargeable Overheads,Corporate Services Buildings            ,E02240,Premises Related Expenditure  ,RepairsAlterations&MtceOfBldgs,BA05,DDM - Electrical,316,"3,249.56",3/29/2012,R,COFELY LIMITED                
2012 - APR,Central Services,Fully rechargeable Overheads,Corporate Services Buildings            ,E02240,Premises Related Expenditure  ,RepairsAlterations&MtceOfBldgs,BA05,DDM - Electrical,317,635.32,3/29/2012,R,COFELY LIMITED                
2012 - APR,Central Services,Fully rechargeable Overheads,Corporate Services Buildings            ,E02240,Premises Related Expenditure  ,RepairsAlterations&MtceOfBldgs,BA06,Repairs & Maintenance General,318,"2,370.00",3/30/2012,R,KH FLOORING LTD               
2012 - APR,Central Services,Fully rechargeable Overheads,Corporate Services Buildings            ,E02240,Premises Related Expenditure  ,Energy Costs                  ,BB02,Electricity,319,"2,652.64",3/14/2012,R,EDF ENERGY                    
2012 - APR,Central Services,Fully rechargeable Overheads,Corporate Services Buildings            ,E02240,Premises Related Expenditure  ,Energy Costs                  ,BB02,Electricity,320,"12,474.54",3/9/2012,R,KENT COUNTY COUNCIL           
2012 - APR,Central Services,Fully rechargeable Overheads,Corporate Services Buildings            ,E02240,Premises Related Expenditure  ,Energy Costs                  ,BB02,Electricity,321,"1,102.29",3/14/2012,R,EDF ENERGY                    
2012 - APR,Central Services,Fully rechargeable Overheads,Corporate Services Buildings            ,E02240,Premises Related Expenditure  ,Energy Costs                  ,BB02,Electricity,322,"8,296.47",4/13/2012,R,KENT COUNTY COUNCIL           
2012 - APR,Central Services,Fully rechargeable Overheads,Corporate Services Buildings            ,E02240,Premises Related Expenditure  ,Energy Costs                  ,BB02,Electricity,323,"6,800.83",4/13/2012,R,KENT COUNTY COUNCIL           
2012 - APR,Central Services,Fully rechargeable Overheads,Corporate Services Buildings            ,E02240,Premises Related Expenditure  ,Energy Costs                  ,BB03,Gas (incl. Butane),324,"2,671.25",3/22/2012,R,KENT COUNTY COUNCIL           
2012 - APR,Central Services,Fully rechargeable Overheads,Corporate Services Buildings            ,E02240,Premises Related Expenditure  ,Water Services                ,BE01,Use of Water (Metered),325,820.23,3/30/2012,R,SUTTON AND EAST SURREY WATER  
2012 - APR,Adult Social Care,Adult u65 Phys/Sensory Impair,C & H Buildings                         ,E02345,Premises Related Expenditure  ,RepairsAlterations&MtceOfBldgs,BA01,DDM - General Building,326,550.08,3/21/2012,R,COFELY LIMITED                
2012 - APR,Adult Social Care,Adult u65 Phys/Sensory Impair,C & H Buildings                         ,E02345,Premises Related Expenditure  ,RepairsAlterations&MtceOfBldgs,BA01,DDM - General Building,327,"1,996.00",3/27/2012,R,COBSEN-DAVIES ROOFING (LOND)LT
2012 - APR,Adult Social Care,Adult u65 Phys/Sensory Impair,C & H Buildings                         ,E02345,Premises Related Expenditure  ,RepairsAlterations&MtceOfBldgs,BA01,DDM - General Building,328,"1,010.00",3/27/2012,R,COBSEN-DAVIES ROOFING (LOND)LT
2012 - APR,Adult Social Care,Adult u65 Phys/Sensory Impair,C & H Buildings                         ,E02345,Premises Related Expenditure  ,RepairsAlterations&MtceOfBldgs,BA01,DDM - General Building,329,618.78,3/29/2012,R,SALTASH ENTERPRISES LTD       
2012 - APR,Adult Social Care,Adult u65 Phys/Sensory Impair,C & H Buildings                         ,E02345,Premises Related Expenditure  ,RepairsAlterations&MtceOfBldgs,BA05,DDM - Electrical,330,606.96,3/29/2012,R,COFELY LIMITED                
2012 - APR,Cultural Env Reg&Plan Services,Open Spaces,Leisure Buildings                       ,E02350,Premises Related Expenditure  ,RepairsAlterations&MtceOfBldgs,BA01,DDM - General Building,331,876.27,3/29/2012,R,SALTASH ENTERPRISES LTD       
2012 - APR,Cultural Env Reg&Plan Services,Open Spaces,Leisure Buildings                       ,E02350,Premises Related Expenditure  ,RepairsAlterations&MtceOfBldgs,BA01,DDM - General Building,332,738.17,3/29/2012,R,SALTASH ENTERPRISES LTD       
2012 - APR,Cultural Env Reg&Plan Services,Open Spaces,Leisure Buildings                       ,E02350,Premises Related Expenditure  ,RepairsAlterations&MtceOfBldgs,BA03,DDM - Mechanical,333,668.48,3/20/2012,R,COFELY LIMITED                
2012 - APR,Cultural Env Reg&Plan Services,Open Spaces,Leisure Buildings                       ,E02350,Premises Related Expenditure  ,RepairsAlterations&MtceOfBldgs,BA05,DDM - Electrical,334,611.5,3/23/2012,R,FIRST CHOICE FACILITIES PLC   
2012 - APR,Central Services,Fully rechargeable Overheads,BUSINESS PARTNERS                       ,E04059,Employees                     ,Direct Employee Expenses      ,AA17,Agency Staff & Casual Paymts,335,"8,125.00",4/1/2012,R,REDACTED
2012 - APR,Central Services,Fully rechargeable Overheads,Director of Corporate Services          ,E04060,Employees                     ,Indirect Employee Expenses    ,AB57,External Training Costs,336,597,4/4/2012,R,HBINFO LTD                    
2012 - APR,Central Services,Fully rechargeable Overheads,Director of Corporate Services          ,E04060,Supplies & Services           ,Services                      ,DF11,Counsel's fees,337,"3,025.00",3/28/2012,R,REDACTED
2012 - APR,Central Services,Democ' Representation & Mgt,Corporately Funded Items                ,E04065,Employees                     ,Direct Employee Expenses      ,AA17,Agency Staff & Casual Paymts,338,"13,500.00",4/16/2012,R,REDACTED
2012 - APR,Central Services,Fully rechargeable Overheads,Internal Audit&Service Review           ,E05101,Supplies & Services           ,Services                      ,DF58,Audit Fee,339,995,3/30/2012,R,MERITEC LTD                   
2012 - APR,Housing Services,Housing Benefit Administration,Benefits Investigation Section          ,E05103,Employees                     ,Indirect Employee Expenses    ,AB57,External Training Costs,340,878,3/1/2012,R,ITS TRAINING (UK) LTD         
2012 - APR,Central Services,Fully rechargeable Overheads,Insurance Premiums & Funding            ,E05161,Supplies & Services           ,Services                      ,DF74,Insurance Premiums,341,"6,360.00",4/13/2012,R,THISTLE INSURANCE SERVICES    
2012 - APR,Central Services,Fully rechargeable Overheads,Insurance Premiums & Funding            ,E05161,Supplies & Services           ,Services                      ,DF74,Insurance Premiums,342,"28,708.00",4/13/2012,R,THISTLE INSURANCE SERVICES    
2012 - APR,Central Services,Fully rechargeable Overheads,Insurance Premiums & Funding            ,E05161,Supplies & Services           ,Services                      ,DF74,Insurance Premiums,343,"5,856.15",4/13/2012,R,THISTLE INSURANCE SERVICES    
2012 - APR,Central Services,Fully rechargeable Overheads,Insurance Premiums & Funding            ,E05161,Supplies & Services           ,Services                      ,DF74,Insurance Premiums,344,"16,666.88",4/12/2012,R,ZURICH INSURANCE COMPANY      
2012 - APR,Central Services,Fully rechargeable Overheads,Insurance Premiums & Funding            ,E05161,Supplies & Services           ,Services                      ,DF74,Insurance Premiums,345,"411,911.61",4/13/2012,R,ZURICH INSURANCE COMPANY      
2012 - APR,Central Services,Fully rechargeable Overheads,Insurance Premiums & Funding            ,E05161,Supplies & Services           ,Services                      ,DF74,Insurance Premiums,346,"3,498.00",4/12/2012,R,ZURICH INSURANCE COMPANY      
2012 - APR,Central Services,Fully rechargeable Overheads,Insurance Premiums & Funding            ,E05161,Supplies & Services           ,Services                      ,DF74,Insurance Premiums,347,"3,042.66",4/12/2012,R,ZURICH INSURANCE COMPANY      
2012 - APR,Central Services,Fully rechargeable Overheads,Insurance Premiums & Funding            ,E05161,Supplies & Services           ,Services                      ,DF74,Insurance Premiums,348,"1,258.74",4/12/2012,R,ZURICH INSURANCE COMPANY      
2012 - APR,Central Services,Fully rechargeable Overheads,Insurance Premiums & Funding            ,E05161,Supplies & Services           ,Services                      ,DF74,Insurance Premiums,349,530,4/12/2012,R,ZURICH INSURANCE COMPANY      
2012 - APR,Central Services,Fully rechargeable Overheads,Insurance Premiums & Funding            ,E05161,Supplies & Services           ,Comms and Computing           ,DG02,Software Licences,350,"10,675.00",4/1/2012,R,JC APPLICATIONS DEVELOPMENT   
2012 - APR,Central Services,Fully rechargeable Overheads,Corporate Accountancy                   ,E06209,Supplies & Services           ,Services                      ,DF58,Audit Fee,351,"8,500.00",3/15/2012,R,AUDIT COMMISSION              
2012 - APR,Central Services,Fully rechargeable Overheads,Accounts Payable                        ,E06212,Supplies & Services           ,Services                      ,DF03,Consultants,352,639.63,3/23/2012,R,MERIDIAN COST BENEFIT LTD     
2012 - APR,Central Services,Fully rechargeable Overheads,Accounts Payable                        ,E06212,Supplies & Services           ,Services                      ,DF03,Consultants,353,"1,003.45",3/30/2012,R,MERIDIAN COST BENEFIT LTD     
2012 - APR,Central Services,Fully rechargeable Overheads,Accounts Payable                        ,E06212,Supplies & Services           ,Services                      ,DF03,Consultants,354,"8,918.81",4/13/2012,R,MERIDIAN COST BENEFIT LTD     
2012 - APR,Central Services,Fully rechargeable Overheads,Accounts Payable                        ,E06212,Oth Grants Reimbmnts/Contribs ,Cost recharges to other bodies,QC10,Recovery of Costs (X),355,"-27,408.28",4/11/2012,R,SW LONDON ST GEORGES NHS TRUST
2012 - APR,Central Services,Fully rechargeable Overheads,Accounts Payable                        ,E06212,Oth Grants Reimbmnts/Contribs ,Cost recharges to other bodies,QC10,Recovery of Costs (X),356,"-4,969.57",4/8/2009,R,KINGSTON CORPORATION          
2012 - APR,Central Services,Fully rechargeable Overheads,Accounts Payable                        ,E06212,Oth Grants Reimbmnts/Contribs ,Cost recharges to other bodies,QC10,Recovery of Costs (X),357,"-2,464.67",10/1/2010,R,KINGSTON CORPORATION          
2012 - APR,Central Services,Fully rechargeable Overheads,Accounts Payable                        ,E06212,Oth Grants Reimbmnts/Contribs ,Cost recharges to other bodies,QC10,Recovery of Costs (X),358,"-6,349.82",4/28/2010,R,KINGSTON CORPORATION          
2012 - APR,Central Services,Fully rechargeable Overheads,Treasury & Insurance                    ,E06222,Employees                     ,Direct Employee Expenses      ,AA17,Agency Staff & Casual Paymts,359,"2,250.00",4/10/2012,R,RANDSTAD FIN & PROF LTD.      
2012 - APR,Central Services,Fully rechargeable Overheads,Treasury & Insurance                    ,E06222,Employees                     ,Direct Employee Expenses      ,AA17,Agency Staff & Casual Paymts,360,"1,980.00",4/10/2012,R,RANDSTAD FIN & PROF LTD.      
2012 - APR,Central Services,Fully rechargeable Overheads,Treasury & Insurance                    ,E06222,Supplies & Services           ,Grants and Subscriptions      ,DJ04,Subscriptions,361,594,1/16/2012,R,CIPFA BUSINESS LIMITED        
2012 - APR,Central Services,Fully rechargeable Overheads,Parking Cash Collect'n Contrct          ,E06225,Third Party Payments          ,Private Contractors           ,EH02,Miscellaneous Hired Services,362,651.95,3/30/2012,R,LOOMIS UK LTD                 
2012 - APR,Central Services,Fully rechargeable Overheads,Parking Cash Collect'n Contrct          ,E06225,Third Party Payments          ,Private Contractors           ,EH02,Miscellaneous Hired Services,363,"1,982.40",3/30/2012,R,BANKING AUTOMATION LTD        
2012 - APR,Central Services,Fully rechargeable Overheads,Service Accountancy                     ,E06227,Employees                     ,Direct Employee Expenses      ,AA17,Agency Staff & Casual Paymts,364,"2,300.00",4/10/2012,R,RANDSTAD FIN & PROF LTD.      
2012 - APR,Central Services,Fully rechargeable Overheads,Service Accountancy                     ,E06227,Employees                     ,Direct Employee Expenses      ,AA17,Agency Staff & Casual Paymts,365,"2,700.00",4/10/2012,R,RANDSTAD FIN & PROF LTD.      
2012 - APR,Central Services,Fully rechargeable Overheads,Service Accountancy                     ,E06227,Transfer Payments             ,Housing Benefits              ,FA50,Burial and Cremation,366,713.2,4/10/2012,R,REDACTED
2012 - APR,Housing Services,Housing Benefits Payments,Housing Benefits Subsidy                ,E06250,Transfer Payments             ,Housing Benefits              ,FA51,Rent Allow Overpayment Recov,367,"5,076.94",4/3/2012,R,REDACTED
2012 - APR,Central Services,Fully rechargeable Overheads,Legal Services                          ,E10282,Supplies & Services           ,Services                      ,DF11,Counsel's fees,368,"5,015.00",3/16/2012,R,REDACTED
2012 - APR,Central Services,Fully rechargeable Overheads,Legal Services                          ,E10282,Supplies & Services           ,Services                      ,DF28,Court Fees,369,"2,925.00",4/10/2012,R,REDACTED
2012 - APR,Central Services,Fully rechargeable Overheads,Legal Services                          ,E10282,Supplies & Services           ,Services                      ,DF28,Court Fees,370,"3,800.00",4/10/2012,R,REDACTED
2012 - APR,Central Services,Fully rechargeable Overheads,Legal Services                          ,E10282,Supplies & Services           ,Services                      ,DF28,Court Fees,371,"4,000.00",4/10/2012,R,REDACTED
2012 - APR,Central Services,Fully rechargeable Overheads,Legal Services                          ,E10282,Supplies & Services           ,Services                      ,DF28,Court Fees,372,"1,900.00",4/18/2012,R,REDACTED
2012 - APR,Central Services,Fully rechargeable Overheads,Legal Services                          ,E10282,Supplies & Services           ,Services                      ,DF28,Court Fees,373,"5,300.00",4/18/2012,R,REDACTED
2012 - APR,Central Services,Fully rechargeable Overheads,Legal Services                          ,E10282,Supplies & Services           ,Services                      ,DF28,Court Fees,374,"1,980.00",4/27/2012,R,REDACTED
2012 - APR,Central Services,Elections,Election Expenses                       ,E10284,Supplies & Services           ,Prntng Stnry Gen Off Exp      ,DE01,External Printing,375,550.58,3/30/2012,R,TPM UK LTD                    
2012 - APR,Central Services,Fully rechargeable Overheads,Shared Legal Service                    ,E10288,Supplies & Services           ,Equip Furniture/Materials     ,DA80,Books,376,"5,184.00",4/12/2012,R,THOMSON REUTERS               
2012 - APR,Central Services,Fully rechargeable Overheads,Richmond Legal                          ,E10289,Supplies & Services           ,Services                      ,DF11,Counsel's fees,377,-570,1/13/2012,R,REDACTED
2012 - APR,Central Services,Fully rechargeable Overheads,Richmond Legal                          ,E10289,Supplies & Services           ,Services                      ,DF11,Counsel's fees,378,"1,312.50",3/13/2012,R,REDACTED
2012 - APR,Central Services,Fully rechargeable Overheads,Richmond Legal                          ,E10289,Supplies & Services           ,Services                      ,DF11,Counsel's fees,379,750,3/13/2012,R,REDACTED
2012 - APR,Central Services,Fully rechargeable Overheads,Richmond Legal                          ,E10289,Supplies & Services           ,Services                      ,DF11,Counsel's fees,380,"1,040.00",3/22/2012,R,REDACTED
2012 - APR,Central Services,Fully rechargeable Overheads,Richmond Legal                          ,E10289,Supplies & Services           ,Services                      ,DF11,Counsel's fees,381,"1,000.00",1/24/2012,R,REDACTED
2012 - APR,Central Services,Fully rechargeable Overheads,Richmond Legal                          ,E10289,Supplies & Services           ,Services                      ,DF11,Counsel's fees,382,"2,980.00",2/25/2012,R,REDACTED
2012 - APR,Central Services,Fully rechargeable Overheads,Richmond Legal                          ,E10289,Supplies & Services           ,Services                      ,DF11,Counsel's fees,383,"3,250.00",2/6/2012,R,REDACTED
2012 - APR,Central Services,Fully rechargeable Overheads,Richmond Legal                          ,E10289,Supplies & Services           ,Services                      ,DF11,Counsel's fees,384,"1,963.95",1/3/2012,R,REDACTED
2012 - APR,Central Services,Fully rechargeable Overheads,AD Business Improvement                 ,E14358,Employees                     ,Direct Employee Expenses      ,AA17,Agency Staff & Casual Paymts,385,"3,600.00",1/20/2012,R,PENNA PLC                     
2012 - APR,Central Services,Fully rechargeable Overheads,AD Business Improvement                 ,E14358,Employees                     ,Direct Employee Expenses      ,AA17,Agency Staff & Casual Paymts,386,"9,500.00",3/31/2012,R,JW MANAGEMENT                 
2012 - APR,Central Services,Fully rechargeable Overheads,AD Business Improvement                 ,E14358,Employees                     ,Direct Employee Expenses      ,AA17,Agency Staff & Casual Paymts,387,"4,235.00",3/31/2012,R,PENNA PLC                     
2012 - APR,Central Services,Fully rechargeable Overheads,BI IT Projects                          ,E14360,Supplies & Services           ,Services                      ,DF03,Consultants,388,"1,250.00",3/28/2012,R,CASHFRIDAY                    
2012 - APR,Central Services,Fully rechargeable Overheads,BI IT Projects                          ,E14360,Supplies & Services           ,Services                      ,DF03,Consultants,389,"1,250.00",3/21/2012,R,CASHFRIDAY                    
2012 - APR,Central Services,Fully rechargeable Overheads,BI IT Projects                          ,E14360,Supplies & Services           ,Services                      ,DF03,Consultants,390,"1,250.00",4/3/2012,R,CASHFRIDAY                    
2012 - APR,Central Services,Fully rechargeable Overheads,Operations & Telecomms                  ,E14367,Premises Related Expenditure  ,RepairsAlterations&MtceOfBldgs,BA05,DDM - Electrical,391,"8,000.00",3/30/2012,R,DATA TECHNIQUES               
2012 - APR,Central Services,Fully rechargeable Overheads,Operations & Telecomms                  ,E14367,Supplies & Services           ,Comms and Computing           ,DG54,Corporate Telephones,392,"3,646.02",3/30/2012,R,SCALABLE COMMUNICATIONS PLC   
2012 - APR,Central Services,Fully rechargeable Overheads,Operations & Telecomms                  ,E14367,Supplies & Services           ,Comms and Computing           ,DG54,Corporate Telephones,393,"1,035.00",3/29/2012,R,O2 (UK) LIMITED               
2012 - APR,Central Services,Fully rechargeable Overheads,Operations & Telecomms                  ,E14367,Supplies & Services           ,Comms and Computing           ,DG54,Corporate Telephones,394,"2,330.60",4/2/2012,R,COLT TELECOMMUNICATIONS       
2012 - APR,Central Services,Fully rechargeable Overheads,Operations & Telecomms                  ,E14367,Supplies & Services           ,Comms and Computing           ,DG71,IT Servs EHS Mainframe Equip.,395,"2,300.00",3/31/2012,R,VERISEC LIMITED               
2012 - APR,Central Services,Fully rechargeable Overheads,Distributed Services                    ,E14368,Supplies & Services           ,Comms and Computing           ,DG63,Software Licences - Data,396,"6,107.10",3/23/2012,R,EMC COMPUTER SYSTEMS LTD      
2012 - APR,Central Services,Fully rechargeable Overheads,Distributed Services                    ,E14368,Supplies & Services           ,Comms and Computing           ,DG63,Software Licences - Data,397,"77,007.25",4/4/2012,R,OLM SYSTEMS                   
2012 - APR,Central Services,Fully rechargeable Overheads,Distributed Services                    ,E14368,Supplies & Services           ,Comms and Computing           ,DG63,Software Licences - Data,398,"2,870.00",4/16/2012,R,AMTEC COMPUTER CORPORATION LTD
2012 - APR,Central Services,Fully rechargeable Overheads,Distributed Services                    ,E14368,Supplies & Services           ,Comms and Computing           ,DG63,Software Licences - Data,399,"2,332.94",4/5/2012,R,HANDD BUSINESS SOLUTIONS LTD  
2012 - APR,Central Services,Fully rechargeable Overheads,Distributed Services                    ,E14368,Supplies & Services           ,Comms and Computing           ,DG64,Software Licenses - Distrib,400,519.95,3/27/2012,R,INSIGHT DIRECT (UK) LTD       
2012 - APR,Central Services,Fully rechargeable Overheads,Distributed Services                    ,E14368,Supplies & Services           ,Comms and Computing           ,DG65,Application Licences,401,"4,629.59",2/29/2012,R,OLM SYSTEMS                   
2012 - APR,Central Services,Fully rechargeable Overheads,Distributed Services                    ,E14368,Supplies & Services           ,Comms and Computing           ,DG65,Application Licences,402,"17,970.28",2/29/2012,R,OLM SYSTEMS                   
2012 - APR,Central Services,Fully rechargeable Overheads,Distributed Services                    ,E14368,Supplies & Services           ,Comms and Computing           ,DG65,Application Licences,403,"2,950.00",4/4/2012,R,SOCITM LTD                    
2012 - APR,Central Services,Fully rechargeable Overheads,Distributed Services                    ,E14368,Supplies & Services           ,Comms and Computing           ,DG65,Application Licences,404,"6,575.00",4/4/2012,R,SOCITM LTD                    
2012 - APR,Central Services,Fully rechargeable Overheads,Distributed Services                    ,E14368,Supplies & Services           ,Comms and Computing           ,DG65,Application Licences,405,"12,400.00",3/30/2012,R,SOFTCAT LTD                   
2012 - APR,Cultural Env Reg&Plan Services,SMSS (Env),ES Business Systems                     ,G00075,Supplies & Services           ,Comms and Computing           ,DG15,Network Maintenance,406,"4,789.68",3/30/2012,R,PITNEY BOWES SOFTWARE LTD     
2012 - APR,Highways & Transport Services,Structural Maintenance,C'way & F'way Mtce                      ,G00121,Employees                     ,Direct Employee Expenses      ,AA17,Agency Staff & Casual Paymts,407,"1,560.00",3/28/2012,R,RIDGEWAY CONSULTING LTD.      
2012 - APR,Highways & Transport Services,Env Safety&Routine Maintenance,Traffic Signs.                          ,G00160,Third Party Payments          ,Private Contractors           ,EH01,Miscellaneous Agency Services,408,"1,470.00",1/20/2012,R,TEASDALE GROUP LTD            
2012 - APR,Highways & Transport Services,Env Safety&Routine Maintenance,Traffic Signs.                          ,G00160,Third Party Payments          ,Private Contractors           ,EH01,Miscellaneous Agency Services,409,707,4/12/2012,R,UK POWER NETWORKS (OPERATIONS)
2012 - APR,Highways & Transport Services,Street Lights(Inc Energy Cost),Street Lighting .                       ,G00260,Premises Related Expenditure  ,Energy Costs                  ,BB02,Electricity,410,"53,028.14",4/11/2012,R,KENT COUNTY COUNCIL           
2012 - APR,Highways & Transport Services,Street Lights(Inc Energy Cost),Street Lighting .                       ,G00260,Third Party Payments          ,Private Contractors           ,EH01,Miscellaneous Agency Services,411,"7,600.00",3/26/2012,R,MAY GURNEY LTD T/A CARTLEDGE  
2012 - APR,Highways & Transport Services,Street Lights(Inc Energy Cost),Street Lighting .                       ,G00260,Third Party Payments          ,Private Contractors           ,EH01,Miscellaneous Agency Services,412,"1,241.00",3/29/2012,R,UK POWER NETWORKS (OPERATIONS)
2012 - APR,Highways & Transport Services,Street Lights(Inc Energy Cost),Street Lighting .                       ,G00260,Third Party Payments          ,Private Contractors           ,EH01,Miscellaneous Agency Services,413,"1,241.00",3/29/2012,R,UK POWER NETWORKS (OPERATIONS)
2012 - APR,Highways & Transport Services,Street Lights(Inc Energy Cost),Street Lighting .                       ,G00260,Third Party Payments          ,Private Contractors           ,EH01,Miscellaneous Agency Services,414,643,4/12/2012,R,UK POWER NETWORKS (OPERATIONS)
2012 - APR,Highways & Transport Services,Street Lights(Inc Energy Cost),Street Lighting .                       ,G00260,Third Party Payments          ,Private Contractors           ,EH01,Miscellaneous Agency Services,415,643,4/12/2012,R,UK POWER NETWORKS (OPERATIONS)
2012 - APR,Highways & Transport Services,Street Lights(Inc Energy Cost),Street Lighting .                       ,G00260,Third Party Payments          ,Private Contractors           ,EH01,Miscellaneous Agency Services,416,707,4/13/2012,R,UK POWER NETWORKS (OPERATIONS)
2012 - APR,Highways & Transport Services,Parking Services,Coombe Lane                             ,G00292,Premises Related Expenditure  ,Rents                         ,BC01,Miscellaneous Rents,417,"4,077.00",1/25/2012,R,HM REVENUE & CUSTOMS          
2012 - APR,Highways & Transport Services,Parking Services,York Close CP                           ,G00298,Premises Related Expenditure  ,Rents                         ,BC01,Miscellaneous Rents,418,"4,210.50",2/23/2012,R,TRANSPORT TRADING LTD PROP A/C
2012 - APR,Highways & Transport Services,Parking Services,York Close CP                           ,G00298,Premises Related Expenditure  ,Rents                         ,BC01,Miscellaneous Rents,419,"26,250.00",2/23/2012,R,TRANSPORT TRADING LTD PROP A/C
2012 - APR,Highways & Transport Services,Parking Services,St. Georges Car Park WEST M/S           ,G00302,Premises Related Expenditure  ,Energy Costs                  ,BB02,Electricity,420,"1,240.12",4/3/2012,R,KENT COUNTY COUNCIL           
2012 - APR,Highways & Transport Services,Parking Services,"St. Mks Rd, Multi Sty                   ",G00308,Premises Related Expenditure  ,Rents                         ,BC01,Miscellaneous Rents,421,"5,500.00",3/31/2012,R,ASDA STORES LTD               
2012 - APR,Highways & Transport Services,Parking Services,On Street Parking.                      ,G00311,Premises Related Expenditure  ,RepairsAlterations&MtceOfBldgs,BA06,Repairs & Maintenance General,422,"1,526.80",3/28/2012,R,TEASDALE GROUP LTD            
2012 - APR,Highways & Transport Services,Parking Services,On Street Parking.                      ,G00311,Premises Related Expenditure  ,RepairsAlterations&MtceOfBldgs,BA06,Repairs & Maintenance General,423,940.8,4/19/2012,R,TEASDALE GROUP LTD            
2012 - APR,Highways & Transport Services,Parking Services,Operational Running Costs               ,G00331,Supplies & Services           ,Comms and Computing           ,DG61,Computer Servs Special,424,"54,487.09",3/14/2012,R,IMPERIAL CIVIL ENFORC.SOLUT.  
2012 - APR,Highways & Transport Services,Parking Services,Operational Running Costs               ,G00331,Third Party Payments          ,Other Agencies                ,EJ58,Parking Cttee for London,425,"4,000.00",4/3/2012,R,HMCTS                         
2012 - APR,Highways & Transport Services,Parking Services,Operational Running Costs               ,G00331,Third Party Payments          ,Other Agencies                ,EJ58,Parking Cttee for London,426,"9,065.62",4/17/2012,R,LONDON COUNCILS               
2012 - APR,Highways & Transport Services,Parking Services,Operational Running Costs               ,G00331,Third Party Payments          ,Other Agencies                ,EJ58,Parking Cttee for London,427,"1,176.00",4/5/2012,R,LONDON COUNCILS               
2012 - APR,Highways & Transport Services,Parking Services,Operational Running Costs               ,G00331,Third Party Payments          ,Other Agencies                ,EJ58,Parking Cttee for London,428,"7,034.33",4/17/2012,R,LONDON COUNCILS               
2012 - APR,Cultural Env Reg&Plan Services,Street Cleaning - Not highways,Street Cleansing (Inc. Gully)           ,G00492,Premises Related Expenditure  ,Rents                         ,BC01,Miscellaneous Rents,429,926.64,3/21/2012,R,MERTON PRIORY HOMES (RENT)    
2012 - APR,Cultural Env Reg&Plan Services,Street Cleaning - Not highways,Street Cleansing (Inc. Gully)           ,G00492,Supplies & Services           ,Equip Furniture/Materials     ,DA08,Tools-Purchase,430,"1,516.30",4/13/2012,R,BELL BRUSH                    
2012 - APR,Cultural Env Reg&Plan Services,Street Cleaning - Not highways,Street Cleansing (Inc. Gully)           ,G00492,Supplies & Services           ,Equip Furniture/Materials     ,DA31,Waste Sacks & Bags,431,"2,684.20",3/27/2012,R,POLARIS PLASTICS LTD          
2012 - APR,Cultural Env Reg&Plan Services,Street Cleaning - Not highways,Street Cleansing (Inc. Gully)           ,G00492,Supplies & Services           ,Equip Furniture/Materials     ,DA32,Wheeled Bins,432,"1,527.75",3/21/2012,R,SPIDER UK LTD                 
2012 - APR,Cultural Env Reg&Plan Services,Waste Disposal,Waste Disposal .                        ,G00550,Third Party Payments          ,Private Contractors           ,EH02,Miscellaneous Hired Services,433,"21,175.75",3/31/2012,R,ENVIRONMENTAL WASTE CONTROL LT
2012 - APR,Cultural Env Reg&Plan Services,Waste Disposal,Waste Disposal .                        ,G00550,Third Party Payments          ,Private Contractors           ,EH02,Miscellaneous Hired Services,434,"-21,175.75",3/31/2012,R,ENVIRONMENTAL WASTE CONTROL LT
2012 - APR,Cultural Env Reg&Plan Services,Waste Disposal,Waste Disposal .                        ,G00550,Third Party Payments          ,Private Contractors           ,EH02,Miscellaneous Hired Services,435,"21,175.75",3/31/2012,R,ENVIRONMENTAL WASTE CONTROL LT
2012 - APR,Cultural Env Reg&Plan Services,Waste Disposal,Waste Disposal .                        ,G00550,Third Party Payments          ,Private Contractors           ,EH04,Accommodation Based Support,436,"37,656.25",3/30/2012,R,KINGSTON CORPORATION          
2012 - APR,Cultural Env Reg&Plan Services,Waste Disposal,Waste Disposal .                        ,G00550,Third Party Payments          ,Private Contractors           ,EH04,Accommodation Based Support,437,"296,113.83",3/30/2012,R,KINGSTON CORPORATION          
2012 - APR,Cultural Env Reg&Plan Services,Waste Disposal,Waste Disposal .                        ,G00550,Third Party Payments          ,Private Contractors           ,EH10,Contract Payments,438,"37,691.65",3/30/2012,R,KINGSTON CORPORATION          
2012 - APR,Cultural Env Reg&Plan Services,Waste Disposal,Waste Disposal .                        ,G00550,Third Party Payments          ,Private Contractors           ,EH66,Clinical Waste Disposal,439,773.35,3/31/2012,R,S.GRUNDON (WASTE) LTD.        
2012 - APR,Cultural Env Reg&Plan Services,Waste Disposal,Waste Disposal .                        ,G00550,Third Party Payments          ,Private Contractors           ,EH90,Disposal of Waste from CA Site,440,"1,100.00",4/12/2012,R,NORTHAMPTONSHIRE COUNTY COUNCI
2012 - APR,Cultural Env Reg&Plan Services,Waste Disposal,Waste Disposal .                        ,G00550,Third Party Payments          ,Private Contractors           ,EH96,Hardcore Disposal - Country Waste,441,"2,103.26",3/31/2012,R,CORY ENVIRONMENTAL LIMITED    
2012 - APR,Cultural Env Reg&Plan Services,Waste Disposal,Garth Road Site                         ,G00580,Third Party Payments          ,Private Contractors           ,EH63,Paper Haulage,442,"3,897.27",3/30/2012,R,KINGSTON CORPORATION          
2012 - APR,Cultural Env Reg&Plan Services,Waste Disposal,Garth Road Site                         ,G00580,Third Party Payments          ,Private Contractors           ,EH63,Paper Haulage,443,"1,512.46",3/30/2012,R,KINGSTON CORPORATION          
2012 - APR,Cultural Env Reg&Plan Services,Waste Disposal,Garth Road Site                         ,G00580,Third Party Payments          ,Private Contractors           ,EH63,Paper Haulage,444,"5,690.43",1/20/2012,R,KINGSTON CORPORATION          
2012 - APR,Cultural Env Reg&Plan Services,Waste Disposal,Garth Road Site                         ,G00580,Third Party Payments          ,Private Contractors           ,EH63,Paper Haulage,445,"4,802.58",2/24/2012,R,KINGSTON CORPORATION          
2012 - APR,Highways & Transport Services,Structural Maintenance,Grass Cut/Tr Mtce                       ,G00600,Premises Related Expenditure  ,Ground Maintenance Costs      ,BL03,Maintenance of Grounds,446,"1,223.40",3/22/2012,R,VEOLIA ES (UK) LIMITED        
2012 - APR,Highways & Transport Services,Structural Maintenance,Grass Cut/Tr Mtce                       ,G00600,Premises Related Expenditure  ,Ground Maintenance Costs      ,BL03,Maintenance of Grounds,447,"4,736.65",3/22/2012,R,VEOLIA ES (UK) LIMITED        
2012 - APR,Highways & Transport Services,Structural Maintenance,Grass Cut/Tr Mtce                       ,G00600,Premises Related Expenditure  ,Ground Maintenance Costs      ,BL03,Maintenance of Grounds,448,627.92,3/22/2012,R,VEOLIA ES (UK) LIMITED        
2012 - APR,Highways & Transport Services,Structural Maintenance,Grass Cut/Tr Mtce                       ,G00600,Premises Related Expenditure  ,Ground Maintenance Costs      ,BL03,Maintenance of Grounds,449,581.05,3/22/2012,R,VEOLIA ES (UK) LIMITED        
2012 - APR,Highways & Transport Services,Structural Maintenance,Grass Cut/Tr Mtce                       ,G00600,Premises Related Expenditure  ,Ground Maintenance Costs      ,BL03,Maintenance of Grounds,450,"11,680.20",3/22/2012,R,VEOLIA ES (UK) LIMITED        
2012 - APR,Cultural Env Reg&Plan Services,Environmental Health,Dog Control.                            ,G00620,Third Party Payments          ,Private Contractors           ,EH02,Miscellaneous Hired Services,451,"2,399.81",4/4/2012,R,RIVERSIDE ANIMAL SERVICES     
2012 - APR,Cultural Env Reg&Plan Services,Waste Collection,Recycling Activities                    ,G00640,Supplies & Services           ,Equip Furniture/Materials     ,DA04,Materials,452,"34,859.88",3/23/2012,R,SPHERE PROFFESSIONAL          
2012 - APR,Cultural Env Reg&Plan Services,Waste Collection,Recycling Activities                    ,G00640,Supplies & Services           ,Equip Furniture/Materials     ,DA04,Materials,453,630,4/13/2012,R,BROXAP LIMITED                
2012 - APR,Cultural Env Reg&Plan Services,Waste Collection,Recycling Activities                    ,G00640,Third Party Payments          ,Private Contractors           ,EH03,Term Contract,454,"47,631.61",3/30/2012,R,KINGSTON CORPORATION          
2012 - APR,Cultural Env Reg&Plan Services,Waste Collection,Recycling Activities                    ,G00640,Third Party Payments          ,Private Contractors           ,EH03,Term Contract,455,"50,794.24",2/24/2012,R,KINGSTON CORPORATION          
2012 - APR,Cultural Env Reg&Plan Services,Waste Collection,Recycling Activities                    ,G00640,Third Party Payments          ,Private Contractors           ,EH10,Contract Payments,456,"3,065.72",3/30/2012,R,KINGSTON CORPORATION          
2012 - APR,Cultural Env Reg&Plan Services,Waste Collection,Recycling Activities                    ,G00640,Third Party Payments          ,Private Contractors           ,EH18,Disposal of Kitchen Waste,457,"17,519.78",3/30/2012,R,KINGSTON CORPORATION          
2012 - APR,Cultural Env Reg&Plan Services,Waste Collection,Recycling Activities                    ,G00640,Third Party Payments          ,Private Contractors           ,EH18,Disposal of Kitchen Waste,458,"10,396.72",2/24/2012,R,KINGSTON CORPORATION          
2012 - APR,Cultural Env Reg&Plan Services,Waste Collection,Recycling Activities                    ,G00640,Third Party Payments          ,Private Contractors           ,EH61,Green Waste Disposal,459,"10,615.46",3/31/2012,R,VIRIDOR WASTE KENT LTD        
2012 - APR,Cultural Env Reg&Plan Services,Waste Collection,Recycling Activities                    ,G00640,Third Party Payments          ,Private Contractors           ,EH63,Paper Haulage,460,"159,785.12",3/30/2012,R,KINGSTON CORPORATION          
2012 - APR,Cultural Env Reg&Plan Services,Waste Collection,Recycling Activities                    ,G00640,Third Party Payments          ,Private Contractors           ,EH63,Paper Haulage,461,"93,196.02",3/30/2012,R,KINGSTON CORPORATION          
2012 - APR,Cultural Env Reg&Plan Services,Waste Collection,Recycling Activities                    ,G00640,Third Party Payments          ,Private Contractors           ,EH63,Paper Haulage,462,"103,248.63",3/9/2012,R,KINGSTON CORPORATION          
2012 - APR,Cultural Env Reg&Plan Services,Waste Collection,Refuse Collection (Operations)          ,G00661,Supplies & Services           ,Equip Furniture/Materials     ,DA04,Materials,463,824,3/26/2012,R,WESTWAYS VENDING LTD          
2012 - APR,Cultural Env Reg&Plan Services,Waste Collection,Refuse Collection (Operations)          ,G00661,Supplies & Services           ,Equip Furniture/Materials     ,DA08,Tools-Purchase,464,"1,100.50",4/4/2012,R,BELL BRUSH                    
2012 - APR,Cultural Env Reg&Plan Services,Street Cleaning - Not highways,Waste Enforcement                       ,G00680,Supplies & Services           ,Comms and Computing           ,DG02,Software Licences,465,935.1,3/14/2012,R,IMPERIAL CIVIL ENFORC.SOLUT.  
2012 - APR,Cultural Env Reg&Plan Services,Consumer Protection,Trading Standards                       ,G00690,Supplies & Services           ,Grants and Subscriptions      ,DJ04,Subscriptions,466,"1,352.00",3/26/2012,R,LEXIS NEXIS                   
2012 - APR,Cultural Env Reg&Plan Services,Consumer Protection,Trading Standards                       ,G00690,Supplies & Services           ,Grants and Subscriptions      ,DJ04,Subscriptions,467,545,3/26/2012,R,LEXIS NEXIS                   
2012 - APR,Cultural Env Reg&Plan Services,Consumer Protection,Trading Standards                       ,G00690,Supplies & Services           ,Grants and Subscriptions      ,DJ04,Subscriptions,468,545,3/26/2012,R,LEXIS NEXIS                   
2012 - APR,Cultural Env Reg&Plan Services,Consumer Protection,Trading Standards                       ,G00690,Supplies & Services           ,Miscellaneous Expenses        ,DL32,Expert reports,469,621.25,3/26/2012,R,LONDON BOROUGH OF ENFIELD     
2012 - APR,Cultural Env Reg&Plan Services,Consumer Protection,Trading Standards                       ,G00690,Third Party Payments          ,Other Local Authorities       ,EB52,GLMCA Contribution,470,"4,207.30",3/30/2012,R,ROYAL BOROUGH OF KINGSTON UPON
2012 - APR,Cultural Env Reg&Plan Services,Environmental Health,Merton Winter Warmer Programme          ,G00696,Third Party Payments          ,Private Contractors           ,EH01,Miscellaneous Agency Services,471,"5,147.00",4/10/2012,R,AGE UK MERTON LIMITED         
2012 - APR,Cultural Env Reg&Plan Services,Environmental Health,Merton Winter Warmer Programme          ,G00696,Third Party Payments          ,Private Contractors           ,EH02,Miscellaneous Hired Services,472,"4,375.00",3/9/2012,R,OSBORNE ENERGY LTD            
2012 - APR,Cultural Env Reg&Plan Services,Environmental Health,Merton Winter Warmer Programme          ,G00696,Third Party Payments          ,Private Contractors           ,EH02,Miscellaneous Hired Services,473,"2,625.00",3/30/2012,R,OSBORNE ENERGY LTD            
2012 - APR,Cultural Env Reg&Plan Services,Environmental Health,Health & Safety                         ,G00697,Supplies & Services           ,Grants and Subscriptions      ,DJ04,Subscriptions,474,"1,365.00",3/5/2012,R,LEXIS NEXIS                   
2012 - APR,Cultural Env Reg&Plan Services,Cemetery Cremation & Mortuary,Mortuary                                ,G00700,Third Party Payments          ,Other Local Authorities       ,EB01,Payments to OLAs,475,"19,310.00",3/30/2012,R,ST GEORGES HEALTHCARE TRUST   
2012 - APR,Cultural Env Reg&Plan Services,Environmental Health,Housing/Env                             ,G00730,Employees                     ,Direct Employee Expenses      ,AA17,Agency Staff & Casual Paymts,476,869.4,4/4/2012,R,REDACTED
2012 - APR,Cultural Env Reg&Plan Services,Environmental Health,Housing/Env                             ,G00730,Employees                     ,Direct Employee Expenses      ,AA17,Agency Staff & Casual Paymts,477,805,4/11/2012,R,REDACTED
2012 - APR,Cultural Env Reg&Plan Services,SMSS (Env),Waste Management                        ,G00900,Supplies & Services           ,Grants and Subscriptions      ,DJ04,Subscriptions,478,"3,185.00",4/3/2012,R,APSE                          
2012 - APR,Central Services,Gen Grants Bequest & Donations,Vestry Hall                             ,G40314,Employees                     ,Direct Employee Expenses      ,AA17,Agency Staff & Casual Paymts,479,"4,486.95",4/10/2012,R,PCL SECURITY LTD              
2012 - APR,Central Services,Gen Grants Bequest & Donations,Vestry Hall                             ,G40314,Employees                     ,Direct Employee Expenses      ,AA17,Agency Staff & Casual Paymts,480,567,3/31/2012,R,PCL SECURITY LTD              
2012 - APR,Central Services,Gen Grants Bequest & Donations,Vestry Hall                             ,G40314,Premises Related Expenditure  ,RepairsAlterations&MtceOfBldgs,BA01,DDM - General Building,481,"2,600.00",3/30/2012,R,AIR SURVEYS  LIMITED          
2012 - APR,Central Services,Gen Grants Bequest & Donations,Vestry Hall                             ,G40314,Premises Related Expenditure  ,RepairsAlterations&MtceOfBldgs,BA01,DDM - General Building,482,557.82,4/16/2012,R,PN CLEANING UK                
2012 - APR,Central Services,Gen Grants Bequest & Donations,Vestry Hall                             ,G40314,Supplies & Services           ,Equip Furniture/Materials     ,DA09,Equip-Purchases,483,857,4/19/2012,R,OFFICE REALITY LTD            
2012 - APR,Central Services,Gen Grants Bequest & Donations,Vestry Hall                             ,G40314,Supplies & Services           ,Grants and Subscriptions      ,DJ01,Grants,484,"6,170.00",4/18/2012,R,COLLIERS WOOD COMMUNITY ASSOC 
2012 - APR,Central Services,Gen Grants Bequest & Donations,Vestry Hall                             ,G40314,Supplies & Services           ,Grants and Subscriptions      ,DJ01,Grants,485,"18,640.00",4/18/2012,R,NORTH EAST MITCHAM COMM ASSOC 
2012 - APR,Central Services,Gen Grants Bequest & Donations,Vestry Hall                             ,G40314,Supplies & Services           ,Grants and Subscriptions      ,DJ01,Grants,486,"19,320.00",4/18/2012,R,SOUTH MITCHAM COMMUNITY ASS   
2012 - APR,Central Services,Gen Grants Bequest & Donations,Vestry Hall                             ,G40314,Supplies & Services           ,Grants and Subscriptions      ,DJ01,Grants,487,"1,975.00",4/18/2012,R,THE WANDLE INDUSTRIAL MUSEUM  
2012 - APR,Central Services,Gen Grants Bequest & Donations,Vestry Hall                             ,G40314,Supplies & Services           ,Grants and Subscriptions      ,DJ01,Grants,488,"27,050.00",4/18/2012,R,ST MARKS FAMILY CENTRE        
2012 - APR,Central Services,Gen Grants Bequest & Donations,Vestry Hall                             ,G40314,Supplies & Services           ,Grants and Subscriptions      ,DJ01,Grants,489,"2,735.00",4/18/2012,R,SOUTH WIMBLEDON COMMUNITY ASSO
2012 - APR,Cultural Env Reg&Plan Services,Building Control,Building Control                        ,H01100,Supplies & Services           ,Services                      ,DF57,Consulting Engineers Fees,490,584,4/1/2012,R,BSI CUSTOMER SERVICES         
2012 - APR,Cultural Env Reg&Plan Services,Development Control,Development Control                     ,H01130,Supplies & Services           ,Comms and Computing           ,DG50,Other IT Expenditure,491,"2,000.00",3/30/2012,R,NORTHGATE INFORMATION SOLUTION
2012 - APR,Cultural Env Reg&Plan Services,Development Control,Development Control                     ,H01130,Supplies & Services           ,Expenses                      ,DH02,Conferences,492,"2,421.00",2/23/2012,R,RTPI CONFERENCES              
2012 - APR,Cultural Env Reg&Plan Services,Development Control,Development Control                     ,H01130,Oth Grants Reimbmnts/Contribs ,Cost recharges to other bodies,QC10,Recovery of Costs (X),493,700,4/13/2012,R,REDACTED
2012 - APR,Cultural Env Reg&Plan Services,Planning Policy,Spatial Policy                          ,H01173,Supplies & Services           ,Comms and Computing           ,DG07,Computer Software,494,"1,944.54",3/28/2012,R,QBS SOFTWARE LIMITED          
2012 - APR,Cultural Env Reg&Plan Services,Planning Policy,Spatial Policy                          ,H01173,Supplies & Services           ,Comms and Computing           ,DG07,Computer Software,495,"1,946.85",3/28/2012,R,QBS SOFTWARE LIMITED          
2012 - APR,Cultural Env Reg&Plan Services,Planning Policy,Spatial Policy                          ,H01173,Supplies & Services           ,Comms and Computing           ,DG61,Computer Servs Special,496,"1,904.82",4/4/2012,R,MISCO                         
2012 - APR,Cultural Env Reg&Plan Services,Planning Policy,Spatial Policy                          ,H01173,Third Party Payments          ,Private Contractors           ,EH10,Contract Payments,497,"9,316.64",3/29/2012,R,EDMUNDSON ELECTRICAL LTD      
2012 - APR,Cultural Env Reg&Plan Services,Planning Policy,Spatial Policy                          ,H01173,Third Party Payments          ,Private Contractors           ,EH10,Contract Payments,498,"5,000.00",3/30/2012,R,GVA GRIMLEY LTD               
2012 - APR,Cultural Env Reg&Plan Services,Planning Policy,Spatial Policy                          ,H01173,Third Party Payments          ,Private Contractors           ,EH10,Contract Payments,499,"2,000.00",3/27/2012,R,LONDON WILDLIFE TRUST         
2012 - APR,Cultural Env Reg&Plan Services,Planning Policy,Spatial Policy                          ,H01173,Third Party Payments          ,Private Contractors           ,EH10,Contract Payments,500,"2,000.00",4/18/2012,R,DIXON SEARLE LLP              
2012 - APR,Cultural Env Reg&Plan Services,Planning Policy,REGENERATION & INVESTMENT              ,H01174,Third Party Payments          ,Private Contractors           ,EH10,Contract Payments,501,"10,000.00",3/28/2012,R,FM CONWAY LTD                 
2012 - APR,CS -Oth Operating Inc & Expend,INVESTMENT PROPERTIES,MILES RD GENERATOR                      ,H01203,Premises Related Expenditure  ,Rents                         ,BC01,Miscellaneous Rents,502,"8,000.00",2/23/2012,R,W&R BUXTON LTD PENSION FUND   
2012 - APR,CS -Oth Operating Inc & Expend,Trading A/c Surpluses/Deficits,Transport-Contract Hire                 ,J01374,Premises Related Expenditure  ,Energy Costs                  ,BB03,Gas (incl. Butane),503,"1,278.06",3/22/2012,R,KENT COUNTY COUNCIL           
2012 - APR,CS -Oth Operating Inc & Expend,Trading A/c Surpluses/Deficits,Transport-Contract Hire                 ,J01374,Transport Related Expenditure ,Direct Transport Costs        ,CA01,Petrol Derv & Oil,504,"34,054.63",3/20/2012,R,EMO OILS LTD                  
2012 - APR,CS -Oth Operating Inc & Expend,Trading A/c Surpluses/Deficits,Transport-Contract Hire                 ,J01374,Transport Related Expenditure ,Direct Transport Costs        ,CA55,Specialist Maint. (Off Site),505,514.11,3/26/2012,R,FLEETSPEED COACHWORKS LTD.    
2012 - APR,CS -Oth Operating Inc & Expend,Trading A/c Surpluses/Deficits,Transport-Contract Hire                 ,J01374,Transport Related Expenditure ,Direct Transport Costs        ,CA55,Specialist Maint. (Off Site),506,903.31,3/26/2012,R,FLEETSPEED COACHWORKS LTD.    
2012 - APR,CS -Oth Operating Inc & Expend,Trading A/c Surpluses/Deficits,Transport-Contract Hire                 ,J01374,Transport Related Expenditure ,Direct Transport Costs        ,CA55,Specialist Maint. (Off Site),507,996.84,3/26/2012,R,FLEETSPEED COACHWORKS LTD.    
2012 - APR,CS -Oth Operating Inc & Expend,Trading A/c Surpluses/Deficits,Transport-Contract Hire                 ,J01374,Transport Related Expenditure ,Direct Transport Costs        ,CA55,Specialist Maint. (Off Site),508,"1,451.76",3/26/2012,R,FLEETSPEED COACHWORKS LTD.    
2012 - APR,CS -Oth Operating Inc & Expend,Trading A/c Surpluses/Deficits,Transport-Contract Hire                 ,J01374,Transport Related Expenditure ,Direct Transport Costs        ,CA56,Specialist Maint. (On Site),509,578.81,2/14/2012,R,FITZ AIR                      
2012 - APR,CS -Oth Operating Inc & Expend,Trading A/c Surpluses/Deficits,Transport-Contract Hire                 ,J01374,Transport Related Expenditure ,Direct Transport Costs        ,CA56,Specialist Maint. (On Site),510,506.25,3/26/2012,R,R.J.H.WELDING                 
2012 - APR,CS -Oth Operating Inc & Expend,Trading A/c Surpluses/Deficits,Transport-Contract Hire                 ,J01374,Transport Related Expenditure ,Direct Transport Costs        ,CA56,Specialist Maint. (On Site),511,734.36,3/26/2012,R,R.J.H.WELDING                 
2012 - APR,CS -Oth Operating Inc & Expend,Trading A/c Surpluses/Deficits,Transport-Contract Hire                 ,J01374,Transport Related Expenditure ,Direct Transport Costs        ,CA56,Specialist Maint. (On Site),512,715.61,3/26/2012,R,R.J.H.WELDING                 
2012 - APR,CS -Oth Operating Inc & Expend,Trading A/c Surpluses/Deficits,Transport-Contract Hire                 ,J01374,Transport Related Expenditure ,Direct Transport Costs        ,CA56,Specialist Maint. (On Site),513,828.11,3/26/2012,R,R.J.H.WELDING                 
2012 - APR,CS -Oth Operating Inc & Expend,Trading A/c Surpluses/Deficits,Transport-Contract Hire                 ,J01374,Transport Related Expenditure ,Direct Transport Costs        ,CA56,Specialist Maint. (On Site),514,560.66,3/3/2012,R,FITZ AIR                      
2012 - APR,CS -Oth Operating Inc & Expend,Trading A/c Surpluses/Deficits,Transport-Contract Hire                 ,J01374,Transport Related Expenditure ,Direct Transport Costs        ,CA56,Specialist Maint. (On Site),515,"1,109.35",3/26/2012,R,R.J.H.WELDING                 
2012 - APR,CS -Oth Operating Inc & Expend,Trading A/c Surpluses/Deficits,Transport-Contract Hire                 ,J01374,Transport Related Expenditure ,Direct Transport Costs        ,CA72,Vehicle Parts,516,844.04,3/22/2012,R,GEESINK NORBA                 
2012 - APR,CS -Oth Operating Inc & Expend,Trading A/c Surpluses/Deficits,Transport-Contract Hire                 ,J01374,Transport Related Expenditure ,Direct Transport Costs        ,CA72,Vehicle Parts,517,759.67,3/27/2012,R,COMMERCIAL & PLANT LTD        
2012 - APR,CS -Oth Operating Inc & Expend,Trading A/c Surpluses/Deficits,Transport-Contract Hire                 ,J01374,Transport Related Expenditure ,Direct Transport Costs        ,CA72,Vehicle Parts,518,715,3/22/2012,R,TENNANTS                      
2012 - APR,CS -Oth Operating Inc & Expend,Trading A/c Surpluses/Deficits,Transport-Contract Hire                 ,J01374,Transport Related Expenditure ,Contract Hire and Op Leasing  ,CC53,Plant Hire for MRCS,519,759,4/2/2012,R,GVS HIRE LTD                  
2012 - APR,CS -Oth Operating Inc & Expend,Trading A/c Surpluses/Deficits,Transport-Contract Hire                 ,J01374,Transport Related Expenditure ,Contract Hire and Op Leasing  ,CC53,Plant Hire for MRCS,520,"2,576.00",4/2/2012,R,GVS HIRE LTD                  
2012 - APR,CS -Oth Operating Inc & Expend,Trading A/c Surpluses/Deficits,Transport-Contract Hire                 ,J01374,Transport Related Expenditure ,Contract Hire and Op Leasing  ,CC53,Plant Hire for MRCS,521,535,3/26/2012,R,PHOENIX VEHICLE HIRE LTD      
2012 - APR,CS -Oth Operating Inc & Expend,Trading A/c Surpluses/Deficits,Transport-Contract Hire                 ,J01374,Transport Related Expenditure ,Contract Hire and Op Leasing  ,CC53,Plant Hire for MRCS,522,"2,280.00",4/2/2012,R,GVS HIRE LTD                  
2012 - APR,CS -Oth Operating Inc & Expend,Trading A/c Surpluses/Deficits,Transport-Contract Hire                 ,J01374,Transport Related Expenditure ,Contract Hire and Op Leasing  ,CC53,Plant Hire for MRCS,523,"1,219.00",4/2/2012,R,GVS HIRE LTD                  
2012 - APR,CS -Oth Operating Inc & Expend,Trading A/c Surpluses/Deficits,Transport-Contract Hire                 ,J01374,Transport Related Expenditure ,Contract Hire and Op Leasing  ,CC53,Plant Hire for MRCS,524,535,4/5/2012,R,PHOENIX VEHICLE HIRE LTD      
2012 - APR,CS -Oth Operating Inc & Expend,Trading A/c Surpluses/Deficits,Transport-Contract Hire                 ,J01374,Transport Related Expenditure ,Contract Hire and Op Leasing  ,CC53,Plant Hire for MRCS,525,819.26,3/31/2012,R,SHB HIRE LTD                  
2012 - APR,CS -Oth Operating Inc & Expend,Trading A/c Surpluses/Deficits,Transport-Contract Hire                 ,J01374,Transport Related Expenditure ,Contract Hire and Op Leasing  ,CC53,Plant Hire for MRCS,526,650,3/23/2012,R,GO PLANT                      
2012 - APR,CS -Oth Operating Inc & Expend,Trading A/c Surpluses/Deficits,Transport-Contract Hire                 ,J01374,Transport Related Expenditure ,Contract Hire and Op Leasing  ,CC53,Plant Hire for MRCS,527,535,4/2/2012,R,PHOENIX VEHICLE HIRE LTD      
2012 - APR,CS -Oth Operating Inc & Expend,Trading A/c Surpluses/Deficits,Transport-Contract Hire                 ,J01374,Transport Related Expenditure ,Contract Hire and Op Leasing  ,CC53,Plant Hire for MRCS,528,819.26,3/31/2012,R,SHB HIRE LTD                  
2012 - APR,CS -Oth Operating Inc & Expend,Trading A/c Surpluses/Deficits,Transport-Contract Hire                 ,J01374,Transport Related Expenditure ,Contract Hire and Op Leasing  ,CC53,Plant Hire for MRCS,529,819.26,3/31/2012,R,SHB HIRE LTD                  
2012 - APR,CS -Oth Operating Inc & Expend,Trading A/c Surpluses/Deficits,Transport-Contract Hire                 ,J01374,Transport Related Expenditure ,Contract Hire and Op Leasing  ,CC53,Plant Hire for MRCS,530,"1,483.55",3/31/2012,R,SHB HIRE LTD                  
2012 - APR,CS -Oth Operating Inc & Expend,Trading A/c Surpluses/Deficits,Transport-Contract Hire                 ,J01374,Transport Related Expenditure ,Contract Hire and Op Leasing  ,CC53,Plant Hire for MRCS,531,650,3/30/2012,R,GO PLANT                      
2012 - APR,CS -Oth Operating Inc & Expend,Trading A/c Surpluses/Deficits,Transport-Contract Hire                 ,J01374,Transport Related Expenditure ,Contract Hire and Op Leasing  ,CC53,Plant Hire for MRCS,532,"2,500.00",3/30/2012,R,NOBLET MUNICIPAL SERVICES LTD 
2012 - APR,CS -Oth Operating Inc & Expend,Trading A/c Surpluses/Deficits,Transport-Contract Hire                 ,J01374,Transport Related Expenditure ,Contract Hire and Op Leasing  ,CC53,Plant Hire for MRCS,533,792,3/31/2012,R,B&T PLANT HIRE LTD            
2012 - APR,CS -Oth Operating Inc & Expend,Trading A/c Surpluses/Deficits,Transport-Contract Hire                 ,J01374,Transport Related Expenditure ,Contract Hire and Op Leasing  ,CC53,Plant Hire for MRCS,534,650,4/6/2012,R,GO PLANT                      
2012 - APR,CS -Oth Operating Inc & Expend,Trading A/c Surpluses/Deficits,Transport-Contract Hire                 ,J01374,Transport Related Expenditure ,Contract Hire and Op Leasing  ,CC53,Plant Hire for MRCS,535,535,4/16/2012,R,PHOENIX VEHICLE HIRE LTD      
2012 - APR,CS -Oth Operating Inc & Expend,Trading A/c Surpluses/Deficits,Transport-Contract Hire                 ,J01374,Transport Related Expenditure ,Contract Hire and Op Leasing  ,CC55,Plant Hire for Parking,536,528.79,3/31/2012,R,REDACTED
2012 - APR,CS -Oth Operating Inc & Expend,Trading A/c Surpluses/Deficits,Transport-Contract Hire                 ,J01374,Transport Related Expenditure ,Contract Hire and Op Leasing  ,CC57,Plant Hire for Housing,537,702,3/30/2012,R,KENT COUNTY COUNCIL           
2012 - APR,CS -Oth Operating Inc & Expend,Trading A/c Surpluses/Deficits,Transport-Contract Hire                 ,J01374,Transport Related Expenditure ,Contract Hire and Op Leasing  ,CC57,Plant Hire for Housing,538,940,3/31/2012,R,REDACTED
2012 - APR,CS -Oth Operating Inc & Expend,Trading A/c Surpluses/Deficits,Transport-Contract Hire                 ,J01374,Transport Related Expenditure ,Contract Hire and Op Leasing  ,CC60,Vehicle Hire for LB Sutton,539,"4,004.00",3/31/2012,R,BARCLAYS ASSET & SALES FINANCE
2012 - APR,CS -Oth Operating Inc & Expend,Trading A/c Surpluses/Deficits,Transport-Contract Hire                 ,J01374,Transport Related Expenditure ,Contract Hire and Op Leasing  ,CC60,Vehicle Hire for LB Sutton,540,"1,080.00",3/31/2012,R,BARCLAYS ASSET & SALES FINANCE
2012 - APR,CS -Oth Operating Inc & Expend,Trading A/c Surpluses/Deficits,Transport-Contract Hire                 ,J01374,Transport Related Expenditure ,Contract Hire and Op Leasing  ,CC60,Vehicle Hire for LB Sutton,541,"3,476.00",3/31/2012,R,BARCLAYS ASSET & SALES FINANCE
2012 - APR,CS -Oth Operating Inc & Expend,Trading A/c Surpluses/Deficits,Transport-Contract Hire                 ,J01374,Transport Related Expenditure ,Contract Hire and Op Leasing  ,CC60,Vehicle Hire for LB Sutton,542,"1,320.00",3/31/2012,R,BARCLAYS ASSET & SALES FINANCE
2012 - APR,CS -Oth Operating Inc & Expend,Trading A/c Surpluses/Deficits,Transport-Contract Hire                 ,J01374,Transport Related Expenditure ,Contract Hire and Op Leasing  ,CC60,Vehicle Hire for LB Sutton,543,"2,420.00",3/31/2012,R,BARCLAYS ASSET & SALES FINANCE
2012 - APR,CS -Oth Operating Inc & Expend,Trading A/c Surpluses/Deficits,Transport-Contract Hire                 ,J01374,Transport Related Expenditure ,Contract Hire and Op Leasing  ,CC60,Vehicle Hire for LB Sutton,544,"2,266.00",3/30/2012,R,BRUNSWICK CARS LTD            
2012 - APR,CS -Oth Operating Inc & Expend,Trading A/c Surpluses/Deficits,Transport-Contract Hire                 ,J01374,Transport Related Expenditure ,Contract Hire and Op Leasing  ,CC60,Vehicle Hire for LB Sutton,545,"3,080.00",3/30/2012,R,BRUNSWICK CARS LTD            
2012 - APR,CS -Oth Operating Inc & Expend,Trading A/c Surpluses/Deficits,Transport-Contract Hire                 ,J01374,Transport Related Expenditure ,Contract Hire and Op Leasing  ,CC60,Vehicle Hire for LB Sutton,546,"1,892.00",3/31/2012,R,BARCLAYS ASSET & SALES FINANCE
2012 - APR,CS -Oth Operating Inc & Expend,Trading A/c Surpluses/Deficits,Transport-Contract Hire                 ,J01374,Transport Related Expenditure ,Contract Hire and Op Leasing  ,CC60,Vehicle Hire for LB Sutton,547,"3,938.00",3/30/2012,R,BRUNSWICK CARS LTD            
2012 - APR,CS -Oth Operating Inc & Expend,Trading A/c Surpluses/Deficits,Transport-Contract Hire                 ,J01374,Transport Related Expenditure ,Contract Hire and Op Leasing  ,CC60,Vehicle Hire for LB Sutton,548,"2,499.00",3/30/2012,R,BRUNSWICK CARS LTD            
2012 - APR,CS -Oth Operating Inc & Expend,Trading A/c Surpluses/Deficits,Transport-Contract Hire                 ,J01374,Transport Related Expenditure ,Contract Hire and Op Leasing  ,CC60,Vehicle Hire for LB Sutton,549,"2,200.00",3/30/2012,R,BRUNSWICK CARS LTD            
2012 - APR,CS -Oth Operating Inc & Expend,Trading A/c Surpluses/Deficits,Transport-Contract Hire                 ,J01374,Transport Related Expenditure ,Contract Hire and Op Leasing  ,CC60,Vehicle Hire for LB Sutton,550,814,3/31/2012,R,CAPITAL CARS                  
2012 - APR,CS -Oth Operating Inc & Expend,Trading A/c Surpluses/Deficits,Transport-Contract Hire                 ,J01374,Transport Related Expenditure ,Contract Hire and Op Leasing  ,CC60,Vehicle Hire for LB Sutton,551,"1,039.50",4/1/2012,R,CALVERTON FACTORS LTD         
2012 - APR,CS -Oth Operating Inc & Expend,Trading A/c Surpluses/Deficits,Transport-Contract Hire                 ,J01374,Transport Related Expenditure ,Contract Hire and Op Leasing  ,CC60,Vehicle Hire for LB Sutton,552,630,3/31/2012,R,BARCLAYS ASSET & SALES FINANCE
2012 - APR,CS -Oth Operating Inc & Expend,Trading A/c Surpluses/Deficits,Transport-Contract Hire                 ,J01374,Transport Related Expenditure ,Contract Hire and Op Leasing  ,CC60,Vehicle Hire for LB Sutton,553,"1,672.00",4/1/2012,R,CALVERTON FACTORS LTD         
2012 - APR,CS -Oth Operating Inc & Expend,Trading A/c Surpluses/Deficits,Transport-Contract Hire                 ,J01374,Transport Related Expenditure ,Contract Hire and Op Leasing  ,CC60,Vehicle Hire for LB Sutton,554,"2,175.00",4/1/2012,R,CALVERTON FACTORS LTD         
2012 - APR,CS -Oth Operating Inc & Expend,Trading A/c Surpluses/Deficits,Transport-Contract Hire                 ,J01374,Transport Related Expenditure ,Contract Hire and Op Leasing  ,CC60,Vehicle Hire for LB Sutton,555,972,3/31/2012,R,KENDALL CARS                  
2012 - APR,CS -Oth Operating Inc & Expend,Trading A/c Surpluses/Deficits,Transport-Contract Hire                 ,J01374,Transport Related Expenditure ,Contract Hire and Op Leasing  ,CC60,Vehicle Hire for LB Sutton,556,866.5,4/1/2012,R,CALVERTON FACTORS LTD         
2012 - APR,CS -Oth Operating Inc & Expend,Trading A/c Surpluses/Deficits,Transport-Contract Hire                 ,J01374,Transport Related Expenditure ,Contract Hire and Op Leasing  ,CC60,Vehicle Hire for LB Sutton,557,"1,113.50",4/1/2012,R,CALVERTON FACTORS LTD         
2012 - APR,CS -Oth Operating Inc & Expend,Trading A/c Surpluses/Deficits,Transport-Contract Hire                 ,J01374,Transport Related Expenditure ,Contract Hire and Op Leasing  ,CC64,Mini Cab Hire for Education,558,"2,068.43",4/4/2012,R,DAWSON RENTALS BUS AND COACH  
2012 - APR,CS -Oth Operating Inc & Expend,Trading A/c Surpluses/Deficits,Transport-Contract Hire                 ,J01374,Transport Related Expenditure ,Contract Hire and Op Leasing  ,CC64,Mini Cab Hire for Education,559,"8,248.70",3/25/2012,R,KINGSTON ACCESSIBILITY TRAN LT
2012 - APR,CS -Oth Operating Inc & Expend,Trading A/c Surpluses/Deficits,Transport-Contract Hire                 ,J01374,Transport Related Expenditure ,Contract Hire and Op Leasing  ,CC64,Mini Cab Hire for Education,560,"1,458.62",4/4/2012,R,DAWSON RENTALS BUS AND COACH  
2012 - APR,CS -Oth Operating Inc & Expend,Trading A/c Surpluses/Deficits,Transport-Contract Hire                 ,J01374,Transport Related Expenditure ,Contract Hire and Op Leasing  ,CC64,Mini Cab Hire for Education,561,"1,458.62",4/4/2012,R,DAWSON RENTALS BUS AND COACH  
2012 - APR,CS -Oth Operating Inc & Expend,Trading A/c Surpluses/Deficits,Transport-Contract Hire                 ,J01374,Transport Related Expenditure ,Contract Hire and Op Leasing  ,CC64,Mini Cab Hire for Education,562,556.8,1/31/2012,R,MERTON COMMUNITY TRANSPORT    
2012 - APR,CS -Oth Operating Inc & Expend,Trading A/c Surpluses/Deficits,Transport-Contract Hire                 ,J01374,Transport Related Expenditure ,Contract Hire and Op Leasing  ,CC64,Mini Cab Hire for Education,563,"1,360.00",3/30/2012,R,BRUNSWICK CARS LTD            
2012 - APR,CS -Oth Operating Inc & Expend,Trading A/c Surpluses/Deficits,Transport-Contract Hire                 ,J01374,Transport Related Expenditure ,Contract Hire and Op Leasing  ,CC64,Mini Cab Hire for Education,564,"1,408.00",3/30/2012,R,BRUNSWICK CARS LTD            
2012 - APR,CS -Oth Operating Inc & Expend,Trading A/c Surpluses/Deficits,Transport-Contract Hire                 ,J01374,Transport Related Expenditure ,Contract Hire and Op Leasing  ,CC64,Mini Cab Hire for Education,565,"7,417.70",4/1/2012,R,KINGSTON ACCESSIBILITY TRAN LT
2012 - APR,CS -Oth Operating Inc & Expend,Trading A/c Surpluses/Deficits,Transport-Contract Hire                 ,J01374,Transport Related Expenditure ,Contract Hire and Op Leasing  ,CC64,Mini Cab Hire for Education,566,"3,515.00",3/30/2012,R,SILVERBURN FINANCE (UK) LTD   
2012 - APR,CS -Oth Operating Inc & Expend,Trading A/c Surpluses/Deficits,Transport-Contract Hire                 ,J01374,Transport Related Expenditure ,Contract Hire and Op Leasing  ,CC64,Mini Cab Hire for Education,567,"3,080.00",3/31/2012,R,BARCLAYS ASSET & SALES FINANCE
2012 - APR,CS -Oth Operating Inc & Expend,Trading A/c Surpluses/Deficits,Transport-Contract Hire                 ,J01374,Transport Related Expenditure ,Contract Hire and Op Leasing  ,CC64,Mini Cab Hire for Education,568,"2,480.00",3/31/2012,R,BARCLAYS ASSET & SALES FINANCE
2012 - APR,CS -Oth Operating Inc & Expend,Trading A/c Surpluses/Deficits,Transport-Contract Hire                 ,J01374,Transport Related Expenditure ,Contract Hire and Op Leasing  ,CC64,Mini Cab Hire for Education,569,768,3/31/2012,R,BARCLAYS ASSET & SALES FINANCE
2012 - APR,CS -Oth Operating Inc & Expend,Trading A/c Surpluses/Deficits,Transport-Contract Hire                 ,J01374,Transport Related Expenditure ,Contract Hire and Op Leasing  ,CC64,Mini Cab Hire for Education,570,943.16,3/31/2012,R,BARCLAYS ASSET & SALES FINANCE
2012 - APR,CS -Oth Operating Inc & Expend,Trading A/c Surpluses/Deficits,Transport-Contract Hire                 ,J01374,Transport Related Expenditure ,Contract Hire and Op Leasing  ,CC64,Mini Cab Hire for Education,571,924,3/31/2012,R,BARCLAYS ASSET & SALES FINANCE
2012 - APR,CS -Oth Operating Inc & Expend,Trading A/c Surpluses/Deficits,Transport-Contract Hire                 ,J01374,Transport Related Expenditure ,Contract Hire and Op Leasing  ,CC64,Mini Cab Hire for Education,572,"1,144.00",3/31/2012,R,BARCLAYS ASSET & SALES FINANCE
2012 - APR,CS -Oth Operating Inc & Expend,Trading A/c Surpluses/Deficits,Transport-Contract Hire                 ,J01374,Transport Related Expenditure ,Contract Hire and Op Leasing  ,CC64,Mini Cab Hire for Education,573,"2,525.60",4/1/2012,R,SHERWOOD TRANSPORT GROUP      
2012 - APR,CS -Oth Operating Inc & Expend,Trading A/c Surpluses/Deficits,Transport-Contract Hire                 ,J01374,Transport Related Expenditure ,Contract Hire and Op Leasing  ,CC64,Mini Cab Hire for Education,574,"1,298.00",4/1/2012,R,SHERWOOD TRANSPORT GROUP      
2012 - APR,CS -Oth Operating Inc & Expend,Trading A/c Surpluses/Deficits,Transport-Contract Hire                 ,J01374,Transport Related Expenditure ,Contract Hire and Op Leasing  ,CC64,Mini Cab Hire for Education,575,725,4/1/2012,R,SHERWOOD TRANSPORT GROUP      
2012 - APR,CS -Oth Operating Inc & Expend,Trading A/c Surpluses/Deficits,Transport-Contract Hire                 ,J01374,Transport Related Expenditure ,Contract Hire and Op Leasing  ,CC64,Mini Cab Hire for Education,576,"2,016.00",3/31/2012,R,BARCLAYS ASSET & SALES FINANCE
2012 - APR,CS -Oth Operating Inc & Expend,Trading A/c Surpluses/Deficits,Transport-Contract Hire                 ,J01374,Transport Related Expenditure ,Contract Hire and Op Leasing  ,CC64,Mini Cab Hire for Education,577,800,3/31/2012,R,BARCLAYS ASSET & SALES FINANCE
2012 - APR,CS -Oth Operating Inc & Expend,Trading A/c Surpluses/Deficits,Transport-Contract Hire                 ,J01374,Transport Related Expenditure ,Contract Hire and Op Leasing  ,CC64,Mini Cab Hire for Education,578,"2,024.00",3/31/2012,R,BARCLAYS ASSET & SALES FINANCE
2012 - APR,CS -Oth Operating Inc & Expend,Trading A/c Surpluses/Deficits,Transport-Contract Hire                 ,J01374,Transport Related Expenditure ,Contract Hire and Op Leasing  ,CC64,Mini Cab Hire for Education,579,"3,161.50",3/31/2012,R,BARCLAYS ASSET & SALES FINANCE
2012 - APR,CS -Oth Operating Inc & Expend,Trading A/c Surpluses/Deficits,Transport-Contract Hire                 ,J01374,Transport Related Expenditure ,Contract Hire and Op Leasing  ,CC64,Mini Cab Hire for Education,580,"1,100.00",3/31/2012,R,BARCLAYS ASSET & SALES FINANCE
2012 - APR,CS -Oth Operating Inc & Expend,Trading A/c Surpluses/Deficits,Transport-Contract Hire                 ,J01374,Transport Related Expenditure ,Contract Hire and Op Leasing  ,CC64,Mini Cab Hire for Education,581,"2,475.66",3/31/2012,R,BARCLAYS ASSET & SALES FINANCE
2012 - APR,CS -Oth Operating Inc & Expend,Trading A/c Surpluses/Deficits,Transport-Contract Hire                 ,J01374,Transport Related Expenditure ,Contract Hire and Op Leasing  ,CC64,Mini Cab Hire for Education,582,"3,354.00",3/31/2012,R,BARCLAYS ASSET & SALES FINANCE
2012 - APR,CS -Oth Operating Inc & Expend,Trading A/c Surpluses/Deficits,Transport-Contract Hire                 ,J01374,Transport Related Expenditure ,Contract Hire and Op Leasing  ,CC64,Mini Cab Hire for Education,583,"1,722.00",3/31/2012,R,BARCLAYS ASSET & SALES FINANCE
2012 - APR,CS -Oth Operating Inc & Expend,Trading A/c Surpluses/Deficits,Transport-Contract Hire                 ,J01374,Transport Related Expenditure ,Contract Hire and Op Leasing  ,CC64,Mini Cab Hire for Education,584,"1,216.00",3/31/2012,R,BARCLAYS ASSET & SALES FINANCE
2012 - APR,CS -Oth Operating Inc & Expend,Trading A/c Surpluses/Deficits,Transport-Contract Hire                 ,J01374,Transport Related Expenditure ,Contract Hire and Op Leasing  ,CC64,Mini Cab Hire for Education,585,"1,050.00",3/31/2012,R,BARCLAYS ASSET & SALES FINANCE
2012 - APR,CS -Oth Operating Inc & Expend,Trading A/c Surpluses/Deficits,Transport-Contract Hire                 ,J01374,Transport Related Expenditure ,Contract Hire and Op Leasing  ,CC64,Mini Cab Hire for Education,586,"1,210.00",4/1/2012,R,SHERWOOD TRANSPORT GROUP      
2012 - APR,CS -Oth Operating Inc & Expend,Trading A/c Surpluses/Deficits,Transport-Contract Hire                 ,J01374,Transport Related Expenditure ,Contract Hire and Op Leasing  ,CC64,Mini Cab Hire for Education,587,990,4/1/2012,R,SHERWOOD TRANSPORT GROUP      
2012 - APR,CS -Oth Operating Inc & Expend,Trading A/c Surpluses/Deficits,Transport-Contract Hire                 ,J01374,Transport Related Expenditure ,Contract Hire and Op Leasing  ,CC64,Mini Cab Hire for Education,588,"1,427.80",4/1/2012,R,SHERWOOD TRANSPORT GROUP      
2012 - APR,CS -Oth Operating Inc & Expend,Trading A/c Surpluses/Deficits,Transport-Contract Hire                 ,J01374,Transport Related Expenditure ,Contract Hire and Op Leasing  ,CC64,Mini Cab Hire for Education,589,"3,339.00",4/1/2012,R,SHERWOOD TRANSPORT GROUP      
2012 - APR,CS -Oth Operating Inc & Expend,Trading A/c Surpluses/Deficits,Transport-Contract Hire                 ,J01374,Transport Related Expenditure ,Contract Hire and Op Leasing  ,CC64,Mini Cab Hire for Education,590,540,3/31/2012,R,CHEAM STATION CARS            
2012 - APR,CS -Oth Operating Inc & Expend,Trading A/c Surpluses/Deficits,Transport-Contract Hire                 ,J01374,Transport Related Expenditure ,Contract Hire and Op Leasing  ,CC64,Mini Cab Hire for Education,591,885,3/31/2012,R,CAPITAL CARS                  
2012 - APR,CS -Oth Operating Inc & Expend,Trading A/c Surpluses/Deficits,Transport-Contract Hire                 ,J01374,Transport Related Expenditure ,Contract Hire and Op Leasing  ,CC64,Mini Cab Hire for Education,592,525,3/31/2012,R,AERIAL CAR SERVICES LTD       
2012 - APR,CS -Oth Operating Inc & Expend,Trading A/c Surpluses/Deficits,Transport-Contract Hire                 ,J01374,Transport Related Expenditure ,Contract Hire and Op Leasing  ,CC64,Mini Cab Hire for Education,593,770,3/31/2012,R,AERIAL CAR SERVICES LTD       
2012 - APR,CS -Oth Operating Inc & Expend,Trading A/c Surpluses/Deficits,Transport-Contract Hire                 ,J01374,Transport Related Expenditure ,Contract Hire and Op Leasing  ,CC64,Mini Cab Hire for Education,594,"1,890.00",3/31/2012,R,BARCLAYS ASSET & SALES FINANCE
2012 - APR,CS -Oth Operating Inc & Expend,Trading A/c Surpluses/Deficits,Transport-Contract Hire                 ,J01374,Transport Related Expenditure ,Contract Hire and Op Leasing  ,CC64,Mini Cab Hire for Education,595,"2,552.00",3/31/2012,R,BARCLAYS ASSET & SALES FINANCE
2012 - APR,CS -Oth Operating Inc & Expend,Trading A/c Surpluses/Deficits,Transport-Contract Hire                 ,J01374,Transport Related Expenditure ,Contract Hire and Op Leasing  ,CC64,Mini Cab Hire for Education,596,528,3/31/2012,R,CAPITAL CARS                  
2012 - APR,CS -Oth Operating Inc & Expend,Trading A/c Surpluses/Deficits,Transport-Contract Hire                 ,J01374,Transport Related Expenditure ,Contract Hire and Op Leasing  ,CC64,Mini Cab Hire for Education,597,"2,860.00",3/31/2012,R,CAPITAL CARS                  
2012 - APR,CS -Oth Operating Inc & Expend,Trading A/c Surpluses/Deficits,Transport-Contract Hire                 ,J01374,Transport Related Expenditure ,Contract Hire and Op Leasing  ,CC64,Mini Cab Hire for Education,598,604.5,4/1/2012,R,CALVERTON FACTORS LTD         
2012 - APR,CS -Oth Operating Inc & Expend,Trading A/c Surpluses/Deficits,Transport-Contract Hire                 ,J01374,Transport Related Expenditure ,Contract Hire and Op Leasing  ,CC64,Mini Cab Hire for Education,599,624,3/30/2012,R,OLYMPIC (SOUTH) LIMITED       
2012 - APR,CS -Oth Operating Inc & Expend,Trading A/c Surpluses/Deficits,Transport-Contract Hire                 ,J01374,Transport Related Expenditure ,Contract Hire and Op Leasing  ,CC64,Mini Cab Hire for Education,600,"1,496.00",3/30/2012,R,OLYMPIC (SOUTH) LIMITED       
2012 - APR,CS -Oth Operating Inc & Expend,Trading A/c Surpluses/Deficits,Transport-Contract Hire                 ,J01374,Transport Related Expenditure ,Contract Hire and Op Leasing  ,CC64,Mini Cab Hire for Education,601,"2,112.00",3/30/2012,R,OLYMPIC (SOUTH) LIMITED       
2012 - APR,CS -Oth Operating Inc & Expend,Trading A/c Surpluses/Deficits,Transport-Contract Hire                 ,J01374,Transport Related Expenditure ,Contract Hire and Op Leasing  ,CC64,Mini Cab Hire for Education,602,"1,573.00",3/30/2012,R,OLYMPIC (SOUTH) LIMITED       
2012 - APR,CS -Oth Operating Inc & Expend,Trading A/c Surpluses/Deficits,Transport-Contract Hire                 ,J01374,Transport Related Expenditure ,Contract Hire and Op Leasing  ,CC64,Mini Cab Hire for Education,603,"2,252.80",3/30/2012,R,OLYMPIC (SOUTH) LIMITED       
2012 - APR,CS -Oth Operating Inc & Expend,Trading A/c Surpluses/Deficits,Transport-Contract Hire                 ,J01374,Transport Related Expenditure ,Contract Hire and Op Leasing  ,CC64,Mini Cab Hire for Education,604,527,3/30/2012,R,OLYMPIC (SOUTH) LIMITED       
2012 - APR,CS -Oth Operating Inc & Expend,Trading A/c Surpluses/Deficits,Transport-Contract Hire                 ,J01374,Transport Related Expenditure ,Contract Hire and Op Leasing  ,CC64,Mini Cab Hire for Education,605,528,3/31/2012,R,AERIAL CAR SERVICES LTD       
2012 - APR,CS -Oth Operating Inc & Expend,Trading A/c Surpluses/Deficits,Transport-Contract Hire                 ,J01374,Transport Related Expenditure ,Contract Hire and Op Leasing  ,CC64,Mini Cab Hire for Education,606,855,3/31/2012,R,CAPITAL CARS                  
2012 - APR,CS -Oth Operating Inc & Expend,Trading A/c Surpluses/Deficits,Transport-Contract Hire                 ,J01374,Transport Related Expenditure ,Contract Hire and Op Leasing  ,CC64,Mini Cab Hire for Education,607,855,3/31/2012,R,CAPITAL CARS                  
2012 - APR,CS -Oth Operating Inc & Expend,Trading A/c Surpluses/Deficits,Transport-Contract Hire                 ,J01374,Transport Related Expenditure ,Contract Hire and Op Leasing  ,CC64,Mini Cab Hire for Education,608,"1,188.00",3/31/2012,R,CAPITAL CARS                  
2012 - APR,CS -Oth Operating Inc & Expend,Trading A/c Surpluses/Deficits,Transport-Contract Hire                 ,J01374,Transport Related Expenditure ,Contract Hire and Op Leasing  ,CC64,Mini Cab Hire for Education,609,"2,395.50",4/1/2012,R,CALVERTON FACTORS LTD         
2012 - APR,CS -Oth Operating Inc & Expend,Trading A/c Surpluses/Deficits,Transport-Contract Hire                 ,J01374,Transport Related Expenditure ,Contract Hire and Op Leasing  ,CC64,Mini Cab Hire for Education,610,"1,128.00",3/31/2012,R,NVCAR HIRE LTD                
2012 - APR,CS -Oth Operating Inc & Expend,Trading A/c Surpluses/Deficits,Transport-Contract Hire                 ,J01374,Transport Related Expenditure ,Contract Hire and Op Leasing  ,CC64,Mini Cab Hire for Education,611,899.8,3/30/2012,R,OLYMPIC (SOUTH) LIMITED       
2012 - APR,CS -Oth Operating Inc & Expend,Trading A/c Surpluses/Deficits,Transport-Contract Hire                 ,J01374,Transport Related Expenditure ,Contract Hire and Op Leasing  ,CC64,Mini Cab Hire for Education,612,"1,929.40",3/30/2012,R,OLYMPIC (SOUTH) LIMITED       
2012 - APR,CS -Oth Operating Inc & Expend,Trading A/c Surpluses/Deficits,Transport-Contract Hire                 ,J01374,Transport Related Expenditure ,Contract Hire and Op Leasing  ,CC64,Mini Cab Hire for Education,613,933,3/30/2012,R,OLYMPIC (SOUTH) LIMITED       
2012 - APR,CS -Oth Operating Inc & Expend,Trading A/c Surpluses/Deficits,Transport-Contract Hire                 ,J01374,Transport Related Expenditure ,Contract Hire and Op Leasing  ,CC64,Mini Cab Hire for Education,614,"1,590.00",3/30/2012,R,OLYMPIC (SOUTH) LIMITED       
2012 - APR,CS -Oth Operating Inc & Expend,Trading A/c Surpluses/Deficits,Transport-Contract Hire                 ,J01374,Transport Related Expenditure ,Contract Hire and Op Leasing  ,CC64,Mini Cab Hire for Education,615,756,3/31/2012,R,A STAR TRANSPORT LIMITED      
2012 - APR,CS -Oth Operating Inc & Expend,Trading A/c Surpluses/Deficits,Transport-Contract Hire                 ,J01374,Transport Related Expenditure ,Contract Hire and Op Leasing  ,CC64,Mini Cab Hire for Education,616,712,4/8/2012,R,KINGSTON ACCESSIBILITY TRAN LT
2012 - APR,CS -Oth Operating Inc & Expend,Trading A/c Surpluses/Deficits,Transport-Contract Hire                 ,J01374,Transport Related Expenditure ,Contract Hire and Op Leasing  ,CC64,Mini Cab Hire for Education,617,"2,520.00",3/31/2012,R,BARCLAYS ASSET & SALES FINANCE
2012 - APR,CS -Oth Operating Inc & Expend,Trading A/c Surpluses/Deficits,Transport-Contract Hire                 ,J01374,Transport Related Expenditure ,Contract Hire and Op Leasing  ,CC64,Mini Cab Hire for Education,618,617.5,3/31/2012,R,BARCLAYS ASSET & SALES FINANCE
2012 - APR,CS -Oth Operating Inc & Expend,Trading A/c Surpluses/Deficits,Transport-Contract Hire                 ,J01374,Transport Related Expenditure ,Contract Hire and Op Leasing  ,CC64,Mini Cab Hire for Education,619,"1,080.00",3/31/2012,R,BARCLAYS ASSET & SALES FINANCE
2012 - APR,CS -Oth Operating Inc & Expend,Trading A/c Surpluses/Deficits,Transport-Contract Hire                 ,J01374,Transport Related Expenditure ,Contract Hire and Op Leasing  ,CC64,Mini Cab Hire for Education,620,"1,974.00",3/31/2012,R,BARCLAYS ASSET & SALES FINANCE
2012 - APR,CS -Oth Operating Inc & Expend,Trading A/c Surpluses/Deficits,Transport-Contract Hire                 ,J01374,Transport Related Expenditure ,Contract Hire and Op Leasing  ,CC64,Mini Cab Hire for Education,621,"1,443.00",3/31/2012,R,BARCLAYS ASSET & SALES FINANCE
2012 - APR,CS -Oth Operating Inc & Expend,Trading A/c Surpluses/Deficits,Transport-Contract Hire                 ,J01374,Transport Related Expenditure ,Contract Hire and Op Leasing  ,CC64,Mini Cab Hire for Education,622,"1,596.00",3/31/2012,R,BARCLAYS ASSET & SALES FINANCE
2012 - APR,CS -Oth Operating Inc & Expend,Trading A/c Surpluses/Deficits,Transport-Contract Hire                 ,J01374,Transport Related Expenditure ,Contract Hire and Op Leasing  ,CC64,Mini Cab Hire for Education,623,"1,836.00",3/31/2012,R,BARCLAYS ASSET & SALES FINANCE
2012 - APR,CS -Oth Operating Inc & Expend,Trading A/c Surpluses/Deficits,Transport-Contract Hire                 ,J01374,Transport Related Expenditure ,Contract Hire and Op Leasing  ,CC64,Mini Cab Hire for Education,624,"1,412.00",3/31/2012,R,NVCAR HIRE LTD                
2012 - APR,CS -Oth Operating Inc & Expend,Trading A/c Surpluses/Deficits,Transport-Contract Hire                 ,J01374,Transport Related Expenditure ,Contract Hire and Op Leasing  ,CC64,Mini Cab Hire for Education,625,"1,103.54",3/30/2012,R,OLYMPIC (SOUTH) LIMITED       
2012 - APR,CS -Oth Operating Inc & Expend,Trading A/c Surpluses/Deficits,Transport-Contract Hire                 ,J01374,Transport Related Expenditure ,Contract Hire and Op Leasing  ,CC64,Mini Cab Hire for Education,626,"1,200.00",3/31/2012,R,CHEAM STATION CARS            
2012 - APR,CS -Oth Operating Inc & Expend,Trading A/c Surpluses/Deficits,Transport-Contract Hire                 ,J01374,Transport Related Expenditure ,Contract Hire and Op Leasing  ,CC64,Mini Cab Hire for Education,627,"1,232.00",3/30/2012,R,SILVERBURN FINANCE (UK) LTD   
2012 - APR,CS -Oth Operating Inc & Expend,Trading A/c Surpluses/Deficits,Transport-Contract Hire                 ,J01374,Transport Related Expenditure ,Contract Hire and Op Leasing  ,CC64,Mini Cab Hire for Education,628,"1,664.00",3/31/2012,R,BARCLAYS ASSET & SALES FINANCE
2012 - APR,CS -Oth Operating Inc & Expend,Trading A/c Surpluses/Deficits,Transport-Contract Hire                 ,J01374,Transport Related Expenditure ,Contract Hire and Op Leasing  ,CC64,Mini Cab Hire for Education,629,"2,560.00",3/31/2012,R,BARCLAYS ASSET & SALES FINANCE
2012 - APR,CS -Oth Operating Inc & Expend,Trading A/c Surpluses/Deficits,Transport-Contract Hire                 ,J01374,Transport Related Expenditure ,Contract Hire and Op Leasing  ,CC64,Mini Cab Hire for Education,630,"2,840.00",3/31/2012,R,BARCLAYS ASSET & SALES FINANCE
2012 - APR,CS -Oth Operating Inc & Expend,Trading A/c Surpluses/Deficits,Transport-Contract Hire                 ,J01374,Transport Related Expenditure ,Contract Hire and Op Leasing  ,CC64,Mini Cab Hire for Education,631,"3,520.00",3/31/2012,R,BARCLAYS ASSET & SALES FINANCE
2012 - APR,CS -Oth Operating Inc & Expend,Trading A/c Surpluses/Deficits,Transport-Contract Hire                 ,J01374,Transport Related Expenditure ,Contract Hire and Op Leasing  ,CC64,Mini Cab Hire for Education,632,"2,600.00",3/31/2012,R,BARCLAYS ASSET & SALES FINANCE
2012 - APR,CS -Oth Operating Inc & Expend,Trading A/c Surpluses/Deficits,Transport-Contract Hire                 ,J01374,Transport Related Expenditure ,Contract Hire and Op Leasing  ,CC64,Mini Cab Hire for Education,633,"1,596.00",3/31/2012,R,BARCLAYS ASSET & SALES FINANCE
2012 - APR,CS -Oth Operating Inc & Expend,Trading A/c Surpluses/Deficits,Transport-Contract Hire                 ,J01374,Transport Related Expenditure ,Contract Hire and Op Leasing  ,CC64,Mini Cab Hire for Education,634,740,3/31/2012,R,GALPINS SERVICE               
2012 - APR,CS -Oth Operating Inc & Expend,Trading A/c Surpluses/Deficits,Transport-Contract Hire                 ,J01374,Transport Related Expenditure ,Contract Hire and Op Leasing  ,CC64,Mini Cab Hire for Education,635,"1,056.00",3/31/2012,R,NVCAR HIRE LTD                
2012 - APR,CS -Oth Operating Inc & Expend,Trading A/c Surpluses/Deficits,Transport-Contract Hire                 ,J01374,Transport Related Expenditure ,Contract Hire and Op Leasing  ,CC64,Mini Cab Hire for Education,636,791,3/31/2012,R,AERIAL CAR SERVICES LTD       
2012 - APR,CS -Oth Operating Inc & Expend,Trading A/c Surpluses/Deficits,Transport-Contract Hire                 ,J01374,Transport Related Expenditure ,Contract Hire and Op Leasing  ,CC64,Mini Cab Hire for Education,637,"1,320.00",3/30/2012,R,SILVERBURN FINANCE (UK) LTD   
2012 - APR,CS -Oth Operating Inc & Expend,Trading A/c Surpluses/Deficits,Transport-Contract Hire                 ,J01374,Transport Related Expenditure ,Contract Hire and Op Leasing  ,CC64,Mini Cab Hire for Education,638,"1,584.00",3/30/2012,R,SILVERBURN FINANCE (UK) LTD   
2012 - APR,CS -Oth Operating Inc & Expend,Trading A/c Surpluses/Deficits,Transport-Contract Hire                 ,J01374,Transport Related Expenditure ,Contract Hire and Op Leasing  ,CC64,Mini Cab Hire for Education,639,792,3/30/2012,R,SILVERBURN FINANCE (UK) LTD   
2012 - APR,CS -Oth Operating Inc & Expend,Trading A/c Surpluses/Deficits,Transport-Contract Hire                 ,J01374,Transport Related Expenditure ,Contract Hire and Op Leasing  ,CC64,Mini Cab Hire for Education,640,880,3/30/2012,R,SILVERBURN FINANCE (UK) LTD   
2012 - APR,CS -Oth Operating Inc & Expend,Trading A/c Surpluses/Deficits,Transport-Contract Hire                 ,J01374,Transport Related Expenditure ,Contract Hire and Op Leasing  ,CC64,Mini Cab Hire for Education,641,"1,680.00",3/31/2012,R,NVCAR HIRE LTD                
2012 - APR,CS -Oth Operating Inc & Expend,Trading A/c Surpluses/Deficits,Transport-Contract Hire                 ,J01374,Transport Related Expenditure ,Contract Hire and Op Leasing  ,CC64,Mini Cab Hire for Education,642,"1,056.00",3/30/2012,R,SILVERBURN FINANCE (UK) LTD   
2012 - APR,CS -Oth Operating Inc & Expend,Trading A/c Surpluses/Deficits,Transport-Contract Hire                 ,J01374,Transport Related Expenditure ,Contract Hire and Op Leasing  ,CC64,Mini Cab Hire for Education,643,"1,452.00",3/30/2012,R,SILVERBURN FINANCE (UK) LTD   
2012 - APR,CS -Oth Operating Inc & Expend,Trading A/c Surpluses/Deficits,Transport-Contract Hire                 ,J01374,Transport Related Expenditure ,Contract Hire and Op Leasing  ,CC64,Mini Cab Hire for Education,644,869,3/31/2012,R,CHEAM STATION CARS            
2012 - APR,CS -Oth Operating Inc & Expend,Trading A/c Surpluses/Deficits,Transport-Contract Hire                 ,J01374,Transport Related Expenditure ,Contract Hire and Op Leasing  ,CC64,Mini Cab Hire for Education,645,924,3/30/2012,R,SILVERBURN FINANCE (UK) LTD   
2012 - APR,CS -Oth Operating Inc & Expend,Trading A/c Surpluses/Deficits,Transport-Contract Hire                 ,J01374,Transport Related Expenditure ,Contract Hire and Op Leasing  ,CC64,Mini Cab Hire for Education,646,840,3/30/2012,R,SILVERBURN FINANCE (UK) LTD   
2012 - APR,CS -Oth Operating Inc & Expend,Trading A/c Surpluses/Deficits,Transport-Contract Hire                 ,J01374,Transport Related Expenditure ,Contract Hire and Op Leasing  ,CC64,Mini Cab Hire for Education,647,960.22,3/30/2012,R,OLYMPIC (SOUTH) LIMITED       
2012 - APR,CS -Oth Operating Inc & Expend,Trading A/c Surpluses/Deficits,Transport-Contract Hire                 ,J01374,Transport Related Expenditure ,Contract Hire and Op Leasing  ,CC64,Mini Cab Hire for Education,648,"1,017.40",4/1/2012,R,SHERWOOD TRANSPORT GROUP      
2012 - APR,CS -Oth Operating Inc & Expend,Trading A/c Surpluses/Deficits,Transport-Contract Hire                 ,J01374,Transport Related Expenditure ,Contract Hire and Op Leasing  ,CC64,Mini Cab Hire for Education,649,"6,842.00",3/31/2012,R,BARCLAYS ASSET & SALES FINANCE
2012 - APR,CS -Oth Operating Inc & Expend,Trading A/c Surpluses/Deficits,Transport-Contract Hire                 ,J01374,Transport Related Expenditure ,Contract Hire and Op Leasing  ,CC64,Mini Cab Hire for Education,650,"7,192.70",4/22/2012,R,KINGSTON ACCESSIBILITY TRAN LT
2012 - APR,CS -Oth Operating Inc & Expend,Trading A/c Surpluses/Deficits,Transport-Contract Hire                 ,J01374,Transport Related Expenditure ,Contract Hire and Op Leasing  ,CC64,Mini Cab Hire for Education,651,"1,232.00",3/30/2012,R,OLYMPIC (SOUTH) LIMITED       
2012 - APR,CS -Oth Operating Inc & Expend,Trading A/c Surpluses/Deficits,Transport-Contract Hire                 ,J01374,Transport Related Expenditure ,Contract Hire and Op Leasing  ,CC64,Mini Cab Hire for Education,652,875.46,3/30/2012,R,OLYMPIC (SOUTH) LIMITED       
2012 - APR,CS -Oth Operating Inc & Expend,Trading A/c Surpluses/Deficits,Transport-Contract Hire                 ,J01374,Transport Related Expenditure ,Contract Hire and Op Leasing  ,CC65,Vehicle Hire for Education,653,990,3/31/2012,R,BARCLAYS ASSET & SALES FINANCE
2012 - APR,CS -Oth Operating Inc & Expend,Trading A/c Surpluses/Deficits,Transport-Contract Hire                 ,J01374,Transport Related Expenditure ,Contract Hire and Op Leasing  ,CC65,Vehicle Hire for Education,654,"4,326.00",3/31/2012,R,BARCLAYS ASSET & SALES FINANCE
2012 - APR,CS -Oth Operating Inc & Expend,Trading A/c Surpluses/Deficits,Transport-Contract Hire                 ,J01374,Transport Related Expenditure ,Contract Hire and Op Leasing  ,CC65,Vehicle Hire for Education,655,"1,064.00",3/31/2012,R,BARCLAYS ASSET & SALES FINANCE
2012 - APR,CS -Oth Operating Inc & Expend,Trading A/c Surpluses/Deficits,Transport-Contract Hire                 ,J01374,Transport Related Expenditure ,Contract Hire and Op Leasing  ,CC65,Vehicle Hire for Education,656,"2,945.00",3/31/2012,R,BARCLAYS ASSET & SALES FINANCE
2012 - APR,CS -Oth Operating Inc & Expend,Trading A/c Surpluses/Deficits,Transport-Contract Hire                 ,J01374,Transport Related Expenditure ,Contract Hire and Op Leasing  ,CC65,Vehicle Hire for Education,657,800,3/31/2012,R,BARCLAYS ASSET & SALES FINANCE
2012 - APR,CS -Oth Operating Inc & Expend,Trading A/c Surpluses/Deficits,Transport-Contract Hire                 ,J01374,Transport Related Expenditure ,Contract Hire and Op Leasing  ,CC65,Vehicle Hire for Education,658,"1,474.00",3/30/2012,R,BURNT TREE VEHICLE RENTAL     
2012 - APR,CS -Oth Operating Inc & Expend,Trading A/c Surpluses/Deficits,Transport-Contract Hire                 ,J01374,Transport Related Expenditure ,Contract Hire and Op Leasing  ,CC65,Vehicle Hire for Education,659,"1,474.00",3/30/2012,R,BURNT TREE VEHICLE RENTAL     
2012 - APR,CS -Oth Operating Inc & Expend,Trading A/c Surpluses/Deficits,Transport-Contract Hire                 ,J01374,Transport Related Expenditure ,Contract Hire and Op Leasing  ,CC65,Vehicle Hire for Education,660,"1,474.00",3/30/2012,R,BURNT TREE VEHICLE RENTAL     
2012 - APR,CS -Oth Operating Inc & Expend,Trading A/c Surpluses/Deficits,Transport-Contract Hire                 ,J01374,Transport Related Expenditure ,Contract Hire and Op Leasing  ,CC65,Vehicle Hire for Education,661,"9,168.00",3/29/2012,R,KENT COUNTY COUNCIL           
2012 - APR,CS -Oth Operating Inc & Expend,Trading A/c Surpluses/Deficits,Transport-Contract Hire                 ,J01374,Transport Related Expenditure ,Contract Hire and Op Leasing  ,CC65,Vehicle Hire for Education,662,"1,852.00",3/31/2012,R,NVCAR HIRE LTD                
2012 - APR,CS -Oth Operating Inc & Expend,Trading A/c Surpluses/Deficits,Transport-Contract Hire                 ,J01374,Transport Related Expenditure ,Contract Hire and Op Leasing  ,CC66,Mini Cab Hire -Soc Serv -Child,663,"1,108.00",3/25/2012,R,KINGSTON ACCESSIBILITY TRAN LT
2012 - APR,CS -Oth Operating Inc & Expend,Trading A/c Surpluses/Deficits,Transport-Contract Hire                 ,J01374,Transport Related Expenditure ,Contract Hire and Op Leasing  ,CC66,Mini Cab Hire -Soc Serv -Child,664,988,4/1/2012,R,KINGSTON ACCESSIBILITY TRAN LT
2012 - APR,CS -Oth Operating Inc & Expend,Trading A/c Surpluses/Deficits,Transport-Contract Hire                 ,J01374,Transport Related Expenditure ,Contract Hire and Op Leasing  ,CC66,Mini Cab Hire -Soc Serv -Child,665,595,3/31/2012,R,CHEAM STATION CARS            
2012 - APR,CS -Oth Operating Inc & Expend,Trading A/c Surpluses/Deficits,Transport-Contract Hire                 ,J01374,Transport Related Expenditure ,Contract Hire and Op Leasing  ,CC66,Mini Cab Hire -Soc Serv -Child,666,504,3/31/2012,R,BARCLAYS ASSET & SALES FINANCE
2012 - APR,CS -Oth Operating Inc & Expend,Trading A/c Surpluses/Deficits,Transport-Contract Hire                 ,J01374,Transport Related Expenditure ,Contract Hire and Op Leasing  ,CC66,Mini Cab Hire -Soc Serv -Child,667,"2,000.00",4/1/2012,R,CALVERTON FACTORS LTD         
2012 - APR,CS -Oth Operating Inc & Expend,Trading A/c Surpluses/Deficits,Transport-Contract Hire                 ,J01374,Transport Related Expenditure ,Contract Hire and Op Leasing  ,CC66,Mini Cab Hire -Soc Serv -Child,668,905,3/31/2012,R,CHEAM STATION CARS            
2012 - APR,CS -Oth Operating Inc & Expend,Trading A/c Surpluses/Deficits,Transport-Contract Hire                 ,J01374,Transport Related Expenditure ,Contract Hire and Op Leasing  ,CC66,Mini Cab Hire -Soc Serv -Child,669,894.4,4/22/2012,R,KINGSTON ACCESSIBILITY TRAN LT
2012 - APR,CS -Oth Operating Inc & Expend,Trading A/c Surpluses/Deficits,Transport-Contract Hire                 ,J01374,Transport Related Expenditure ,Contract Hire and Op Leasing  ,CC67,Mini Cab Hire -Soc Serv -Adult,670,"1,106.00",3/25/2012,R,KINGSTON ACCESSIBILITY TRAN LT
2012 - APR,CS -Oth Operating Inc & Expend,Trading A/c Surpluses/Deficits,Transport-Contract Hire                 ,J01374,Transport Related Expenditure ,Contract Hire and Op Leasing  ,CC67,Mini Cab Hire -Soc Serv -Adult,671,"1,000.00",4/1/2012,R,KINGSTON ACCESSIBILITY TRAN LT
2012 - APR,CS -Oth Operating Inc & Expend,Trading A/c Surpluses/Deficits,Transport-Contract Hire                 ,J01374,Transport Related Expenditure ,Contract Hire and Op Leasing  ,CC67,Mini Cab Hire -Soc Serv -Adult,672,726,4/15/2012,R,KINGSTON ACCESSIBILITY TRAN LT
2012 - APR,CS -Oth Operating Inc & Expend,Trading A/c Surpluses/Deficits,Transport-Contract Hire                 ,J01374,Transport Related Expenditure ,Contract Hire and Op Leasing  ,CC67,Mini Cab Hire -Soc Serv -Adult,673,784,3/31/2012,R,CAPITAL CARS                  
2012 - APR,CS -Oth Operating Inc & Expend,Trading A/c Surpluses/Deficits,Transport-Contract Hire                 ,J01374,Transport Related Expenditure ,Contract Hire and Op Leasing  ,CC67,Mini Cab Hire -Soc Serv -Adult,674,"1,216.00",3/31/2012,R,CAPITAL CARS                  
2012 - APR,CS -Oth Operating Inc & Expend,Trading A/c Surpluses/Deficits,Transport-Contract Hire                 ,J01374,Transport Related Expenditure ,Contract Hire and Op Leasing  ,CC67,Mini Cab Hire -Soc Serv -Adult,675,"1,056.00",3/31/2012,R,BARCLAYS ASSET & SALES FINANCE
2012 - APR,CS -Oth Operating Inc & Expend,Trading A/c Surpluses/Deficits,Transport-Contract Hire                 ,J01374,Transport Related Expenditure ,Contract Hire and Op Leasing  ,CC67,Mini Cab Hire -Soc Serv -Adult,676,"1,056.00",3/31/2012,R,BARCLAYS ASSET & SALES FINANCE
2012 - APR,CS -Oth Operating Inc & Expend,Trading A/c Surpluses/Deficits,Transport-Contract Hire                 ,J01374,Transport Related Expenditure ,Contract Hire and Op Leasing  ,CC67,Mini Cab Hire -Soc Serv -Adult,677,728,3/31/2012,R,BARCLAYS ASSET & SALES FINANCE
2012 - APR,CS -Oth Operating Inc & Expend,Trading A/c Surpluses/Deficits,Transport-Contract Hire                 ,J01374,Transport Related Expenditure ,Contract Hire and Op Leasing  ,CC67,Mini Cab Hire -Soc Serv -Adult,678,754,3/31/2012,R,BARCLAYS ASSET & SALES FINANCE
2012 - APR,CS -Oth Operating Inc & Expend,Trading A/c Surpluses/Deficits,Transport-Contract Hire                 ,J01374,Transport Related Expenditure ,Contract Hire and Op Leasing  ,CC67,Mini Cab Hire -Soc Serv -Adult,679,580,3/31/2012,R,BARCLAYS ASSET & SALES FINANCE
2012 - APR,CS -Oth Operating Inc & Expend,Trading A/c Surpluses/Deficits,Transport-Contract Hire                 ,J01374,Transport Related Expenditure ,Contract Hire and Op Leasing  ,CC67,Mini Cab Hire -Soc Serv -Adult,680,"1,958.00",3/31/2012,R,BARCLAYS ASSET & SALES FINANCE
2012 - APR,CS -Oth Operating Inc & Expend,Trading A/c Surpluses/Deficits,Transport-Contract Hire                 ,J01374,Transport Related Expenditure ,Contract Hire and Op Leasing  ,CC67,Mini Cab Hire -Soc Serv -Adult,681,576,3/31/2012,R,BARCLAYS ASSET & SALES FINANCE
2012 - APR,CS -Oth Operating Inc & Expend,Trading A/c Surpluses/Deficits,Transport-Contract Hire                 ,J01374,Transport Related Expenditure ,Contract Hire and Op Leasing  ,CC67,Mini Cab Hire -Soc Serv -Adult,682,522,3/31/2012,R,BARCLAYS ASSET & SALES FINANCE
2012 - APR,CS -Oth Operating Inc & Expend,Trading A/c Surpluses/Deficits,Transport-Contract Hire                 ,J01374,Transport Related Expenditure ,Contract Hire and Op Leasing  ,CC67,Mini Cab Hire -Soc Serv -Adult,683,522,3/31/2012,R,BARCLAYS ASSET & SALES FINANCE
2012 - APR,CS -Oth Operating Inc & Expend,Trading A/c Surpluses/Deficits,Transport-Contract Hire                 ,J01374,Transport Related Expenditure ,Contract Hire and Op Leasing  ,CC67,Mini Cab Hire -Soc Serv -Adult,684,"1,848.00",3/31/2012,R,BARCLAYS ASSET & SALES FINANCE
2012 - APR,CS -Oth Operating Inc & Expend,Trading A/c Surpluses/Deficits,Transport-Contract Hire                 ,J01374,Transport Related Expenditure ,Contract Hire and Op Leasing  ,CC67,Mini Cab Hire -Soc Serv -Adult,685,756,3/31/2012,R,BARCLAYS ASSET & SALES FINANCE
2012 - APR,CS -Oth Operating Inc & Expend,Trading A/c Surpluses/Deficits,Transport-Contract Hire                 ,J01374,Transport Related Expenditure ,Contract Hire and Op Leasing  ,CC67,Mini Cab Hire -Soc Serv -Adult,686,624,3/31/2012,R,BARCLAYS ASSET & SALES FINANCE
2012 - APR,CS -Oth Operating Inc & Expend,Trading A/c Surpluses/Deficits,Transport-Contract Hire                 ,J01374,Transport Related Expenditure ,Contract Hire and Op Leasing  ,CC67,Mini Cab Hire -Soc Serv -Adult,687,"1,488.00",3/31/2012,R,BARCLAYS ASSET & SALES FINANCE
2012 - APR,CS -Oth Operating Inc & Expend,Trading A/c Surpluses/Deficits,Transport-Contract Hire                 ,J01374,Transport Related Expenditure ,Contract Hire and Op Leasing  ,CC67,Mini Cab Hire -Soc Serv -Adult,688,"1,679.30",3/31/2012,R,BARCLAYS ASSET & SALES FINANCE
2012 - APR,CS -Oth Operating Inc & Expend,Trading A/c Surpluses/Deficits,Transport-Contract Hire                 ,J01374,Transport Related Expenditure ,Contract Hire and Op Leasing  ,CC67,Mini Cab Hire -Soc Serv -Adult,689,"1,381.30",3/31/2012,R,BARCLAYS ASSET & SALES FINANCE
2012 - APR,CS -Oth Operating Inc & Expend,Trading A/c Surpluses/Deficits,Transport-Contract Hire                 ,J01374,Transport Related Expenditure ,Contract Hire and Op Leasing  ,CC67,Mini Cab Hire -Soc Serv -Adult,690,687.3,3/31/2012,R,BARCLAYS ASSET & SALES FINANCE
2012 - APR,CS -Oth Operating Inc & Expend,Trading A/c Surpluses/Deficits,Transport-Contract Hire                 ,J01374,Transport Related Expenditure ,Contract Hire and Op Leasing  ,CC67,Mini Cab Hire -Soc Serv -Adult,691,962,3/31/2012,R,AERIAL CAR SERVICES LTD       
2012 - APR,CS -Oth Operating Inc & Expend,Trading A/c Surpluses/Deficits,Transport-Contract Hire                 ,J01374,Transport Related Expenditure ,Contract Hire and Op Leasing  ,CC67,Mini Cab Hire -Soc Serv -Adult,692,880,3/31/2012,R,AERIAL CAR SERVICES LTD       
2012 - APR,CS -Oth Operating Inc & Expend,Trading A/c Surpluses/Deficits,Transport-Contract Hire                 ,J01374,Transport Related Expenditure ,Contract Hire and Op Leasing  ,CC67,Mini Cab Hire -Soc Serv -Adult,693,622,4/22/2012,R,KINGSTON ACCESSIBILITY TRAN LT
2012 - APR,CS -Oth Operating Inc & Expend,Trading A/c Surpluses/Deficits,Transport-Contract Hire                 ,J01374,Transport Related Expenditure ,Contract Hire and Op Leasing  ,CC68,Vehicle Hire Special Projects,694,"1,788.00",3/25/2012,R,KINGSTON ACCESSIBILITY TRAN LT
2012 - APR,CS -Oth Operating Inc & Expend,Trading A/c Surpluses/Deficits,Transport-Contract Hire                 ,J01374,Transport Related Expenditure ,Contract Hire and Op Leasing  ,CC68,Vehicle Hire Special Projects,695,"1,500.00",4/1/2012,R,KINGSTON ACCESSIBILITY TRAN LT
2012 - APR,CS -Oth Operating Inc & Expend,Trading A/c Surpluses/Deficits,Transport-Contract Hire                 ,J01374,Transport Related Expenditure ,Contract Hire and Op Leasing  ,CC68,Vehicle Hire Special Projects,696,"2,992.00",3/31/2012,R,BARCLAYS ASSET & SALES FINANCE
2012 - APR,CS -Oth Operating Inc & Expend,Trading A/c Surpluses/Deficits,Transport-Contract Hire                 ,J01374,Transport Related Expenditure ,Contract Hire and Op Leasing  ,CC68,Vehicle Hire Special Projects,697,726,3/31/2012,R,GALPINS SERVICE               
2012 - APR,CS -Oth Operating Inc & Expend,Trading A/c Surpluses/Deficits,Transport-Contract Hire                 ,J01374,Transport Related Expenditure ,Contract Hire and Op Leasing  ,CC68,Vehicle Hire Special Projects,698,"3,080.00",3/31/2012,R,BARCLAYS ASSET & SALES FINANCE
2012 - APR,CS -Oth Operating Inc & Expend,Trading A/c Surpluses/Deficits,Transport-Contract Hire                 ,J01374,Transport Related Expenditure ,Contract Hire and Op Leasing  ,CC68,Vehicle Hire Special Projects,699,"1,344.00",3/31/2012,R,BARCLAYS ASSET & SALES FINANCE
2012 - APR,CS -Oth Operating Inc & Expend,Trading A/c Surpluses/Deficits,Transport-Contract Hire                 ,J01374,Transport Related Expenditure ,Contract Hire and Op Leasing  ,CC68,Vehicle Hire Special Projects,700,"1,071.00",3/31/2012,R,BARCLAYS ASSET & SALES FINANCE
2012 - APR,CS -Oth Operating Inc & Expend,Trading A/c Surpluses/Deficits,Transport-Contract Hire                 ,J01374,Transport Related Expenditure ,Contract Hire and Op Leasing  ,CC68,Vehicle Hire Special Projects,701,"1,408.00",3/31/2012,R,BARCLAYS ASSET & SALES FINANCE
2012 - APR,CS -Oth Operating Inc & Expend,Trading A/c Surpluses/Deficits,Transport-Contract Hire                 ,J01374,Transport Related Expenditure ,Contract Hire and Op Leasing  ,CC68,Vehicle Hire Special Projects,702,"1,848.00",3/31/2012,R,BARCLAYS ASSET & SALES FINANCE
2012 - APR,CS -Oth Operating Inc & Expend,Trading A/c Surpluses/Deficits,Transport-Contract Hire                 ,J01374,Transport Related Expenditure ,Contract Hire and Op Leasing  ,CC68,Vehicle Hire Special Projects,703,"1,958.00",3/31/2012,R,BARCLAYS ASSET & SALES FINANCE
2012 - APR,CS -Oth Operating Inc & Expend,Trading A/c Surpluses/Deficits,Transport-Contract Hire                 ,J01374,Transport Related Expenditure ,Contract Hire and Op Leasing  ,CC68,Vehicle Hire Special Projects,704,774,3/31/2012,R,GALPINS SERVICE               
2012 - APR,CS -Oth Operating Inc & Expend,Trading A/c Surpluses/Deficits,Transport-Contract Hire                 ,J01374,Transport Related Expenditure ,Contract Hire and Op Leasing  ,CC68,Vehicle Hire Special Projects,705,"1,620.00",4/22/2012,R,KINGSTON ACCESSIBILITY TRAN LT
2012 - APR,CS -Oth Operating Inc & Expend,Trading A/c Surpluses/Deficits,Transport-Workshop                      ,J01376,Transport Related Expenditure ,Direct Transport Costs        ,CA02,Tyres,706,"1,495.00",4/5/2012,R,MORDEN TYRE SERVICES LTD      
2012 - APR,CS -Oth Operating Inc & Expend,Trading A/c Surpluses/Deficits,Transport-Workshop                      ,J01376,Transport Related Expenditure ,Direct Transport Costs        ,CA02,Tyres,707,695,4/16/2012,R,MORDEN TYRE SERVICES LTD      
2012 - APR,CS -Oth Operating Inc & Expend,Trading A/c Surpluses/Deficits,Transport-Workshop                      ,J01376,Transport Related Expenditure ,Direct Transport Costs        ,CA02,Tyres,708,"1,145.00",4/17/2012,R,MORDEN TYRE SERVICES LTD      
2012 - APR,CS -Oth Operating Inc & Expend,Trading A/c Surpluses/Deficits,Transport-Workshop                      ,J01376,Transport Related Expenditure ,Direct Transport Costs        ,CA04,R & M of Veh - General,709,"1,809.90",3/29/2012,R,FREIGHT TRANSPORT ASSOCIATION 
2012 - APR,CS -Oth Operating Inc & Expend,Trading A/c Surpluses/Deficits,Transport-Workshop                      ,J01376,Transport Related Expenditure ,Direct Transport Costs        ,CA55,Specialist Maint. (Off Site),710,901.98,4/12/2012,R,FLEETSPEED COACHWORKS LTD.    
2012 - APR,CS -Oth Operating Inc & Expend,Trading A/c Surpluses/Deficits,Transport-Workshop                      ,J01376,Transport Related Expenditure ,Direct Transport Costs        ,CA55,Specialist Maint. (Off Site),711,621.33,4/13/2012,R,FLEETSPEED COACHWORKS LTD.    
2012 - APR,CS -Oth Operating Inc & Expend,Trading A/c Surpluses/Deficits,Transport-Workshop                      ,J01376,Transport Related Expenditure ,Direct Transport Costs        ,CA55,Specialist Maint. (Off Site),712,947.8,3/16/2012,R,GLENSIDE COMMERCIALS LTD      
2012 - APR,CS -Oth Operating Inc & Expend,Trading A/c Surpluses/Deficits,Transport-Workshop                      ,J01376,Transport Related Expenditure ,Direct Transport Costs        ,CA56,Specialist Maint. (On Site),713,835.5,4/5/2012,R,GREEN MACHINES                
2012 - APR,CS -Oth Operating Inc & Expend,Trading A/c Surpluses/Deficits,Transport-Workshop                      ,J01376,Transport Related Expenditure ,Direct Transport Costs        ,CA56,Specialist Maint. (On Site),714,835.5,4/5/2012,R,GREEN MACHINES                
2012 - APR,CS -Oth Operating Inc & Expend,Trading A/c Surpluses/Deficits,Transport-Workshop                      ,J01376,Transport Related Expenditure ,Direct Transport Costs        ,CA56,Specialist Maint. (On Site),715,835.5,4/4/2012,R,GREEN MACHINES                
2012 - APR,CS -Oth Operating Inc & Expend,Trading A/c Surpluses/Deficits,Transport-Workshop                      ,J01376,Transport Related Expenditure ,Direct Transport Costs        ,CA56,Specialist Maint. (On Site),716,675,4/25/2012,R,R.J.H.WELDING                 
2012 - APR,CS -Oth Operating Inc & Expend,Trading A/c Surpluses/Deficits,Transport-Workshop                      ,J01376,Transport Related Expenditure ,Direct Transport Costs        ,CA56,Specialist Maint. (On Site),717,506.25,4/25/2012,R,R.J.H.WELDING                 
2012 - APR,CS -Oth Operating Inc & Expend,Trading A/c Surpluses/Deficits,Transport-Workshop                      ,J01376,Transport Related Expenditure ,Direct Transport Costs        ,CA72,Vehicle Parts,718,953.02,4/5/2012,R,GEESINK NORBA                 
2012 - APR,CS -Oth Operating Inc & Expend,Trading A/c Surpluses/Deficits,Transport-Workshop                      ,J01376,Transport Related Expenditure ,Direct Transport Costs        ,CA72,Vehicle Parts,719,508.05,4/17/2012,R,COMMERCIAL & PLANT LTD        
2012 - APR,CS -Oth Operating Inc & Expend,Trading A/c Surpluses/Deficits,Transport-Workshop                      ,J01376,Transport Related Expenditure ,Direct Transport Costs        ,CA72,Vehicle Parts,720,"1,192.79",4/13/2012,R,CITROEN LONDON WEST           
2012 - APR,CS -Oth Operating Inc & Expend,Trading A/c Surpluses/Deficits,Transport-Workshop                      ,J01376,Transport Related Expenditure ,Contract Hire and Op Leasing  ,CC60,Vehicle Hire for LB Sutton,721,"1,080.00",4/1/2012,R,CALVERTON FACTORS LTD         
2012 - APR,CS -Oth Operating Inc & Expend,Trading A/c Surpluses/Deficits,Transport-Workshop                      ,J01376,Transport Related Expenditure ,Contract Hire and Op Leasing  ,CC65,Vehicle Hire for Education,722,"4,312.00",3/31/2012,R,BARCLAYS ASSET & SALES FINANCE
2012 - APR,CS -Oth Operating Inc & Expend,Trading A/c Surpluses/Deficits,Transport-Workshop                      ,J01376,Transport Related Expenditure ,Contract Hire and Op Leasing  ,CC65,Vehicle Hire for Education,723,"1,785.00",3/31/2012,R,REDACTED
2012 - APR,CS -Oth Operating Inc & Expend,Trading A/c Surpluses/Deficits,Transport-Workshop                      ,J01376,Transport Related Expenditure ,Contract Hire and Op Leasing  ,CC65,Vehicle Hire for Education,724,525,3/29/2012,R,GOLDEN SOVEREIGN COACHES      
2012 - APR,CS -Oth Operating Inc & Expend,INVESTMENT PROPERTIES,Housing Shops                           ,J01533,Supplies & Services           ,Services                      ,DF03,Consultants,725,"1,950.00",3/22/2012,R,QUINTON SCOTT                 
2012 - APR,CS -Oth Operating Inc & Expend,INVESTMENT PROPERTIES,Durnsford Rd Budget                     ,J01580,Premises Related Expenditure  ,RepairsAlterations&MtceOfBldgs,BA79,Security of Premises,726,975,4/1/2012,R,OM METROPOLITAN TOTAL SEC.LTD 
2012 - APR,CS -Oth Operating Inc & Expend,INVESTMENT PROPERTIES,Durnsford Rd Budget                     ,J01580,Supplies & Services           ,Services                      ,DF03,Consultants,727,"1,950.00",2/14/2012,R,QUINTON SCOTT                 
2012 - APR,Central Services,Unused Share - Other Assets,Montgomery Close                        ,J02044,Premises Related Expenditure  ,RepairsAlterations&MtceOfBldgs,BA01,DDM - General Building,728,650,3/28/2012,R,WANDSWORTH OPERATIONAL SERV.  
2012 - APR,Central Services,Unused Share - Other Assets,Montgomery Close                        ,J02044,Premises Related Expenditure  ,RepairsAlterations&MtceOfBldgs,BA03,DDM - Mechanical,729,617.24,3/29/2012,R,COFELY LIMITED                
2012 - APR,CS -Oth Operating Inc & Expend,INVESTMENT PROPERTIES,South Mitcham Comm Assoc                ,J08071,Premises Related Expenditure  ,RepairsAlterations&MtceOfBldgs,BA05,DDM - Electrical,730,"1,314.20",2/29/2012,R,TMP NORTHERN LIMITED          
2012 - APR,CS -Oth Operating Inc & Expend,INVESTMENT PROPERTIES,Pollards Hill Comm Cntre                ,J08074,Premises Related Expenditure  ,RepairsAlterations&MtceOfBldgs,BA03,DDM - Mechanical,731,580.71,3/29/2012,R,COFELY LIMITED                
2012 - APR,Childrens & Education Services,Schools Strategic Management,Senior Mngt & Support Services          ,K01005,Supplies & Services           ,Services                      ,DF03,Consultants,732,"13,933.27",3/31/2012,R,ODGERS RAY & BERNDTSON INTERIM
2012 - APR,Childrens & Education Services,Schools Strategic Management,Senior Mngt & Support Services          ,K01005,Supplies & Services           ,Services                      ,DF11,Counsel's fees,733,880,3/20/2012,R,REDACTED
2012 - APR,Childrens & Education Services,Schools Strategic Management,Senior Mngt & Support Services          ,K01005,Supplies & Services           ,Services                      ,DF11,Counsel's fees,734,975,3/26/2012,R,REDACTED
2012 - APR,Childrens & Education Services,Schools Strategic Management,Senior Mngt & Support Services          ,K01005,Supplies & Services           ,Services                      ,DF11,Counsel's fees,735,520,3/28/2012,R,REDACTED
2012 - APR,Childrens & Education Services,Schools Strategic Management,Central Administration                  ,K01008,Supplies & Services           ,Grants and Subscriptions      ,DJ04,Subscriptions,736,"1,567.50",3/1/2012,R,ADCS                          
2012 - APR,Childrens & Education Services,Assuring Access To Schools,Merton Music Foundation                 ,K01090,Supplies & Services           ,Grants and Subscriptions      ,DJ01,Grants,737,"46,000.00",4/3/2012,R,MERTON MUSIC FOUNDATION       
2012 - APR,Childrens & Education Services,Assuring Access To Schools,Merton Music Foundation                 ,K01090,Supplies & Services           ,Grants and Subscriptions      ,DJ01,Grants,738,"68,047.34",4/26/2012,R,MERTON MUSIC FOUNDATION       
2012 - APR,Childrens & Education Services,Schools Strategic Management,Schools IT Support                      ,K02008,Supplies & Services           ,Comms and Computing           ,DG50,Other IT Expenditure,739,"2,050.00",4/17/2012,R,ATOMWIDE LTD                  
2012 - APR,Childrens & Education Services,Schools Strategic Management,LSC                                     ,K03003,Supplies & Services           ,Services                      ,DF03,Consultants,740,"3,400.00",3/30/2012,R,END USER LTD                  
2012 - APR,Childrens & Education Services,Schools Strategic Management,Business Systems(Sch.Support)           ,K03017,Supplies & Services           ,Comms and Computing           ,DG02,Software Licences,741,"7,080.00",3/7/2012,R,CAPITA BUSINESS SERVICES LTD  
2012 - APR,Childrens & Education Services,Schools Strategic Management,Business Systems(Sch.Support)           ,K03017,Supplies & Services           ,Comms and Computing           ,DG02,Software Licences,742,"15,435.00",3/7/2012,R,CAPITA BUSINESS SERVICES LTD  
2012 - APR,Childrens & Education Services,Schools Strategic Management,Business Systems(Sch.Support)           ,K03017,Supplies & Services           ,Comms and Computing           ,DG02,Software Licences,743,"1,995.00",3/7/2012,R,CAPITA BUSINESS SERVICES LTD  
2012 - APR,Childrens & Education Services,Schools Strategic Management,Business Systems(Sch.Support)           ,K03017,Supplies & Services           ,Comms and Computing           ,DG02,Software Licences,744,"50,581.08",3/7/2012,R,CAPITA BUSINESS SERVICES LTD  
2012 - APR,Childrens & Education Services,Schools Strategic Management,Business Systems(Sch.Support)           ,K03017,Supplies & Services           ,Comms and Computing           ,DG02,Software Licences,745,"27,301.69",3/7/2012,R,CAPITA BUSINESS SERVICES LTD  
2012 - APR,Childrens & Education Services,Assuring Access To Schools,PFI Unitary Charges                     ,K03023,Third Party Payments          ,Private Contractors           ,EH10,Contract Payments,746,-593.84,3/30/2012,R,NEWSCHOOLS (MERTON) LIMITED   
2012 - APR,Childrens & Education Services,Supporting SEN,Education Psychology.                   ,K04018,Employees                     ,Direct Employee Expenses      ,AA17,Agency Staff & Casual Paymts,747,555,3/26/2012,R,FACE YOUTH                    
2012 - APR,Childrens & Education Services,Supporting SEN,Education Psychology.                   ,K04018,Employees                     ,Direct Employee Expenses      ,AA17,Agency Staff & Casual Paymts,748,"1,320.00",3/26/2012,R,FACE YOUTH                    
2012 - APR,Childrens & Education Services,Supporting SEN,Statementing-Transport                  ,K04023,Transport Related Expenditure ,Public Transport              ,CD50,Home Sch/Coll Trans(Trav Exps),749,838,3/31/2012,R,ST MARY'S WRESTWOOD CHILDRENS 
2012 - APR,Childrens & Education Services,Supporting SEN,Statementing-Transport                  ,K04023,Transport Related Expenditure ,Public Transport              ,CD50,Home Sch/Coll Trans(Trav Exps),750,729,3/31/2012,R,ST MARY'S WRESTWOOD CHILDRENS 
2012 - APR,Childrens & Education Services,Supporting SEN,Statementing-Transport                  ,K04023,Supplies & Services           ,Services                      ,DF03,Consultants,751,"4,883.00",3/30/2012,R,MERTON MENCAP                 
2012 - APR,Childrens & Education Services,Supporting SEN,Statement Support Team                  ,K04034,Employees                     ,Direct Employee Expenses      ,AA17,Agency Staff & Casual Paymts,752,"1,200.00",3/24/2012,R,PERMANENT FUTURES             
2012 - APR,Childrens & Education Services,Supporting SEN,Statement Support Team                  ,K04034,Employees                     ,Direct Employee Expenses      ,AA17,Agency Staff & Casual Paymts,753,900,3/24/2012,R,PERMANENT FUTURES             
2012 - APR,Childrens & Education Services,Supporting SEN,Statement Support Team                  ,K04034,Employees                     ,Direct Employee Expenses      ,AA17,Agency Staff & Casual Paymts,754,"1,400.00",3/24/2012,R,PERMANENT FUTURES             
2012 - APR,Childrens & Education Services,Supporting SEN,Statement Support Team                  ,K04034,Employees                     ,Direct Employee Expenses      ,AA17,Agency Staff & Casual Paymts,755,"1,120.00",3/31/2012,R,PERMANENT FUTURES             
2012 - APR,Childrens & Education Services,Supporting SEN,Statement Support Team                  ,K04034,Employees                     ,Direct Employee Expenses      ,AA17,Agency Staff & Casual Paymts,756,"1,200.00",3/31/2012,R,PERMANENT FUTURES             
2012 - APR,Childrens & Education Services,Supporting SEN,Statement Support Team                  ,K04034,Employees                     ,Direct Employee Expenses      ,AA17,Agency Staff & Casual Paymts,757,900,4/7/2012,R,PERMANENT FUTURES             
2012 - APR,Childrens & Education Services,Supporting SEN,Statement Support Team                  ,K04034,Employees                     ,Direct Employee Expenses      ,AA17,Agency Staff & Casual Paymts,758,"1,200.00",4/7/2012,R,PERMANENT FUTURES             
2012 - APR,Childrens & Education Services,Supporting SEN,Statement Support Team                  ,K04034,Employees                     ,Direct Employee Expenses      ,AA17,Agency Staff & Casual Paymts,759,900,3/31/2012,R,PERMANENT FUTURES             
2012 - APR,Childrens & Education Services,Supporting SEN,Statement Support Team                  ,K04034,Employees                     ,Direct Employee Expenses      ,AA17,Agency Staff & Casual Paymts,760,"1,120.00",4/7/2012,R,PERMANENT FUTURES             
2012 - APR,Childrens & Education Services,Pre-School Ed (inc Nursery),Children's centres                      ,K05137,Supplies & Services           ,Comms and Computing           ,DG02,Software Licences,761,"18,708.89",3/5/2012,R,CAPITA BUSINESS SERVICES LTD  
2012 - APR,Childrens & Education Services,Pre-School Ed (inc Nursery),Children's centres                      ,K05137,Supplies & Services           ,Comms and Computing           ,DG05,Telephones - Gen-Creditors,762,"2,719.20",3/5/2012,R,VIRGIN MEDIA PAYMENTS LTD     
2012 - APR,Childrens & Education Services,Pre-School Ed (inc Nursery),Children's centres                      ,K05137,Supplies & Services           ,Comms and Computing           ,DG05,Telephones - Gen-Creditors,763,"2,719.92",3/5/2012,R,VIRGIN MEDIA PAYMENTS LTD     
2012 - APR,Childrens & Education Services,Pre-School Ed (inc Nursery),Children's centres                      ,K05137,Supplies & Services           ,Comms and Computing           ,DG05,Telephones - Gen-Creditors,764,"2,719.20",3/5/2012,R,VIRGIN MEDIA PAYMENTS LTD     
2012 - APR,Childrens & Education Services,Pre-School Ed (inc Nursery),Children's centres                      ,K05137,Supplies & Services           ,Comms and Computing           ,DG05,Telephones - Gen-Creditors,765,"2,719.20",3/5/2012,R,VIRGIN MEDIA PAYMENTS LTD     
2012 - APR,Childrens & Education Services,Pre-School Ed (inc Nursery),Children's centres                      ,K05137,Supplies & Services           ,Comms and Computing           ,DG05,Telephones - Gen-Creditors,766,"2,719.92",3/5/2012,R,VIRGIN MEDIA PAYMENTS LTD     
2012 - APR,Childrens & Education Services,Pre-School Ed (inc Nursery),GSSG Central Administration             ,K05400,Employees                     ,Indirect Employee Expenses    ,AB56,Internal Training Costs,767,600,3/9/2012,R,ACTUAL FIRST AID LTD          
2012 - APR,Childrens & Education Services,Pre-School Ed (inc Nursery),Nursery Grant payment-2 yr old          ,K05408,Supplies & Services           ,Grants and Subscriptions      ,DJ01,Grants,768,"1,170.00",4/5/2012,R,ACORN NURSERY                 
2012 - APR,Childrens & Education Services,Pre-School Ed (inc Nursery),Nursery Grant payment-2 yr old          ,K05408,Supplies & Services           ,Grants and Subscriptions      ,DJ01,Grants,769,900,4/12/2012,R,THE GRANGE DAY NURSERY        
2012 - APR,Childrens & Education Services,Pre-School Ed (inc Nursery),Nursery Grant payment-2 yr old          ,K05408,Supplies & Services           ,Grants and Subscriptions      ,DJ01,Grants,770,"1,080.00",4/12/2012,R,BUMBLE BEES'S DAY NURSERY-COCC
2012 - APR,Childrens & Education Services,Pre-School Ed (inc Nursery),Nursery Grant payment-2 yr old          ,K05408,Supplies & Services           ,Grants and Subscriptions      ,DJ01,Grants,771,"1,080.00",4/12/2012,R,CHERUBS @ ST THOMAS           
2012 - APR,Childrens & Education Services,Pre-School Ed (inc Nursery),Nursery Grant payment-2 yr old          ,K05408,Supplies & Services           ,Grants and Subscriptions      ,DJ01,Grants,772,"1,080.00",4/12/2012,R,BUMBLE BEES'S DAY NURSERY-COCC
2012 - APR,Childrens & Education Services,Pre-School Ed (inc Nursery),Nursery Grant payment-2 yr old          ,K05408,Supplies & Services           ,Grants and Subscriptions      ,DJ01,Grants,773,"1,080.00",4/12/2012,R,BUMBLE BEES'S DAY NURSERY-COCC
2012 - APR,Childrens & Education Services,Pre-School Ed (inc Nursery),Nursery Grant payment-2 yr old          ,K05408,Supplies & Services           ,Grants and Subscriptions      ,DJ01,Grants,774,"1,080.00",4/12/2012,R,CHERUBS @ ST THOMAS           
2012 - APR,Childrens & Education Services,Pre-School Ed (inc Nursery),Nursery Grant payment-2 yr old          ,K05408,Supplies & Services           ,Grants and Subscriptions      ,DJ01,Grants,775,"1,080.00",4/12/2012,R,EARLY YEARS NURSERY           
2012 - APR,Childrens & Education Services,Pre-School Ed (inc Nursery),Nursery Grant payment-2 yr old          ,K05408,Supplies & Services           ,Grants and Subscriptions      ,DJ01,Grants,776,"1,080.00",4/13/2012,R,THE GRANGE DAY NURSERY        
2012 - APR,Childrens & Education Services,Pre-School Ed (inc Nursery),Nursery Grant payment-2 yr old          ,K05408,Supplies & Services           ,Grants and Subscriptions      ,DJ01,Grants,777,"1,080.00",4/13/2012,R,THE GRANGE DAY NURSERY        
2012 - APR,Childrens & Education Services,Pre-School Ed (inc Nursery),Nursery Grant payment-2 yr old          ,K05408,Supplies & Services           ,Grants and Subscriptions      ,DJ01,Grants,778,"1,080.00",4/16/2012,R,HASLEMERE HOUSE DAY NURSERY   
2012 - APR,Childrens & Education Services,Pre-School Ed (inc Nursery),Nursery Grant payment-2 yr old          ,K05408,Supplies & Services           ,Grants and Subscriptions      ,DJ01,Grants,779,"1,080.00",4/14/2012,R,THE GRANGE DAY NURSERY        
2012 - APR,Childrens & Education Services,Pre-School Ed (inc Nursery),Nursery Grant payment-2 yr old          ,K05408,Supplies & Services           ,Grants and Subscriptions      ,DJ01,Grants,780,"1,080.00",4/14/2012,R,THE GRANGE DAY NURSERY        
2012 - APR,Childrens & Education Services,Pre-School Ed (inc Nursery),Nursery Grant payment-2 yr old          ,K05408,Supplies & Services           ,Grants and Subscriptions      ,DJ01,Grants,781,"1,080.00",4/16/2012,R,HASLEMERE HOUSE DAY NURSERY   
2012 - APR,Childrens & Education Services,Pre-School Ed (inc Nursery),Nursery Grant payment-2 yr old          ,K05408,Supplies & Services           ,Grants and Subscriptions      ,DJ01,Grants,782,"1,080.00",4/16/2012,R,LA PETITE FLEUR PRE-SCHOOL    
2012 - APR,Childrens & Education Services,Pre-School Ed (inc Nursery),Nursery Grant payment-2 yr old          ,K05408,Supplies & Services           ,Grants and Subscriptions      ,DJ01,Grants,783,"1,080.00",4/16/2012,R,LA PETITE FLEUR PRE-SCHOOL    
2012 - APR,Childrens & Education Services,Pre-School Ed (inc Nursery),Nursery Grant payment-2 yr old          ,K05408,Supplies & Services           ,Grants and Subscriptions      ,DJ01,Grants,784,"1,080.00",4/14/2012,R,THE GRANGE DAY NURSERY        
2012 - APR,Childrens & Education Services,Pre-School Ed (inc Nursery),Nursery Grant payment-2 yr old          ,K05408,Supplies & Services           ,Grants and Subscriptions      ,DJ01,Grants,785,"1,080.00",4/14/2012,R,THE GRANGE DAY NURSERY        
2012 - APR,Childrens & Education Services,Pre-School Ed (inc Nursery),Nursery Grant payment-2 yr old          ,K05408,Supplies & Services           ,Grants and Subscriptions      ,DJ01,Grants,786,"1,080.00",4/16/2012,R,LA PETITE FLEUR PRE-SCHOOL    
2012 - APR,Childrens & Education Services,Pre-School Ed (inc Nursery),Nursery Grant payment-2 yr old          ,K05408,Supplies & Services           ,Grants and Subscriptions      ,DJ01,Grants,787,680.4,4/16/2012,R,MMI PRE SCHOOL                
2012 - APR,Childrens & Education Services,Pre-School Ed (inc Nursery),Nursery Grant payment-2 yr old          ,K05408,Supplies & Services           ,Grants and Subscriptions      ,DJ01,Grants,788,"1,080.00",4/16/2012,R,HASLEMERE HOUSE DAY NURSERY   
2012 - APR,Childrens & Education Services,Pre-School Ed (inc Nursery),Nursery Grant payment-2 yr old          ,K05408,Supplies & Services           ,Grants and Subscriptions      ,DJ01,Grants,789,"1,080.00",4/16/2012,R,IVY GARDENS CHILDREN' S CENTRE
2012 - APR,Childrens & Education Services,Pre-School Ed (inc Nursery),Nursery Grant payment-2 yr old          ,K05408,Supplies & Services           ,Grants and Subscriptions      ,DJ01,Grants,790,"1,080.00",4/16/2012,R,HASLEMERE HOUSE DAY NURSERY   
2012 - APR,Childrens & Education Services,Pre-School Ed (inc Nursery),Nursery Grant payment-2 yr old          ,K05408,Supplies & Services           ,Grants and Subscriptions      ,DJ01,Grants,791,"1,080.00",4/14/2012,R,THE GRANGE DAY NURSERY        
2012 - APR,Childrens & Education Services,Pre-School Ed (inc Nursery),Nursery Grant payment-2 yr old          ,K05408,Supplies & Services           ,Grants and Subscriptions      ,DJ01,Grants,792,"1,080.00",4/16/2012,R,IVY GARDENS CHILDREN' S CENTRE
2012 - APR,Childrens & Education Services,Pre-School Ed (inc Nursery),Nursery Grant payment-2 yr old          ,K05408,Supplies & Services           ,Grants and Subscriptions      ,DJ01,Grants,793,"1,080.00",4/16/2012,R,LA PETITE FLEUR PRE-SCHOOL    
2012 - APR,Childrens & Education Services,Pre-School Ed (inc Nursery),Nursery Grant payment-2 yr old          ,K05408,Supplies & Services           ,Grants and Subscriptions      ,DJ01,Grants,794,"1,080.00",4/16/2012,R,IVY GARDENS CHILDREN' S CENTRE
2012 - APR,Childrens & Education Services,Pre-School Ed (inc Nursery),Nursery Grant payment-2 yr old          ,K05408,Supplies & Services           ,Grants and Subscriptions      ,DJ01,Grants,795,"1,080.00",4/16/2012,R,IVY GARDENS CHILDREN' S CENTRE
2012 - APR,Childrens & Education Services,Pre-School Ed (inc Nursery),Nursery Grant payment-2 yr old          ,K05408,Supplies & Services           ,Grants and Subscriptions      ,DJ01,Grants,796,"1,080.00",4/16/2012,R,IVY GARDENS CHILDREN' S CENTRE
2012 - APR,Childrens & Education Services,Pre-School Ed (inc Nursery),Nursery Grant payment-2 yr old          ,K05408,Supplies & Services           ,Grants and Subscriptions      ,DJ01,Grants,797,"1,080.00",4/16/2012,R,IVY GARDENS CHILDREN' S CENTRE
2012 - APR,Childrens & Education Services,Pre-School Ed (inc Nursery),Nursery Grant payment-2 yr old          ,K05408,Supplies & Services           ,Grants and Subscriptions      ,DJ01,Grants,798,"1,080.00",4/16/2012,R,LEAPFROG DAY NURSERIES        
2012 - APR,Childrens & Education Services,Pre-School Ed (inc Nursery),Nursery Grant payment-2 yr old          ,K05408,Supplies & Services           ,Grants and Subscriptions      ,DJ01,Grants,799,972,4/16/2012,R,HASLEMERE HOUSE DAY NURSERY   
2012 - APR,Childrens & Education Services,Pre-School Ed (inc Nursery),Nursery Grant payment-2 yr old          ,K05408,Supplies & Services           ,Grants and Subscriptions      ,DJ01,Grants,800,"1,080.00",4/16/2012,R,LA PETITE FLEUR PRE-SCHOOL    
2012 - APR,Childrens & Education Services,Pre-School Ed (inc Nursery),Nursery Grant payment-2 yr old          ,K05408,Supplies & Services           ,Grants and Subscriptions      ,DJ01,Grants,801,"1,080.00",4/16/2012,R,HASLEMERE HOUSE DAY NURSERY   
2012 - APR,Childrens & Education Services,Pre-School Ed (inc Nursery),Nursery Grant payment-2 yr old          ,K05408,Supplies & Services           ,Grants and Subscriptions      ,DJ01,Grants,802,576,4/19/2012,R,ST SAVIOUR'S PRE SCHOOL       
2012 - APR,Childrens & Education Services,Pre-School Ed (inc Nursery),Nursery Grant payment-2 yr old          ,K05408,Supplies & Services           ,Grants and Subscriptions      ,DJ01,Grants,803,576,4/19/2012,R,ST SAVIOUR'S PRE SCHOOL       
2012 - APR,Childrens & Education Services,Pre-School Ed (inc Nursery),Nursery Grant payment-2 yr old          ,K05408,Supplies & Services           ,Grants and Subscriptions      ,DJ01,Grants,804,756,4/19/2012,R,HOLY CROSS PLAYGROUP          
2012 - APR,Childrens & Education Services,Pre-School Ed (inc Nursery),Nursery Grant payment-2 yr old          ,K05408,Supplies & Services           ,Grants and Subscriptions      ,DJ01,Grants,805,514.8,4/19/2012,R,SUTTON OPPORTUNITY PRE-SCHOOL 
2012 - APR,Childrens & Education Services,Pre-School Ed (inc Nursery),Nursery Grant payment-2 yr old          ,K05408,Supplies & Services           ,Grants and Subscriptions      ,DJ01,Grants,806,"1,080.00",4/19/2012,R,SUTTON OPPORTUNITY PRE-SCHOOL 
2012 - APR,Childrens & Education Services,Pre-School Ed (inc Nursery),Nursery Grant payment-2 yr old          ,K05408,Supplies & Services           ,Grants and Subscriptions      ,DJ01,Grants,807,"1,080.00",4/19/2012,R,ROSEHILL NURSERY              
2012 - APR,Childrens & Education Services,Pre-School Ed (inc Nursery),Nursery Grant payment-2 yr old          ,K05408,Supplies & Services           ,Grants and Subscriptions      ,DJ01,Grants,808,514.8,4/19/2012,R,IVY GARDENS CHILDREN' S CENTRE
2012 - APR,Childrens & Education Services,Pre-School Ed (inc Nursery),Nursery Grant payment-2 yr old          ,K05408,Supplies & Services           ,Grants and Subscriptions      ,DJ01,Grants,809,"1,080.00",4/19/2012,R,REDACTED
2012 - APR,Childrens & Education Services,Pre-School Ed (inc Nursery),Nursery Grant payment-2 yr old          ,K05408,Supplies & Services           ,Grants and Subscriptions      ,DJ01,Grants,810,"1,080.00",4/19/2012,R,REDACTED
2012 - APR,Childrens & Education Services,Pre-School Ed (inc Nursery),Nursery Grant payment-2 yr old          ,K05408,Supplies & Services           ,Grants and Subscriptions      ,DJ01,Grants,811,"1,080.00",4/19/2012,R,REDACTED
2012 - APR,Childrens & Education Services,Pre-School Ed (inc Nursery),Nursery Grant payment-2 yr old          ,K05408,Supplies & Services           ,Grants and Subscriptions      ,DJ01,Grants,812,"1,080.00",4/19/2012,R,REDACTED
2012 - APR,Childrens & Education Services,Pre-School Ed (inc Nursery),Nursery Grant payment-2 yr old          ,K05408,Supplies & Services           ,Grants and Subscriptions      ,DJ01,Grants,813,"1,080.00",4/19/2012,R,REDACTED
2012 - APR,Childrens & Education Services,Pre-School Ed (inc Nursery),Nursery Grant payment-2 yr old          ,K05408,Supplies & Services           ,Grants and Subscriptions      ,DJ01,Grants,814,"1,080.00",4/19/2012,R,REDACTED
2012 - APR,Childrens & Education Services,Pre-School Ed (inc Nursery),Nursery Grant payment-2 yr old          ,K05408,Supplies & Services           ,Grants and Subscriptions      ,DJ01,Grants,815,"1,080.00",4/19/2012,R,REDACTED
2012 - APR,Childrens & Education Services,Pre-School Ed (inc Nursery),Nursery Grant payment-2 yr old          ,K05408,Supplies & Services           ,Grants and Subscriptions      ,DJ01,Grants,816,"1,080.00",4/20/2012,R,WILLOWS PRE-SCHOOL            
2012 - APR,Childrens & Education Services,Pre-School Ed (inc Nursery),Nursery Grant payment-2 yr old          ,K05408,Supplies & Services           ,Grants and Subscriptions      ,DJ01,Grants,817,"1,152.00",4/20/2012,R,BOW LANE PRE-SCHOOL           
2012 - APR,Childrens & Education Services,Pre-School Ed (inc Nursery),Nursery Grant payment-2 yr old          ,K05408,Supplies & Services           ,Grants and Subscriptions      ,DJ01,Grants,818,"1,152.00",4/20/2012,R,CHERUBS @ NEWMINSTER          
2012 - APR,Childrens & Education Services,Pre-School Ed (inc Nursery),Nursery Grant payment-2 yr old          ,K05408,Supplies & Services           ,Grants and Subscriptions      ,DJ01,Grants,819,"1,152.00",4/20/2012,R,CHERUBS @ NEWMINSTER          
2012 - APR,Childrens & Education Services,Pre-School Ed (inc Nursery),Nursery Grant payment-2 yr old          ,K05408,Supplies & Services           ,Grants and Subscriptions      ,DJ01,Grants,820,900,4/20/2012,R,MINI TREASURES NURSERY LTD    
2012 - APR,Childrens & Education Services,Pre-School Ed (inc Nursery),Nursery Grant payment-2 yr old          ,K05408,Supplies & Services           ,Grants and Subscriptions      ,DJ01,Grants,821,"1,080.00",4/20/2012,R,WILLOWS PRE-SCHOOL            
2012 - APR,Childrens & Education Services,Pre-School Ed (inc Nursery),Nursery Grant payment-2 yr old          ,K05408,Supplies & Services           ,Grants and Subscriptions      ,DJ01,Grants,822,"1,080.00",4/20/2012,R,WILLOWS PRE-SCHOOL            
2012 - APR,Childrens & Education Services,Pre-School Ed (inc Nursery),Nursery Grant payment-2 yr old          ,K05408,Supplies & Services           ,Grants and Subscriptions      ,DJ01,Grants,823,"1,152.00",4/20/2012,R,BOW LANE PRE-SCHOOL           
2012 - APR,Childrens & Education Services,Pre-School Ed (inc Nursery),Nursery Grant payment-2 yr old          ,K05408,Supplies & Services           ,Grants and Subscriptions      ,DJ01,Grants,824,"1,080.00",4/20/2012,R,FIRST LITTLE STEPS            
2012 - APR,Childrens & Education Services,Pre-School Ed (inc Nursery),Nursery Grant payment-2 yr old          ,K05408,Supplies & Services           ,Grants and Subscriptions      ,DJ01,Grants,825,"1,152.00",4/20/2012,R,ARK AT SHERWOOD LTD           
